Workbook

Sheet START
A1: =muni -> NC074 Kareeberg

Sheet Instructions
D2: 2020
X4: Yes
X5: No
W7: Type of Entities Range: | X7: Parent Municipality
X8: Consolidated Information
W10: Date linked | X10: 17
W11: Date | X11: =VLOOKUP(X10,W39:X55,2) -> Mid-Year Assessment | Y11: 2013-08-01
W19: MTREF Range: | X19: 2008
X20: 2009
X21: 2010
X22: 2011
X23: 2012
X24: 2013
X25: 2014
X26: 2015
X27: 2016
X28: 2017
X29: 2018
X30: 2019
X31: 2020
X32: 2021
X33: 2022
W34: MTREF Linked:
W35: MTREF: | X35: 8
X36: =INDEX(X19:X33,X35,1) -> 2015
W37: Fin Year:
X38: =MTREF&"/"&RIGHT(MTREF,2)+1 -> 2015/16
V39: Date/type of report | W39: 1 | X39: M01 July
W40: 2 | X40: M02 August
W41: 3 | X41: M03 September
W42: 4 | X42: M04 October
W43: 5 | X43: M05 November
W44: 6 | X44: M06 December
W45: 7 | X45: M07 January
W46: 8 | X46: M08 February
W47: 9 | X47: M09 March
W48: 10 | X48: M10 April
W49: 11 | X49: M11 May
W50: 12 | X50: M12 June
W51: 13 | X51: Q1 First Quarter
W52: 14 | X52: Q2 Second Quarter
W53: 15 | X53: Q3 Third Quarter
W54: 16 | X54: Q4 Fourth Quarter
W55: 17 | X55: Mid-Year Assessment

Sheet Template names (hidden)
A1: Common sheet headings
A2: Head1 | B2: =HLOOKUP(MTREF,Headings,2) -> 2014/15 | C2: Prior year -1
A3: Head2 | B3: =HLOOKUP(MTREF,Headings,5) -> Budget Year 2015/16 | C3: Year of approved budget
A4: Head2A | B4: =HLOOKUP(MTREF,Headings,4) -> 2015/16 | C4: Approved budget year
A5: Head3 | B5: =HLOOKUP(MTREF,Headings,3) -> 2015/16 Medium Term Revenue & Expenditure Framework | C5: MTREF header name
A6: Head5 | B6: Audited Outcome
A7: Head5A | B7: Outcome
A8: Head5B | B8: Pre-audit outcome
A9: Head6 | B9: Original Budget
A10: Head7 | B10: Adjusted Budget
A11: Head8 | B11: Full Year Forecast
A12: Head9 | B12: =HLOOKUP(MTREF,Headings,5) -> Budget Year 2015/16 | C12: 1st year of MTREF | D12: Year1
A13: Head10 | B13: =HLOOKUP(MTREF,Headings,6) -> Budget Year +1 2016/17 | C13: 2nd year of MTREF | D13: Year2
A14: Head11 | B14: =HLOOKUP(MTREF,Headings,7) -> Budget Year +2 2017/18 | C14: 3rd year of MTREF | D14: Year3
A15: Head12 | B15: Forecast 2010/11 | D15: Year4
A16: Head13 | B16: Forecast 2011/12 | D16: Year5
A17: Head14 | B17: Forecast 2012/13 | D17: Year6
A18: Head15 | B18: Forecast 2013/14 | D18: Year7
A19: Head16 | B19: Forecast 2014/15 | D19: Year8
A20: Head17 | B20: Forecast 2015/16 | D20: Year9
A21: Head18 | B21: Forecast 2016/17 | D21: Year10
A22: Head19 | B22: Forecast 2017/18 | D22: Year11
A23: Head20 | B23: Forecast 2018/19 | D23: Year12
A24: Head21 | B24: Forecast 2019/20 | D24: Year13
A25: Head22 | B25: Forecast 2020/21 | D25: Year14
A26: Head23 | B26: Forecast 2021/22 | D26: Year15
A27: Head24 | B27: Description | D27: Desc
A28: Head25 | B28: Schedule of funding diligence | D28: fdil
A29: Head26 | B29: Vote Description | D29: VDesc
A30: Head27 | B30: Ref
A31: Head27a | B31: References
A32: Head28 | B32: Surplus/ (Deficit) for the year | D32: Result
A33: Head29 | B33: Annual target 2007/08
A34: Head30 | B34: Revised target 2007/08
A35: Head31 | B35: Quarter ended 30 September
A36: Head32 | B36: Quarter ended 31 December
A37: Head33 | B37: Quarter ended 31 March
A38: Head34 | B38: Quarter ended 30 June
A39: Head35 | B39: Variance explanation
A40: Head36 | B40: YTD Actual 31 Dec
A41: Head37 | B41: YTD Budget 31 Dec
A42: Head38 | B42: Monthly actual
A43: Head39 | B43: YearTD actual
A44: Head40 | B44: YearTD budget
A45: Head41 | B45: YTD variance
A46: Head42 | B46: Surplus/ (Deficit) for the yr/period
A47: Head43 | B47: =Head3&" Summary" -> 2015/16 Medium Term Revenue & Expenditure Framework Summary
A48: Head44 | B48: 1996 Census
A49: Head45 | B49: 2001 Census
A50: Head46 | B50: - Adjustments Budget - Month YYYY
A51: Head47 | B51: Previous target year to complete
A52: Head48 | B52: Present value
A53: Head49 | B53: Virement
A54: Head50 | B54: Other Adjusts.
A55: Head51 | B55: Accum. Funds
A56: Head52 | B56: Multi-year capital
A57: Head53 | B57: Unfore. Unavoid.
A58: Head54 | B58: Prior Adjusted
A59: Head55 | B59: Nat. or Prov. Govt
A60: Head56 | B60: Total Adjusts.
A61: Head57 | B61: =date -> Mid-Year Assessment
A62: Head58 | B62: Parent muni.
A63: Head59 | B63: Downward adjusts
A64: Head60 | B64: Month | C64: Report header part name | D64: =MONTH(date) -> 
A65: SFPerf1 | B65: Budgeted Financial Performance
A66: SFPerf2 | B66: Forecast Financial Performance
A67: SFPos1 | B67: Budgeted Financial Position
A68: SFPos2 | B68: Forecast Financial Position
A69: Cash1 | B69: Budget Cash Flow
A70: Cash2 | B70: Forecast Cash Flow
A71: RandM | B71: Expenditure includes repairs & maintenance of R'000
A72: Standard nomenclature
A73: Muni | B73: ='Lookup and lists'!B27 -> NC074 Kareeberg
A74: Municipal Entities | B74: 2 | C74: Type of report: | D74: 3
A75: =IF((MuniEntities=1)*(MuniType=2),"YES","NO") -> NO | B75: Does this municipality have entities (consolidated budget and entity budgets required)? YES/NO
A76: s71 (Monthly Mayor report) schedules and charts
A77: S71sum | B77: =IF(Consolques="YES",E77,F77) -> Table C1 Monthly Budget Statement Summary | D77: Table C1 | E77: =D77&"Consolidated Monthly Budget Statement Summary" -> Table C1 Consolidated Monthly Budget Statement Summary | F77: =D77&"Monthly Budget Statement Summary" -> Table C1 Monthly Budget Statement Summary
A78: S71C | B78: Table C3 Monthly Budget Statement - Financial Performance (revenue and expenditure by municipal vote) | D78: Table C3 | E78: =D78&"Consolidated Monthly Budget Statement - Financial Performance (revenue and expenditure by municipal vote) " -> Table C3 Consolidated Monthly Budget Statement - Financial Performance (revenue and expenditure by municipal vote) | F78: =D78&"Monthly Budget Statement - Financial Performance (revenue and expenditure by municipal vote)" -> Table C3 Monthly Budget Statement - Financial Performance (revenue and expenditure by municipal vote)
A79: S71A | B79: =IF(Consolques="YES",E79,F79) -> Table C2 Monthly Budget Statement - Financial Performance (standard classification) | D79: Table C2 | E79: =D79&"Consolidated Monthly Budget Statement - Financial Performance (standard classification) " -> Table C2 Consolidated Monthly Budget Statement - Financial Performance (standard classification) | F79: =D79&"Monthly Budget Statement - Financial Performance (standard classification)" -> Table C2 Monthly Budget Statement - Financial Performance (standard classification)
A80: S71B | B80: =IF(Consolques="YES",E80,F80) -> Table C4 Monthly Budget Statement - Financial Performance (revenue and expenditure) | D80: Table C4 | E80: =D80&"Consolidated Monthly Budget Statement - Financial Performance (revenue and expenditure) " -> Table C4 Consolidated Monthly Budget Statement - Financial Performance (revenue and expenditure) | F80: =D80&"Monthly Budget Statement - Financial Performance (revenue and expenditure)" -> Table C4 Monthly Budget Statement - Financial Performance (revenue and expenditure)
A81: S71D | B81: =IF(Consolques="YES",E81,F81) -> Table C5 Monthly Budget Statement - Capital Expenditure (municipal vote, standard classification and funding) | D81: Table C5 | E81: =D81&"Consolidated Monthly Budget Statement - Capital Expenditure (municipal vote, standard classification and funding " -> Table C5 Consolidated Monthly Budget Statement - Capital Expenditure (municipal vote, standard classification and funding | F81: =D81&"Monthly Budget Statement - Capital Expenditure (municipal vote, standard classification and funding)" -> Table C5 Monthly Budget Statement - Capital Expenditure (municipal vote, standard classification and funding)
A82: S71E | B82: Table C6 Monthly Budget Statement - Financial Position | D82: Table C6 | E82: =D82&"Consolidated Monthly Budget Statement - Financial Position " -> Table C6 Consolidated Monthly Budget Statement - Financial Position | F82: =D82&"Monthly Budget Statement - Financial Position" -> Table C6 Monthly Budget Statement - Financial Position
A83: S71F | B83: Table C7 Monthly Budget Statement - Cash Flow | D83: Table C7 | E83: =D83&"Consolidated Monthly Budget Statement - Cash Flow " -> Table C7 Consolidated Monthly Budget Statement - Cash Flow | F83: =D83&"Monthly Budget Statement - Cash Flow " -> Table C7 Monthly Budget Statement - Cash Flow
A84: S71G | B84: =D84&"Material variance explanations " -> Supporting Table SC1 Material variance explanations | D84: Supporting Table SC1
A85: S71H | B85: =D85&"Monthly Budget Statement - performance indicators " -> Supporting Table SC2 Monthly Budget Statement - performance indicators | D85: Supporting Table SC2
A86: S71I | B86: =D86&"Monthly Budget Statement - aged debtors" -> Supporting Table SC3 Monthly Budget Statement - aged debtors | D86: Supporting Table SC3
A87: S71J | B87: =D87&"Monthly Budget Statement - aged creditors " -> Supporting Table SC4 Monthly Budget Statement - aged creditors | D87: Supporting Table SC4
A88: S71K | B88: =D88&"Monthly Budget Statement - investment portfolio " -> Supporting Table SC5 Monthly Budget Statement - investment portfolio | D88: Supporting Table SC5
A89: S71L | B89: =D89&"Monthly Budget Statement - transfers and grant receipts " -> Supporting Table SC6 Monthly Budget Statement - transfers and grant receipts | D89: Supporting Table SC6
A90: S71M | B90: =D90&" Monthly Budget Statement - transfers and grant expenditure " -> Supporting Table SC7(1) Monthly Budget Statement - transfers and grant expenditure | D90: Supporting Table SC7(1)
A91: S71N | B91: =D91&"Monthly Budget Statement - councillor and staff benefits " -> Supporting Table SC8 Monthly Budget Statement - councillor and staff benefits | D91: Supporting Table SC8
A92: S71O | B92: =D92&"Monthly Budget Statement - actuals and revised targets for cash receipts" -> Supporting Table SC9 Monthly Budget Statement - actuals and revised targets for cash receipts | D92: Supporting Table SC9
A93: S71P | B93: =IF(Consolques="YES",E93,F93) -> NOT REQUIRED - municipality does not have entities or this is the parent municipality's budget | D93: Supporting Table SC10 | E93: =D93&"Monthly Budget Statement - Parent Municipality Financial Performance (revenue and expenditure) " -> Supporting Table SC10 Monthly Budget Statement - Parent Municipality Financial Performance (revenue and expenditure) | F93: NOT REQUIRED - municipality does not have entities or this is the parent municipality's budget
A94: S71Q | B94: NOT REQUIRED - municipality does not have entities or this is the parent municipality's budget | D94: Supporting Table SC11 | E94: =D94&"Monthly Budget Statement - summary of municipal entities" -> Supporting Table SC11 Monthly Budget Statement - summary of municipal entities | F94: NOT REQUIRED - municipality does not have entities or this is the parent municipality's budget
A95: S71R | B95: Supporting Table SC12 Monthly Budget Statement - capital expenditure trend | D95: Supporting Table SC12 | E95: =D95&"Consolidated Monthly Budget Statement - capital expenditure trend " -> Supporting Table SC12 Consolidated Monthly Budget Statement - capital expenditure trend | F95: =D95&"Monthly Budget Statement - capital expenditure trend" -> Supporting Table SC12 Monthly Budget Statement - capital expenditure trend
A96: S71Sa | B96: Supporting Table SC13a Monthly Budget Statement - capital expenditure on new assets by asset class | D96: Supporting Table SC13a | E96: =D96&"Consolidated Monthly Budget Statement - capital expenditure on new assets by asset class" -> Supporting Table SC13a Consolidated Monthly Budget Statement - capital expenditure on new assets by asset class | F96: =D96&"Monthly Budget Statement - capital expenditure on new assets by asset class" -> Supporting Table SC13a Monthly Budget Statement - capital expenditure on new assets by asset class
A97: S71Sb | B97: Supporting Table SC13b Monthly Budget Statement - capital expenditure on renewal of existing assets by asset class | D97: Supporting Table SC13b | E97: =D97&"Consolidated Monthly Budget Statement - capital expenditure on renewal of existing assets by asset class" -> Supporting Table SC13b Consolidated Monthly Budget Statement - capital expenditure on renewal of existing assets by asset class | F97: =D97&"Monthly Budget Statement - capital expenditure on renewal of existing assets by asset class" -> Supporting Table SC13b Monthly Budget Statement - capital expenditure on renewal of existing assets by asset class
A98: S71Sc | B98: Supporting Table SC13c Monthly Budget Statement - expenditure on repairs and maintenance by asset class | D98: Supporting Table SC13c | E98: =D98&"Consolidated Monthly Budget Statement - expenditure on repairs and maintenance by asset class" -> Supporting Table SC13c Consolidated Monthly Budget Statement - expenditure on repairs and maintenance by asset class | F98: =D98&"Monthly Budget Statement - expenditure on repairs and maintenance by asset class" -> Supporting Table SC13c Monthly Budget Statement - expenditure on repairs and maintenance by asset class
A99: S71Sd | B99: Supporting Table SC13d Monthly Budget Statement - depreciation by asset class | D99: Supporting Table SC13d | E99: =D99&"Consolidated Monthly Budget Statement - depreciation by asset class" -> Supporting Table SC13d Consolidated Monthly Budget Statement - depreciation by asset class | F99: =D99&"Monthly Budget Statement - depreciation by asset class" -> Supporting Table SC13d Monthly Budget Statement - depreciation by asset class
B100: s71 charts listing
B101: =D101&Head2A&" Capital Expenditure Monthly Trend: actual v target" -> Chart C1 2015/16 Capital Expenditure Monthly Trend: actual v target | D101: Chart C1
B102: =D102&Head2A&" Capital Expenditure: YTD actual v YTD target" -> Chart C2 2015/16 Capital Expenditure: YTD actual v YTD target | D102: Chart C2
B103: =D103&"Aged Consumer Debtors Analysis" -> Chart C3 Aged Consumer Debtors Analysis | D103: Chart C3
B104: =D104&"Consumer Debtors (total by Debtor Customer Category)" -> Chart C4 Consumer Debtors (total by Debtor Customer Category) | D104: Chart C4
B105: =D105&"Aged Creditors Analysis" -> Chart C5 Aged Creditors Analysis | D105: Chart C5
A106: S71T | B106: =D106&" Monthly Budget Statement - Expenditure against approved rollovers" -> Supporting Table SC7(2) Monthly Budget Statement - Expenditure against approved rollovers | D106: Supporting Table SC7(2)

Sheet Lookup and lists (hidden)
A1: Description | B1: 2007 | C1: 2008 | D1: 2009 | E1: 2010 | F1: 2011 | G1: 2012 | H1: 2013 | I1: 2014 | J1: 2015 | K1: 2016 | L1: 2017 | M1: 2018 | N1: 2019 | O1: 2020 | Q1: Grants: | R1: National - opex | S1: Provincial - opex | T1: National - capex | U1: Provincial - capex | V1: YESNO
A2: ='Template names'!C2 -> Prior year -1 | B2: 2006/07 | C2: 2007/08 | D2: 2008/09 | E2: =E1-1&"/"&RIGHT(E1,2)-0 -> 2009/10 | F2: =F1-1&"/"&RIGHT(F1,2)-0 -> 2010/11 | G2: 2011/12 | H2: 2012/13 | I2: 2013/14 | J2: 2014/15 | K2: 2015/16 | L2: 2016/17 | M2: 2017/18 | N2: 2018/19 | O2: 2019/20 | R2: Local Government Equitable Share | S2: Health subsidy | T2: Municipal Infrastructure Grant (MIG) | U2: Agriculture | V2: Yes
A3: ='Template names'!C5 -> MTREF header name | B3: 2007/08 Medium Term Revenue & Expenditure Framework | C3: 2008/09 Medium Term Revenue & Expenditure Framework | D3: 2009/10 Medium Term Revenue & Expenditure Framework | E3: =E1&"/"&RIGHT(E1,2)+1&" Medium Term Revenue & Expenditure Framework" -> 2010/11 Medium Term Revenue & Expenditure Framework | F3: =F1&"/"&RIGHT(F1,2)+1&" Medium Term Revenue & Expenditure Framework" -> 2011/12 Medium Term Revenue & Expenditure Framework | G3: 2012/13 Medium Term Revenue & Expenditure Framework | H3: 2013/14 Medium Term Revenue & Expenditure Framework | I3: 2014/15 Medium Term Revenue & Expenditure Framework | J3: 2015/16 Medium Term Revenue & Expenditure Framework | K3: 2016/17 Medium Term Revenue & Expenditure Framework | L3: 2017/18 Medium Term Revenue & Expenditure Framework | M3: 2018/19 Medium Term Revenue & Expenditure Framework | N3: 2019/20 Medium Term Revenue & Expenditure Framework | O3: 2020/21 Medium Term Revenue & Expenditure Framework | R3: RSC Levy Replacement | S3: Ambulance subsidy | T3: Public Transport and Systems | U3: Education | V3: No
A4: ='Template names'!C4 -> Approved budget year | B4: 2007/08 | C4: 2008/09 | D4: 2009/10 | E4: =E1&"/"&RIGHT(E1,2)+1 -> 2010/11 | F4: =F1&"/"&RIGHT(F1,2)+1 -> 2011/12 | G4: 2012/13 | H4: 2013/14 | I4: 2014/15 | J4: 2015/16 | K4: 2016/17 | L4: 2017/18 | M4: 2018/19 | N4: 2019/20 | O4: 2020/21 | R4: Finance Management | S4: Housing | T4: Rural Transport Services and Infrastructure | U4: Health
A5: ='Template names'!C12 -> 1st year of MTREF | B5: Budget Year 2007/08 | C5: Budget Year 2008/09 | D5: Budget Year 2009/10 | E5: ="Budget Year "&E1&"/"&RIGHT(E1,2)+1 -> Budget Year 2010/11 | F5: ="Budget Year "&F1&"/"&RIGHT(F1,2)+1 -> Budget Year 2011/12 | G5: Budget Year 2012/13 | H5: Budget Year 2013/14 | I5: Budget Year 2014/15 | J5: Budget Year 2015/16 | K5: Budget Year 2016/17 | L5: Budget Year 2017/18 | M5: Budget Year 2018/19 | N5: Budget Year 2019/20 | O5: Budget Year 2020/21 | R5: Municipal Systems Improvement | S5: Sport and Recreation | T5: Regional Bulk Infrastructure | U5: Housing and Local Government
A6: ='Template names'!C13 -> 2nd year of MTREF | B6: Budget Year +1 2008/09 | C6: Budget Year +1 2009/10 | D6: Budget Year +1 2010/11 | E6: ="Budget Year +1 "&E1+1&"/"&RIGHT(E1,2)+2 -> Budget Year +1 2011/12 | F6: ="Budget Year +1 "&F1+1&"/"&RIGHT(F1,2)+2 -> Budget Year +1 2012/13 | G6: Budget Year +1 2013/14 | H6: Budget Year +1 2014/15 | I6: Budget Year +1 2015/16 | J6: Budget Year +1 2016/17 | K6: Budget Year +1 2017/18 | L6: Budget Year +1 2018/19 | M6: Budget Year +1 2019/20 | N6: Budget Year +1 2020/21 | O6: Budget Year +1 2021/22 | R6: Water Services Operating Subsidy | T6: Rural Households Infrastructure | U6: Other Departments
A7: ='Template names'!C14 -> 3rd year of MTREF | B7: Budget Year +2 2009/10 | C7: Budget Year +2 2010/11 | D7: Budget Year +2 2011/12 | E7: ="Budget Year +2 "&E1+2&"/"&RIGHT(E1,2)+3 -> Budget Year +2 2012/13 | F7: ="Budget Year +2 "&F1+2&"/"&RIGHT(F1,2)+3 -> Budget Year +2 2013/14 | G7: Budget Year +2 2014/15 | H7: Budget Year +2 2015/16 | I7: Budget Year +2 2016/17 | J7: Budget Year +2 2017/18 | K7: Budget Year +2 2018/19 | L7: Budget Year +2 2019/20 | M7: Budget Year +2 2020/21 | N7: Budget Year +2 2021/22 | O7: Budget Year +2 2022/23 | R7: Energy Efficiency and Demand Management | T7: Neighbourhood Development Partnership | U7: Public Works, Roads, Transport
A8: NOTE: This sheet should not be directly amended - select headings from sheet 'S' | R8: Integrated National Electrification Programme | T8: 2010 FIFA World Cup Stadiums Development | U8: Sport and Recreation
R9: Municipal Drought Relief
R10: 2010 FIFA World Cup Operating
R11: Electricity Demand Side Management
R12: EPWP Incentive
A26: Name link | B26: 232
A27: Name of Muni | B27: =INDEX(B28:B311,B26,1) -> NC074 Kareeberg
B28: Choose name from list | C28: Set name on 'Instructions' sheet
B29: BUF Buffalo City | C29: EC EASTERN CAPE
B30: NMA Nelson Mandela Bay | C30: EC EASTERN CAPE
B31: EC101 Camdeboo | C31: EC EASTERN CAPE
B32: EC102 Blue Crane Route | C32: EC EASTERN CAPE
B33: EC103 Ikwezi | C33: EC EASTERN CAPE
B34: EC104 Makana | C34: EC EASTERN CAPE
B35: EC105 Ndlambe | C35: EC EASTERN CAPE
B36: EC106 Sundays River Valley | C36: EC EASTERN CAPE
B37: EC107 Baviaans | C37: EC EASTERN CAPE
B38: EC108 Kouga | C38: EC EASTERN CAPE
B39: EC109 Kou-Kamma | C39: EC EASTERN CAPE
B40: DC10 Cacadu | C40: EC EASTERN CAPE
B41: EC121 Mbhashe | C41: EC EASTERN CAPE
B42: EC122 Mnquma | C42: EC EASTERN CAPE
B43: EC123 Great Kei | C43: EC EASTERN CAPE
B44: EC124 Amahlathi | C44: EC EASTERN CAPE
B45: EC126 Ngqushwa | C45: EC EASTERN CAPE
B46: EC127 Nkonkobe | C46: EC EASTERN CAPE
B47: EC128 Nxuba | C47: EC EASTERN CAPE
B48: DC12 Amathole | C48: EC EASTERN CAPE
B49: EC131 Inxuba Yethemba | C49: EC EASTERN CAPE
B50: EC132 Tsolwana | C50: EC EASTERN CAPE
B51: EC133 Inkwanca | C51: EC EASTERN CAPE
B52: EC134 Lukhanji | C52: EC EASTERN CAPE
B53: EC135 Intsika Yethu | C53: EC EASTERN CAPE
B54: EC136 Emalahleni (Ec) | C54: EC EASTERN CAPE
B55: EC137 Engcobo | C55: EC EASTERN CAPE
B56: EC138 Sakhisizwe | C56: EC EASTERN CAPE
B57: DC13 Chris Hani | C57: EC EASTERN CAPE
B58: EC141 Elundini | C58: EC EASTERN CAPE
B59: EC142 Senqu | C59: EC EASTERN CAPE
B60: EC143 Maletswai | C60: EC EASTERN CAPE
B61: EC144 Gariep | C61: EC EASTERN CAPE
B62: DC14 Joe Gqabi | C62: EC EASTERN CAPE
B63: EC153 Ngquza Hills | C63: EC EASTERN CAPE
B64: EC154 Port St Johns | C64: EC EASTERN CAPE
B65: EC155 Nyandeni | C65: EC EASTERN CAPE
B66: EC156 Mhlontlo | C66: EC EASTERN CAPE
B67: EC157 King Sabata Dalindyebo | C67: EC EASTERN CAPE
B68: DC15 O .R. Tambo | C68: EC EASTERN CAPE
B69: EC441 Matatiele | C69: EC EASTERN CAPE
B70: EC442 Umzimvubu | C70: EC EASTERN CAPE
B71: EC443 Mbizana | C71: EC EASTERN CAPE
B72: EC444 Ntabankulu | C72: EC EASTERN CAPE
B73: DC44 Alfred Nzo | C73: EC EASTERN CAPE
B74: MAN Mangaung | C74: FS FREE STATE
B75: FS161 Letsemeng | C75: FS FREE STATE
B76: FS162 Kopanong | C76: FS FREE STATE
B77: FS163 Mohokare | C77: FS FREE STATE
B78: FS164 Naledi (Fs) | C78: FS FREE STATE
B79: DC16 Xhariep | C79: FS FREE STATE
B80: FS181 Masilonyana | C80: FS FREE STATE
B81: FS182 Tokologo | C81: FS FREE STATE
B82: FS183 Tswelopele | C82: FS FREE STATE
B83: FS184 Matjhabeng | C83: FS FREE STATE
B84: FS185 Nala | C84: FS FREE STATE
B85: DC18 Lejweleputswa | C85: FS FREE STATE
B86: FS191 Setsoto | C86: FS FREE STATE
B87: FS192 Dihlabeng | C87: FS FREE STATE
B88: FS193 Nketoana | C88: FS FREE STATE
B89: FS194 Maluti-a-Phofung | C89: FS FREE STATE
B90: FS195 Phumelela | C90: FS FREE STATE
B91: FS196 Mantsopa | C91: FS FREE STATE
B92: DC19 Thabo Mofutsanyana | C92: FS FREE STATE
B93: FS201 Moqhaka | C93: FS FREE STATE
B94: FS203 Ngwathe | C94: FS FREE STATE
B95: FS204 Metsimaholo | C95: FS FREE STATE
B96: FS205 Mafube | C96: FS FREE STATE
B97: DC20 Fezile Dabi | C97: FS FREE STATE
B98: EKU Ekurhuleni Metro | C98: GT GAUTENG
B99: JHB City Of Johannesburg | C99: GT GAUTENG
B100: TSH City Of Tshwane | C100: GT GAUTENG
B101: GT421 Emfuleni | C101: GT GAUTENG
B102: GT422 Midvaal | C102: GT GAUTENG
B103: GT423 Lesedi | C103: GT GAUTENG
B104: DC42 Sedibeng | C104: GT GAUTENG
B105: GT481 Mogale City | C105: GT GAUTENG
B106: GT482 Randfontein | C106: GT GAUTENG
B107: GT483 Westonaria | C107: GT GAUTENG
B108: GT484 Merafong City | C108: GT GAUTENG
B109: DC48 West Rand | C109: GT GAUTENG
B110: ETH eThekwini | C110: KZN KWAZULU-NATAL
B111: KZN211 Vulamehlo | C111: KZN KWAZULU-NATAL
B112: KZN212 Umdoni | C112: KZN KWAZULU-NATAL
B113: KZN213 Umzumbe | C113: KZN KWAZULU-NATAL
B114: KZN214 uMuziwabantu | C114: KZN KWAZULU-NATAL
B115: KZN215 Ezinqoleni | C115: KZN KWAZULU-NATAL
B116: KZN216 Hibiscus Coast | C116: KZN KWAZULU-NATAL
B117: DC21 Ugu | C117: KZN KWAZULU-NATAL
B118: KZN221 uMshwathi | C118: KZN KWAZULU-NATAL
B119: KZN222 uMngeni | C119: KZN KWAZULU-NATAL
B120: KZN223 Mpofana | C120: KZN KWAZULU-NATAL
B121: KZN224 Impendle | C121: KZN KWAZULU-NATAL
B122: KZN225 Msunduzi | C122: KZN KWAZULU-NATAL
B123: KZN226 Mkhambathini | C123: KZN KWAZULU-NATAL
B124: KZN227 Richmond | C124: KZN KWAZULU-NATAL
B125: DC22 uMgungundlovu | C125: KZN KWAZULU-NATAL
B126: KZN232 Emnambithi/Ladysmith | C126: KZN KWAZULU-NATAL
B127: KZN233 Indaka | C127: KZN KWAZULU-NATAL
B128: KZN234 Umtshezi | C128: KZN KWAZULU-NATAL
B129: KZN235 Okhahlamba | C129: KZN KWAZULU-NATAL
B130: KZN236 Imbabazane | C130: KZN KWAZULU-NATAL
B131: DC23 Uthukela | C131: KZN KWAZULU-NATAL
B132: KZN241 Endumeni | C132: KZN KWAZULU-NATAL
B133: KZN242 Nquthu | C133: KZN KWAZULU-NATAL
B134: KZN244 Msinga | C134: KZN KWAZULU-NATAL
B135: KZN245 Umvoti | C135: KZN KWAZULU-NATAL
B136: DC24 Umzinyathi | C136: KZN KWAZULU-NATAL
B137: KZN252 Newcastle | C137: KZN KWAZULU-NATAL
B138: KZN253 eMadlangeni | C138: KZN KWAZULU-NATAL
B139: KZN254 Dannhauser | C139: KZN KWAZULU-NATAL
B140: DC25 Amajuba | C140: KZN KWAZULU-NATAL
B141: KZN261 eDumbe | C141: KZN KWAZULU-NATAL
B142: KZN262 uPhongolo | C142: KZN KWAZULU-NATAL
B143: KZN263 Abaqulusi | C143: KZN KWAZULU-NATAL
B144: KZN265 Nongoma | C144: KZN KWAZULU-NATAL
B145: KZN266 Ulundi | C145: KZN KWAZULU-NATAL
B146: DC26 Zululand | C146: KZN KWAZULU-NATAL
B147: KZN271 Umhlabuyalingana | C147: KZN KWAZULU-NATAL
B148: KZN272 Jozini | C148: KZN KWAZULU-NATAL
B149: KZN273 The Big 5 False Bay | C149: KZN KWAZULU-NATAL
B150: KZN274 Hlabisa | C150: KZN KWAZULU-NATAL
B151: KZN275 Mtubatuba | C151: KZN KWAZULU-NATAL
B152: DC27 Umkhanyakude | C152: KZN KWAZULU-NATAL
B153: KZN281 Mfolozi | C153: KZN KWAZULU-NATAL
B154: KZN282 uMhlathuze | C154: KZN KWAZULU-NATAL
B155: KZN283 Ntambanana | C155: KZN KWAZULU-NATAL
B156: KZN284 uMlalazi | C156: KZN KWAZULU-NATAL
B157: KZN285 Mthonjaneni | C157: KZN KWAZULU-NATAL
B158: KZN286 Nkandla | C158: KZN KWAZULU-NATAL
B159: DC28 uThungulu | C159: KZN KWAZULU-NATAL
B160: KZN291 Mandeni | C160: KZN KWAZULU-NATAL
B161: KZN292 KwaDukuza | C161: KZN KWAZULU-NATAL
B162: KZN293 Ndwedwe | C162: KZN KWAZULU-NATAL
B163: KZN294 Maphumulo | C163: KZN KWAZULU-NATAL
B164: DC29 iLembe | C164: KZN KWAZULU-NATAL
B165: KZN431 Ingwe | C165: KZN KWAZULU-NATAL
B166: KZN432 Kwa Sani | C166: KZN KWAZULU-NATAL
B167: KZN433 Greater Kokstad | C167: KZN KWAZULU-NATAL
B168: KZN434 Ubuhlebezwe | C168: KZN KWAZULU-NATAL
B169: KZN435 Umzimkhulu | C169: KZN KWAZULU-NATAL
B170: DC43 Sisonke | C170: KZN KWAZULU-NATAL
B171: LIM331 Greater Giyani | C171: LIM LIMPOPO
B172: LIM332 Greater Letaba | C172: LIM LIMPOPO
B173: LIM333 Greater Tzaneen | C173: LIM LIMPOPO
B174: LIM334 Ba-Phalaborwa | C174: LIM LIMPOPO
B175: LIM335 Maruleng | C175: LIM LIMPOPO
B176: DC33 Mopani | C176: LIM LIMPOPO
B177: LIM341 Musina | C177: LIM LIMPOPO
B178: LIM342 Mutale | C178: LIM LIMPOPO
B179: LIM343 Thulamela | C179: LIM LIMPOPO
B180: LIM344 Makhado | C180: LIM LIMPOPO
B181: DC34 Vhembe | C181: LIM LIMPOPO
B182: LIM351 Blouberg | C182: LIM LIMPOPO
B183: LIM352 Aganang | C183: LIM LIMPOPO
B184: LIM353 Molemole | C184: LIM LIMPOPO
B185: LIM354 Polokwane | C185: LIM LIMPOPO
B186: LIM355 Lepelle-Nkumpi | C186: LIM LIMPOPO
B187: DC35 Capricorn | C187: LIM LIMPOPO
B188: LIM361 Thabazimbi | C188: LIM LIMPOPO
B189: LIM362 Lephalale | C189: LIM LIMPOPO
B190: LIM364 Mookgopong | C190: LIM LIMPOPO
B191: LIM365 Modimolle | C191: LIM LIMPOPO
B192: LIM366 Bela Bela | C192: LIM LIMPOPO
B193: LIM367 Mogalakwena | C193: LIM LIMPOPO
B194: DC36 Waterberg | C194: LIM LIMPOPO
B195: LIM471 Ephraim Mogale | C195: LIM LIMPOPO
B196: LIM472 Elias Motsoaledi | C196: LIM LIMPOPO
B197: LIM473 Makhuduthamaga | C197: LIM LIMPOPO
B198: LIM474 Fetakgomo | C198: LIM LIMPOPO
B199: LIM475 Greater Tubatse | C199: LIM LIMPOPO
B200: DC47 Sekhukhune | C200: LIM LIMPOPO
B201: MP301 Albert Luthuli | C201: MP MPUMALANGA
B202: MP302 Msukaligwa | C202: MP MPUMALANGA
B203: MP303 Mkhondo | C203: MP MPUMALANGA
B204: MP304 Pixley Ka Seme (MP) | C204: MP MPUMALANGA
B205: MP305 Lekwa | C205: MP MPUMALANGA
B206: MP306 Dipaleseng | C206: MP MPUMALANGA
B207: MP307 Govan Mbeki | C207: MP MPUMALANGA
B208: DC30 Gert Sibande | C208: MP MPUMALANGA
B209: MP311 Victor Khanye | C209: MP MPUMALANGA
B210: MP312 Emalahleni (Mp) | C210: MP MPUMALANGA
B211: MP313 Steve Tshwete | C211: MP MPUMALANGA
B212: MP314 Emakhazeni | C212: MP MPUMALANGA
B213: MP315 Thembisile Hani | C213: MP MPUMALANGA
... 94 more rows

Sheet Org structure
A1: Organisational Structure Votes | C1: Organisational Structure Sub-Votes | E1: Display Sub-Votes
A2: =B2&" - "&C2 -> Vote 1 - Executive and Council | B2: Vote 1 | C2: Executive and Council
A3: =B13&" - "& C13 -> Vote 2 - Budget and Treasury | B3: 1.1 | C3: Executive and Council | D3: =CONCATENATE(B3, " - ", C3) -> 1,1 - Executive and Council | E3: 1,1 - Executive and Council
A4: =B24&" - "&C24 -> Vote 3 - Corporate Services | B4: 1.2 | C4: [Name of sub-vote] | D4: 1.2 - [Name of sub-vote]
A5: =B35&" - "&C35 -> Vote 4 - Planning and Development | B5: 1.3 | C5: [Name of sub-vote] | D5: 1.3 - [Name of sub-vote]
A6: =B46&" - "&C46 -> Vote 5 - Health | B6: 1.4 | C6: [Name of sub-vote] | D6: 1.4 - [Name of sub-vote]
A7: =B57&" - "&C57 -> Vote 6 - Community and Social Services | B7: 1.5 | C7: [Name of sub-vote] | D7: 1.5 - [Name of sub-vote]
A8: =B68&" - "&C68 -> Vote 7 - Housing | B8: 1.6 | C8: [Name of sub-vote] | D8: 1.6 - [Name of sub-vote]
A9: =B79&" - "&C79 -> Vote 8 - Public Safety | B9: 1.7 | C9: [Name of sub-vote] | D9: 1.7 - [Name of sub-vote]
A10: =B90&" - "&C90 -> Vote 9 - Sport and Recreation | B10: 1.8 | C10: [Name of sub-vote] | D10: 1.8 - [Name of sub-vote]
A11: =B101&" - "&C101 -> Vote 10 - Environmental Protection | B11: 1.9 | C11: [Name of sub-vote] | D11: 1.9 - [Name of sub-vote]
A12: =B112&" - "&C112 -> Vote 11 - Solid Waste Management | B12: 1.10 | C12: [Name of sub-vote] | D12: 1.10 - [Name of sub-vote]
A13: =B123&" - "&C123 -> Vote 12 - Waste Water Management | B13: Vote 2 | C13: Budget and Treasury
A14: =B134&" - "&C134 -> Vote 13 - Road Transport | B14: 2.1 | C14: Official Housing | D14: =CONCATENATE(B14, " - ", C14) -> 2,1 - Official Housing | E14: 2,1 - Official Housing
A15: =B145&" - "&C145 -> Vote 14 - Water | B15: 2.2 | C15: Rates | D15: 2,2 - Rates | E15: 2,2 - Rates
A16: =B156&" - "&C156 -> Vote 15 - Electricity | B16: 2.3 | C16: Commonage | D16: 2,3 - Commonage | E16: 2,3 - Commonage
B17: 2.4 | C17: Municipal Buildings | D17: 2,4 - Municipal Buildings | E17: 2,4 - Municipal Buildings
B18: 2.5 | C18: Budget and Treasury Office | D18: 2,5 - Budget and Treasury Office | E18: 2,5 - Budget and Treasury Office
B19: 2.6 | C19: Airport | D19: 2,6 - Airport | E19: 2,6 - Airport
B20: 2.7 | C20: Abattoir | D20: 2,7 - Abattoir | E20: 2,7 - Abattoir
B21: 2.8 | C21: [Name of sub-vote] | D21: 2,8 - [Name of sub-vote]
B22: 2.9 | C22: [Name of sub-vote] | D22: 2,9 - [Name of sub-vote]
B23: 2.10 | C23: [Name of sub-vote] | D23: 2.10 - [Name of sub-vote]
B24: Vote 3 | C24: Corporate Services
B25: 3.1 | C25: Corporate Services | D25: =CONCATENATE(B25, " - ", C25) -> 3,1 - Corporate Services | E25: 3,1 - Corporate Services
B26: 3.2 | C26: [Name of sub-vote] | D26: 3,2 - [Name of sub-vote]
B27: 3.3 | C27: [Name of sub-vote] | D27: 3,3 - [Name of sub-vote]
B28: 3.4 | C28: [Name of sub-vote] | D28: 3,4 - [Name of sub-vote]
B29: 3.5 | C29: [Name of sub-vote] | D29: 3,5 - [Name of sub-vote]
B30: 3.6 | C30: [Name of sub-vote] | D30: 3,6 - [Name of sub-vote]
B31: 3.7 | C31: [Name of sub-vote] | D31: 3,7 - [Name of sub-vote]
B32: 3.8 | C32: [Name of sub-vote] | D32: 3,8 - [Name of sub-vote]
B33: 3.9 | C33: [Name of sub-vote] | D33: 3,9 - [Name of sub-vote]
B34: 3.10 | C34: [Name of sub-vote] | D34: 3.10 - [Name of sub-vote]
B35: Vote 4 | C35: Planning and Development
B36: 4.1 | C36: [Name of sub-vote] | D36: =CONCATENATE(B36, " - ", C36) -> 4,1 - [Name of sub-vote] | E36: 4.1 - [Name of sub-vote]
B37: 4.2 | C37: [Name of sub-vote] | D37: 4,2 - [Name of sub-vote]
B38: 4.3 | C38: [Name of sub-vote] | D38: 4,3 - [Name of sub-vote]
B39: 4.4 | C39: [Name of sub-vote] | D39: 4,4 - [Name of sub-vote]
B40: 4.5 | C40: [Name of sub-vote] | D40: 4,5 - [Name of sub-vote]
B41: 4.6 | C41: [Name of sub-vote] | D41: 4,6 - [Name of sub-vote]
B42: 4.7 | C42: [Name of sub-vote] | D42: 4,7 - [Name of sub-vote]
B43: 4.8 | C43: [Name of sub-vote] | D43: 4,8 - [Name of sub-vote]
B44: 4.9 | C44: [Name of sub-vote] | D44: 4,9 - [Name of sub-vote]
B45: 4.10 | C45: [Name of sub-vote] | D45: 4.10 - [Name of sub-vote]
B46: Vote 5 | C46: Health
B47: 5.1 | C47: Health | D47: =CONCATENATE(B47, " - ", C47) -> 5,1 - Health | E47: 5,1 - Health
B48: 5.2 | C48: Clinics | D48: 5,2 - Clinics | E48: 5,2 - Clinics
B49: 5.3 | C49: [Name of sub-vote] | D49: 5,3 - [Name of sub-vote]
B50: 5.4 | C50: [Name of sub-vote] | D50: 5,4 - [Name of sub-vote]
B51: 5.5 | C51: [Name of sub-vote] | D51: 5,5 - [Name of sub-vote]
B52: 5.6 | C52: [Name of sub-vote] | D52: 5,6 - [Name of sub-vote]
B53: 5.7 | C53: [Name of sub-vote] | D53: 5,7 - [Name of sub-vote]
B54: 5.8 | C54: [Name of sub-vote] | D54: 5,8 - [Name of sub-vote]
B55: 5.9 | C55: [Name of sub-vote] | D55: 5,9 - [Name of sub-vote]
B56: 5.10 | C56: [Name of sub-vote] | D56: 5.10 - [Name of sub-vote]
B57: Vote 6 | C57: Community and Social Services
B58: 6.1 | C58: Cemetry | D58: =CONCATENATE(B58, " - ", C58) -> 6,1 - Cemetry | E58: 6,1 - Cemetry
B59: 6.2 | C59: Library | D59: 6,2 - Library | E59: 6,2 - Library
B60: 6.3 | C60: Museum | D60: 6,3 - Museum | E60: 6,3 - Museum
B61: 6.4 | C61: [Name of sub-vote] | D61: 6,4 - [Name of sub-vote]
B62: 6.5 | C62: [Name of sub-vote] | D62: 6,5 - [Name of sub-vote]
B63: 6.6 | C63: [Name of sub-vote] | D63: 6,6 - [Name of sub-vote]
B64: 6.7 | C64: [Name of sub-vote] | D64: 6,7 - [Name of sub-vote]
B65: 6.8 | C65: [Name of sub-vote] | D65: 6,8 - [Name of sub-vote]
B66: 6.9 | C66: [Name of sub-vote] | D66: 6,9 - [Name of sub-vote]
B67: 6.10 | C67: [Name of sub-vote] | D67: 6.10 - [Name of sub-vote]
B68: Vote 7 | C68: Housing
B69: 7.1 | C69: [Name of sub-vote] | D69: =CONCATENATE(B69, " - ", C69) -> 7,1 - [Name of sub-vote] | E69: 7.1 - [Name of sub-vote]
B70: 7.2 | C70: [Name of sub-vote] | D70: 7,2 - [Name of sub-vote]
B71: 7.3 | C71: [Name of sub-vote] | D71: 7,3 - [Name of sub-vote]
B72: 7.4 | C72: [Name of sub-vote] | D72: 7,4 - [Name of sub-vote]
B73: 7.5 | C73: [Name of sub-vote] | D73: 7,5 - [Name of sub-vote]
B74: 7.6 | C74: [Name of sub-vote] | D74: 7,6 - [Name of sub-vote]
B75: 7.7 | C75: [Name of sub-vote] | D75: 7,7 - [Name of sub-vote]
B76: 7.8 | C76: [Name of sub-vote] | D76: 7,8 - [Name of sub-vote]
B77: 7.9 | C77: [Name of sub-vote] | D77: 7,9 - [Name of sub-vote]
B78: 7.10 | C78: [Name of sub-vote] | D78: 7.10 - [Name of sub-vote]
B79: Vote 8 | C79: Public Safety
B80: 8.1 | C80: Fire Service | D80: =CONCATENATE(B80, " - ", C80) -> 8,1 - Fire Service | E80: 8,1 - Fire Service
B81: 8.2 | C81: Civil Defence | D81: 8,2 - Civil Defence | E81: 8,2 - Civil Defence
B82: 8.3 | C82: Pound | D82: 8,3 - Pound | E82: 8,3 - Pound
B83: 8.4 | C83: [Name of sub-vote] | D83: 8,4 - [Name of sub-vote]
B84: 8.5 | C84: [Name of sub-vote] | D84: 8,5 - [Name of sub-vote]
B85: 8.6 | C85: [Name of sub-vote] | D85: 8,6 - [Name of sub-vote]
B86: 8.7 | C86: [Name of sub-vote] | D86: 8,7 - [Name of sub-vote]
B87: 8.8 | C87: [Name of sub-vote] | D87: 8,8 - [Name of sub-vote]
B88: 8.9 | C88: [Name of sub-vote] | D88: 8,9 - [Name of sub-vote]
B89: 8.10 | C89: [Name of sub-vote] | D89: 8.10 - [Name of sub-vote]
B90: Vote 9 | C90: Sport and Recreation
B91: 9.1 | C91: Nature Reserve | D91: =CONCATENATE(B91, " - ", C91) -> 9,1 - Nature Reserve | E91: 9,1 - Nature Reserve
B92: 9.2 | C92: Parks and Gardens | D92: 9,2 - Parks and Gardens | E92: 9,2 - Parks and Gardens
B93: 9.3 | C93: Swimming Pool | D93: 9,3 - Swimming Pool | E93: 9,3 - Swimming Pool
B94: 9.4 | C94: Caravan Park | D94: 9,4 - Caravan Park | E94: 9,4 - Caravan Park
B95: 9.5 | C95: [Name of sub-vote] | D95: 9,5 - [Name of sub-vote]
B96: 9.6 | C96: [Name of sub-vote] | D96: 9,6 - [Name of sub-vote]
B97: 9.7 | C97: [Name of sub-vote] | D97: 9,7 - [Name of sub-vote]
B98: 9.8 | C98: [Name of sub-vote] | D98: 9,8 - [Name of sub-vote]
B99: 9.9 | C99: [Name of sub-vote] | D99: 9,9 - [Name of sub-vote]
B100: 9.10 | C100: [Name of sub-vote] | D100: 9.10 - [Name of sub-vote]
B101: Vote 10 | C101: Environmental Protection
B102: 10.1 | C102: [Name of sub-vote] | D102: =CONCATENATE(B102, " - ", C102) -> 10,1 - [Name of sub-vote] | E102: 10.1 - [Name of sub-vote]
B103: 10.2 | C103: [Name of sub-vote] | D103: 10,2 - [Name of sub-vote]
B104: 10.3 | C104: [Name of sub-vote] | D104: 10,3 - [Name of sub-vote]
B105: 10.4 | C105: [Name of sub-vote] | D105: 10,4 - [Name of sub-vote]
B106: 10.5 | C106: [Name of sub-vote] | D106: 10,5 - [Name of sub-vote]
B107: 10.6 | C107: [Name of sub-vote] | D107: 10,6 - [Name of sub-vote]
B108: 10.7 | C108: [Name of sub-vote] | D108: 10,7 - [Name of sub-vote]
B109: 10.8 | C109: [Name of sub-vote] | D109: 10,8 - [Name of sub-vote]
B110: 10.9 | C110: [Name of sub-vote] | D110: 10,9 - [Name of sub-vote]
B111: 10.10 | C111: [Name of sub-vote] | D111: 10.10 - [Name of sub-vote]
B112: Vote 11 | C112: Solid Waste Management
B113: 11.1 | C113: Refuse removal | D113: =CONCATENATE(B113, " - ", C113) -> 11,1 - Refuse removal | E113: 11,1 - Refuse removal
B114: 11.2 | C114: [Name of sub-vote] | D114: 11,2 - [Name of sub-vote]
B115: 11.3 | C115: [Name of sub-vote] | D115: 11,3 - [Name of sub-vote]
B116: 11.4 | C116: [Name of sub-vote] | D116: 11,4 - [Name of sub-vote]
B117: 11.5 | C117: [Name of sub-vote] | D117: 11,5 - [Name of sub-vote]
B118: 11.6 | C118: [Name of sub-vote] | D118: 11,6 - [Name of sub-vote]
B119: 11.7 | C119: [Name of sub-vote] | D119: 11,7 - [Name of sub-vote]
B120: 11.8 | C120: [Name of sub-vote] | D120: 11,8 - [Name of sub-vote]
B121: 11.9 | C121: [Name of sub-vote] | D121: 11,9 - [Name of sub-vote]
B122: 11.10 | C122: [Name of sub-vote] | D122: 11.10 - [Name of sub-vote]
B123: Vote 12 | C123: Waste Water Management
B124: 12.1 | C124: Sewerage | D124: =CONCATENATE(B124, " - ", C124) -> 12,1 - Sewerage | E124: 12,1 - Sewerage
B125: 12.2 | C125: [Name of sub-vote] | D125: 12,2 - [Name of sub-vote]
B126: 12.3 | C126: [Name of sub-vote] | D126: 12,3 - [Name of sub-vote]
B127: 12.4 | C127: [Name of sub-vote] | D127: 12,4 - [Name of sub-vote]
B128: 12.5 | C128: [Name of sub-vote] | D128: 12,5 - [Name of sub-vote]
B129: 12.6 | C129: [Name of sub-vote] | D129: 12,6 - [Name of sub-vote]
B130: 12.7 | C130: [Name of sub-vote] | D130: 12,7 - [Name of sub-vote]
B131: 12.8 | C131: [Name of sub-vote] | D131: 12,8 - [Name of sub-vote]
B132: 12.9 | C132: [Name of sub-vote] | D132: 12,9 - [Name of sub-vote]
B133: 12.10 | C133: [Name of sub-vote] | D133: 12.10 - [Name of sub-vote]
B134: Vote 13 | C134: Road Transport
B135: 13.1 | C135: Main Roads | D135: =CONCATENATE(B135, " - ", C135) -> 13,1 - Main Roads | E135: 13,1 - Main Roads
B136: 13.2 | C136: Public Works | D136: 13,2 - Public Works | E136: 13,2 - Public Works
B137: 13.3 | C137: Streets and Pavements | D137: 13,3 - Streets and Pavements | E137: 13,3 - Streets and Pavements
B138: 13.4 | C138: Traffic and licencing | D138: 13,4 - Traffic and licencing | E138: 13,4 - Traffic and licencing
B139: 13.5 | C139: [Name of sub-vote] | D139: 13,5 - [Name of sub-vote]
B140: 13.6 | C140: [Name of sub-vote] | D140: 13,6 - [Name of sub-vote]
B141: 13.7 | C141: [Name of sub-vote] | D141: 13,7 - [Name of sub-vote]
B142: 13.8 | C142: [Name of sub-vote] | D142: 13,8 - [Name of sub-vote]
B143: 13.9 | C143: [Name of sub-vote] | D143: 13,9 - [Name of sub-vote]
B144: 13.10 | C144: [Name of sub-vote] | D144: 13.10 - [Name of sub-vote]
B145: Vote 14 | C145: Water
B146: 14.1 | C146: Water Distribution | D146: =CONCATENATE(B146, " - ", C146) -> 14,1 - Water Distribution | E146: 14,1 - Water Distribution
B147: 14.2 | C147: Water Storage | D147: 14,2 - Water Storage | E147: 14,2 - Water Storage
B148: 14.3 | C148: [Name of sub-vote] | D148: 14,3 - [Name of sub-vote]
B149: 14.4 | C149: [Name of sub-vote] | D149: 14,4 - [Name of sub-vote]
B150: 14.5 | C150: [Name of sub-vote] | D150: 14,5 - [Name of sub-vote]
B151: 14.6 | C151: [Name of sub-vote] | D151: 14,6 - [Name of sub-vote]
B152: 14.7 | C152: [Name of sub-vote] | D152: 14,7 - [Name of sub-vote]
B153: 14.8 | C153: [Name of sub-vote] | D153: 14,8 - [Name of sub-vote]
B154: 14.9 | C154: [Name of sub-vote] | D154: 14,9 - [Name of sub-vote]
B155: 14.10 | C155: [Name of sub-vote] | D155: 14.10 - [Name of sub-vote]
B156: Vote 15 | C156: Electricity
B157: 15.1 | C157: Electricity Administration | D157: =CONCATENATE(B157, " - ", C157) -> 15,1 - Electricity Administration | E157: 15,1 - Electricity Administration
B158: 15.2 | C158: Electricity Distribution | D158: 15,2 - Electricity Distribution | E158: 15,2 - Electricity Distribution
B159: 15.3 | C159: Electricity Generation | D159: 15,3 - Electricity Generation | E159: 15,3 - Electricity Generation
B160: 15.4 | C160: [Name of sub-vote] | D160: 15,4 - [Name of sub-vote]
B161: 15.5 | C161: [Name of sub-vote] | D161: 15,5 - [Name of sub-vote]
B162: 15.6 | C162: [Name of sub-vote] | D162: 15,6 - [Name of sub-vote]
B163: 15.7 | C163: [Name of sub-vote] | D163: 15,7 - [Name of sub-vote]
B164: 15.8 | C164: [Name of sub-vote] | D164: 15,8 - [Name of sub-vote]
B165: 15.9 | C165: [Name of sub-vote] | D165: 15,9 - [Name of sub-vote]
B166: 15.10 | C166: [Name of sub-vote] | D166: 15.10 - [Name of sub-vote]

Sheet Contacts
A1: =muni&" - "&" Contact Information" -> NC074 Kareeberg - Contact Information
A3: A. GENERAL INFORMATION
A4: Municipality | B4: =muni -> NC074 Kareeberg | C4: Set name on 'Instructions' sheet
A6: Grade | B6: 2 | C6: 1 Grade in terms of the Remuneration of Public Office Bearers Act.
A8: Province | B8: =IF(B4>" ",VLOOKUP(B4,'Lookup and lists'!B28:C311,2, FALSE)," ") -> NC NORTHERN CAPE
A10: Web Address | B10: www.kareeberg.co.za
A12: e-mail Address | B12: kareeberg@xsinet.co.za
A14: B. CONTACT INFORMATION
A15: Postal address:
A16: P.O. Box | B16: 10
A17: City / Town | B17: CARNARVON
A18: Postal Code | B18: 8925
A20: Street address
A21: Building
A22: Street No. & Name | B22: Hanau Street
A23: City / Town | B23: CARNARVON
A24: Postal Code | B24: 8925
A26: General Contacts
A27: Telephone number | B27: 053-3823012
A28: Fax number | B28: 053-3823142
A30: C. POLITICAL LEADERSHIP
A31: Speaker: | C31: Secretary/PA to the Speaker:
A32: Name | C32: Name
A33: Telephone number | C33: Telephone number
A34: Cell number | C34: Cell number
A35: Fax number | C35: Fax number
A36: E-mail address | C36: E-mail address
A38: Mayor/Executive Mayor: | C38: Secretary/PA to the Mayor/Executive Mayor:
A39: Name | B39: N.I. Titus | C39: Name
A40: Telephone number | B40: 053-3833053 | C40: Telephone number
A41: Cell number | B41: 0832567311 | C41: Cell number
A42: Fax number | B42: 053-3823142 | C42: Fax number
A43: E-mail address | C43: E-mail address
A45: Deputy Mayor/Executive Mayor: | C45: Secretary/PA to the Deputy Mayor/Executive Mayor:
A46: Name | C46: Name
A47: Telephone number | C47: Telephone number
A48: Cell number | C48: Cell number
A49: Fax number | C49: Fax number
A50: E-mail address | C50: E-mail address
A52: D. MANAGEMENT LEADERSHIP
A53: Municipal Manager: | C53: Secretary/PA to the Municipal Manager:
A54: Name | B54: W. de Bruin | C54: Name
A55: Telephone number | B55: 053-3823012 | C55: Telephone number
A56: Cell number | B56: 0763363003 | C56: Cell number
A57: Fax number | B57: 053-3823142 | C57: Fax number
A58: E-mail address | B58: kareeberg@xsinet.co.za | C58: E-mail address
A60: Chief Financial Officer | C60: Secretary/PA to the Chief Financial Officer
A61: Name | B61: P.B. Rossouw | C61: Name
A62: Telephone number | B62: 053-3823012 | C62: Telephone number
A63: Cell number | B63: 832308617 | C63: Cell number
A64: Fax number | B64: 053-3823142 | C64: Fax number
A65: E-mail address | B65: brennan.rossouw@yahoo.com | C65: E-mail address
A67: Official responsible for submitting financial information
A68: Name | B68: A. van Schalkwyk
A69: Telephone number | B69: 053-3823012
A70: Cell number | B70: 0832308627
A71: Fax number | B71: 053-3823142
A72: E-mail address | B72: kareeberg@xsinet.co.za
A73: Official responsible for submitting financial information
A74: Name | B74: T. de Kock
A75: Telephone number | B75: 053-3823012
A76: Cell number
A77: Fax number | B77: 053-3823142
A78: E-mail address | B78: kareeberg@xsinet.co.za
A79: Official responsible for submitting financial information
A80: Name
A81: Telephone number
A82: Cell number
A83: Fax number
A84: E-mail address

Sheet C1-Sum
A1: =muni& " - "&s71sum& " - "&date -> NC074 Kareeberg - Table C1 Monthly Budget Statement Summary - Mid-Year Assessment
A2: =desc -> Description | B2: =Head1 -> 2014/15 | C2: =Head2 -> Budget Year 2015/16
B3: =Head5 -> Audited Outcome | C3: =Head6 -> Original Budget | D3: =Head7 -> Adjusted Budget | E3: =Head38 -> Monthly actual | F3: =Head39 -> YearTD actual | G3: =Head40 -> YearTD budget | H3: =Head41 -> YTD variance | I3: =Head41 -> YTD variance | J3: =Head8 -> Full Year Forecast
A4: R thousands | I4: %
A5: Financial Performance
A6: Property rates | B6: =SUM('C4-FinPerf RE'!C6:C7) -> 4418317 | C6: =SUM('C4-FinPerf RE'!D6:D7) -> 4543217 | D6: =SUM('C4-FinPerf RE'!E6:E7) -> 4543217 | E6: =SUM('C4-FinPerf RE'!F6:F7) -> 18832.75 | F6: =SUM('C4-FinPerf RE'!G6:G7) -> 4533007.14 | G6: =SUM('C4-FinPerf RE'!H6:H7) -> 4458951 | H6: =F6-G6 -> 74056.14 | I6: =IF(H6=0,"",H6/G6) -> 0.01660842203 | J6: =SUM('C4-FinPerf RE'!K6:K7) -> 4543217
A7: Service charges | B7: =SUM('C4-FinPerf RE'!C8:C12) -> 17949794 | C7: =SUM('C4-FinPerf RE'!D8:D12) -> 19564238 | D7: =SUM('C4-FinPerf RE'!E8:E12) -> 19564238 | E7: =SUM('C4-FinPerf RE'!F8:F12) -> 1542839.68 | F7: =SUM('C4-FinPerf RE'!G8:G12) -> 9678679.63 | G7: =SUM('C4-FinPerf RE'!H8:H12) -> 9267599 | H7: =F7-G7 -> 411080.63 | I7: =IF(H7=0,"",H7/G7) -> 0.04435675626 | J7: =SUM('C4-FinPerf RE'!K8:K12) -> 19564238
A8: Investment revenue | B8: ='C4-FinPerf RE'!C14 -> 1592813 | C8: ='C4-FinPerf RE'!D14 -> 1297000 | D8: ='C4-FinPerf RE'!E14 -> 1297000 | E8: ='C4-FinPerf RE'!F14 -> 294117.91 | F8: ='C4-FinPerf RE'!G14 -> 579642.93 | G8: ='C4-FinPerf RE'!H14 -> 498997 | H8: =F8-G8 -> 80645.93 | I8: =IF(H8=0,"",H8/G8) -> 0.1616160618 | J8: ='C4-FinPerf RE'!K14 -> 1297000
A9: Transfers recognised - operational | B9: ='C4-FinPerf RE'!C20 -> 19551846 | C9: ='C4-FinPerf RE'!D20 -> 23060000 | D9: ='C4-FinPerf RE'!E20 -> 23060000 | E9: ='C4-FinPerf RE'!F20 -> 377872.7 | F9: ='C4-FinPerf RE'!G20 -> 14989386.32 | G9: ='C4-FinPerf RE'!H20 -> 17053000 | H9: =F9-G9 -> -2063613.68 | I9: =IF(H9=0,"",H9/G9) -> -0.121011768 | J9: ='C4-FinPerf RE'!K20 -> 23060000
A10: Other own revenue | B10: ='C4-FinPerf RE'!C13+'C4-FinPerf RE'!C15+'C4-FinPerf RE'!C16+'C4-FinPerf RE'!C17+'C4-FinPerf RE'!C18+'C4-FinPerf RE'!C19+'C4-FinPerf RE'!C21+'C4-FinPerf RE'!C22 -> 3589711 | C10: ='C4-FinPerf RE'!D13+'C4-FinPerf RE'!D15+'C4-FinPerf RE'!D16+'C4-FinPerf RE'!D17+'C4-FinPerf RE'!D18+'C4-FinPerf RE'!D19+'C4-FinPerf RE'!D21+'C4-FinPerf RE'!D22 -> 8891296 | D10: ='C4-FinPerf RE'!E13+'C4-FinPerf RE'!E15+'C4-FinPerf RE'!E16+'C4-FinPerf RE'!E17+'C4-FinPerf RE'!E18+'C4-FinPerf RE'!E19+'C4-FinPerf RE'!E21+'C4-FinPerf RE'!E22 -> 8891296 | E10: ='C4-FinPerf RE'!F13+'C4-FinPerf RE'!F15+'C4-FinPerf RE'!F16+'C4-FinPerf RE'!F17+'C4-FinPerf RE'!F18+'C4-FinPerf RE'!F19+'C4-FinPerf RE'!F21+'C4-FinPerf RE'!F22 -> 84303.92 | F10: ='C4-FinPerf RE'!G13+'C4-FinPerf RE'!G15+'C4-FinPerf RE'!G16+'C4-FinPerf RE'!G17+'C4-FinPerf RE'!G18+'C4-FinPerf RE'!G19+'C4-FinPerf RE'!G21+'C4-FinPerf RE'!G22 -> 746016.42 | G10: ='C4-FinPerf RE'!H13+'C4-FinPerf RE'!H15+'C4-FinPerf RE'!H16+'C4-FinPerf RE'!H17+'C4-FinPerf RE'!H18+'C4-FinPerf RE'!H19+'C4-FinPerf RE'!H21+'C4-FinPerf RE'!H22 -> 1137131.047 | H10: =F10-G10 -> -391114.6266 | I10: =IF(H10=0,"",H10/G10) -> -0.3439485957 | J10: ='C4-FinPerf RE'!K13+'C4-FinPerf RE'!K15+'C4-FinPerf RE'!K16+'C4-FinPerf RE'!K17+'C4-FinPerf RE'!K18+'C4-FinPerf RE'!K19+'C4-FinPerf RE'!K21+'C4-FinPerf RE'!K22 -> 8891296
A11: Total Revenue (excluding capital transfers and contributions) | B11: =SUM(B6:B10) -> 47102481 | C11: 57355751 | D11: 57355751 | E11: 2317966.96 | F11: 30526732.44 | G11: 32415678.05 | H11: =F11-G11 -> -1888945.607 | I11: =IF(H11=0,"",H11/G11) -> -0.05827259278 | J11: 57355751
A12: Employee costs | B12: ='C4-FinPerf RE'!C26 -> 16252967 | C12: ='C4-FinPerf RE'!D26 -> 16881136 | D12: ='C4-FinPerf RE'!E26 -> 16881136 | E12: ='C4-FinPerf RE'!F26 -> 1690794.97 | F12: ='C4-FinPerf RE'!G26 -> 8142598.66 | G12: ='C4-FinPerf RE'!H26 -> 8034060 | H12: 108538.66 | I12: 0.01350981446 | J12: ='C4-FinPerf RE'!K26 -> 16881136
A13: Remuneration of Councillors | B13: ='C4-FinPerf RE'!C27 -> 2020110 | C13: ='C4-FinPerf RE'!D27 -> 2062366 | D13: ='C4-FinPerf RE'!E27 -> 2062366 | E13: ='C4-FinPerf RE'!F27 -> 170027.93 | F13: ='C4-FinPerf RE'!G27 -> 1006539.18 | G13: ='C4-FinPerf RE'!H27 -> 977418 | H13: 29121.18 | I13: 0.02979398783 | J13: ='C4-FinPerf RE'!K27 -> 2062366
A14: Depreciation & asset impairment | B14: ='C4-FinPerf RE'!C29 -> 3045069 | C14: ='C4-FinPerf RE'!D29 -> 4322911 | D14: ='C4-FinPerf RE'!E29 -> 4322911 | E14: ='C4-FinPerf RE'!F29 -> 0 | F14: ='C4-FinPerf RE'!G29 -> 0 | G14: ='C4-FinPerf RE'!H29 -> 0 | H14: 0 | J14: ='C4-FinPerf RE'!K29 -> 4322911
A15: Finance charges | B15: ='C4-FinPerf RE'!C30 -> 873128 | C15: ='C4-FinPerf RE'!D30 -> 831014 | D15: ='C4-FinPerf RE'!E30 -> 831014 | E15: ='C4-FinPerf RE'!F30 -> 0 | F15: ='C4-FinPerf RE'!G30 -> 0 | G15: ='C4-FinPerf RE'!H30 -> 0 | H15: 0 | J15: ='C4-FinPerf RE'!K30 -> 831014
A16: Materials and bulk purchases | B16: =SUM('C4-FinPerf RE'!C31:C32) -> 9412851 | C16: =SUM('C4-FinPerf RE'!D31:D32) -> 10167101 | D16: =SUM('C4-FinPerf RE'!E31:E32) -> 10167101 | E16: =SUM('C4-FinPerf RE'!F31:F32) -> 817284.16 | F16: =SUM('C4-FinPerf RE'!G31:G32) -> 5469624.94 | G16: =SUM('C4-FinPerf RE'!H31:H32) -> 5567164 | H16: -97539.06 | I16: -0.01752042153 | J16: =SUM('C4-FinPerf RE'!K31:K32) -> 10167101
A17: Transfers and grants | B17: ='C4-FinPerf RE'!C34 -> 8018446 | C17: ='C4-FinPerf RE'!D34 -> 9303352 | D17: ='C4-FinPerf RE'!E34 -> 9303352 | E17: ='C4-FinPerf RE'!F34 -> 355336.42 | F17: ='C4-FinPerf RE'!G34 -> 4129091.34 | G17: ='C4-FinPerf RE'!H34 -> 6202234 | H17: -2073142.66 | I17: -0.3342574079 | J17: ='C4-FinPerf RE'!K34 -> 9303352
A18: Other expenditure | B18: ='C4-FinPerf RE'!C37-SUM('C1-Sum'!B12:B17) -> 9715080 | C18: ='C4-FinPerf RE'!D37-SUM('C1-Sum'!C12:C17) -> 15587871 | D18: ='C4-FinPerf RE'!E37-SUM('C1-Sum'!D12:D17) -> 15587871 | E18: ='C4-FinPerf RE'!F37-SUM('C1-Sum'!E12:E17) -> 1052772.75 | F18: ='C4-FinPerf RE'!G37-SUM('C1-Sum'!F12:F17) -> 4818996.313 | G18: ='C4-FinPerf RE'!H37-SUM('C1-Sum'!G12:G17) -> 4332006 | H18: 486990.313 | I18: 0.1124168141 | J18: ='C4-FinPerf RE'!K37-SUM('C1-Sum'!J12:J17) -> 15587871
A19: Total Expenditure | B19: =SUM(B12:B18) -> 49337651 | C19: 59155751 | D19: 59155751 | E19: 4086216.23 | F19: 23566850.43 | G19: 25112882 | H19: -1546031.567 | I19: -0.0615632872 | J19: =SUM(J12:J18) -> 59155751
A20: Surplus/(Deficit) | B20: =B11-B19 -> -2235170 | C20: -1800000 | D20: -1800000 | E20: -1768249.27 | F20: 6959882.007 | G20: 7302796.047 | H20: -342914.0396 | I20: -0.04695654067 | J20: =J11-J19 -> -1800000
A21: Transfers recognised - capital | B21: ='C4-FinPerf RE'!C40 -> 10026174 | C21: ='C4-FinPerf RE'!D40 -> 7928000 | D21: ='C4-FinPerf RE'!E40 -> 7928000 | E21: ='C4-FinPerf RE'!F40 -> 349484.17 | F21: ='C4-FinPerf RE'!G40 -> 3335197.9 | G21: ='C4-FinPerf RE'!H40 -> 7928000 | H21: -4592802.1 | I21: -0.5793140893 | J21: ='C4-FinPerf RE'!K40 -> 7928000
A22: Contributions & Contributed assets | B22: =SUM('C4-FinPerf RE'!C41:C42) -> 0 | C22: =SUM('C4-FinPerf RE'!D41:D42) -> 0 | D22: =SUM('C4-FinPerf RE'!E41:E42) -> 0 | E22: =SUM('C4-FinPerf RE'!F41:F42) -> 0 | F22: =SUM('C4-FinPerf RE'!G41:G42) -> 0 | G22: =SUM('C4-FinPerf RE'!H41:H42) -> 0 | H22: 0 | J22: =SUM('C4-FinPerf RE'!K41:K42) -> 0
A23: Surplus/(Deficit) after capital transfers & contributions | B23: =B20+B21+B22 -> 7791004 | C23: 6128000 | D23: 6128000 | E23: -1418765.1 | F23: 10295079.91 | G23: 15230796.05 | H23: -4935716.14 | I23: -0.3240616002 | J23: =J20+J21+J22 -> 6128000
A24: Share of surplus/ (deficit) of associate | B24: ='C4-FinPerf RE'!C48 -> 0 | C24: ='C4-FinPerf RE'!D48 -> 0 | D24: ='C4-FinPerf RE'!E48 -> 0 | E24: ='C4-FinPerf RE'!F48 -> 0 | F24: ='C4-FinPerf RE'!G48 -> 0 | G24: ='C4-FinPerf RE'!H48 -> 0 | H24: 0 | J24: ='C4-FinPerf RE'!K48 -> 0
A25: Surplus/ (Deficit) for the year | B25: =B23+B24 -> 7791004 | C25: 6128000 | D25: 6128000 | E25: -1418765.1 | F25: 10295079.91 | G25: 15230796.05 | H25: -4935716.14 | I25: -0.3240616002 | J25: =J23+J24 -> 6128000
A27: Capital expenditure & funds sources
A28: Capital expenditure | B28: ='C5-Capex'!C40 -> 10088338 | C28: ='C5-Capex'!D40 -> 7928000 | D28: ='C5-Capex'!E40 -> 7928000 | E28: ='C5-Capex'!F40 -> 350271.71 | F28: ='C5-Capex'!G40 -> 3356728.5 | G28: ='C5-Capex'!H40 -> 7928000 | H28: =F28-G28 -> -4571271.5 | I28: =IF(H28=0,"",H28/G28) -> -0.5765983224 | J28: ='C5-Capex'!K40 -> 7928000
A29: Capital transfers recognised | B29: ='C5-Capex'!C70 -> 10026175 | C29: ='C5-Capex'!D70 -> 7928000 | D29: ='C5-Capex'!E70 -> 7928000 | E29: ='C5-Capex'!F70 -> 349484.17 | F29: ='C5-Capex'!G70 -> 3335197.87 | G29: ='C5-Capex'!H70 -> 7928000 | H29: -4592802.13 | I29: -0.5793140931 | J29: ='C5-Capex'!K70 -> 7928000
A30: Public contributions & donations | B30: ='C5-Capex'!C71 -> 0 | C30: ='C5-Capex'!D71 -> 0 | D30: ='C5-Capex'!E71 -> 0 | E30: ='C5-Capex'!F71 -> 0 | F30: ='C5-Capex'!G71 -> 0 | G30: ='C5-Capex'!H71 -> 0 | H30: 0 | J30: ='C5-Capex'!K71 -> 0
A31: Borrowing | B31: ='C5-Capex'!C72 -> 0 | C31: ='C5-Capex'!D72 -> 0 | D31: ='C5-Capex'!E72 -> 0 | E31: ='C5-Capex'!F72 -> 0 | F31: ='C5-Capex'!G72 -> 0 | G31: ='C5-Capex'!H72 -> 0 | H31: 0 | J31: ='C5-Capex'!K72 -> 0
A32: Internally generated funds | B32: ='C5-Capex'!C73 -> 62163 | C32: ='C5-Capex'!D73 -> 0 | D32: ='C5-Capex'!E73 -> 0 | E32: ='C5-Capex'!F73 -> 787.54 | F32: ='C5-Capex'!G73 -> 21530.6 | G32: ='C5-Capex'!H73 -> 0 | H32: 21530.6 | J32: ='C5-Capex'!K73 -> 0
A33: Total sources of capital funds | B33: =SUM(B29:B32) -> 10088338 | C33: 7928000 | D33: 7928000 | E33: =SUM(E29:E32) -> 350271.71 | F33: =SUM(F29:F32) -> 3356728.47 | G33: =SUM(G29:G32) -> 7928000 | H33: -4571271.53 | I33: -0.5765983262 | J33: 7928000
A35: Financial position
A36: Total current assets | B36: ='C6-FinPos'!C13 -> 24881158 | C36: ='C6-FinPos'!D13 -> 31320426 | D36: ='C6-FinPos'!E13 -> 31320426 | F36: ='C6-FinPos'!F13 -> 36201492.14 | J36: ='C6-FinPos'!G13 -> 31320426
A37: Total non current assets | B37: ='C6-FinPos'!C25 -> 122404370 | C37: ='C6-FinPos'!D25 -> 130628050 | D37: ='C6-FinPos'!E25 -> 130628050 | F37: ='C6-FinPos'!F25 -> 125750500.1 | J37: ='C6-FinPos'!G25 -> 130628050
A38: Total current liabilities | B38: ='C6-FinPos'!C35 -> 5061368 | C38: ='C6-FinPos'!D35 -> 6884596 | D38: ='C6-FinPos'!E35 -> 6884596 | F38: ='C6-FinPos'!F35 -> 9437588.43 | J38: ='C6-FinPos'!G35 -> 6884596
A39: Total non current liabilities | B39: ='C6-FinPos'!C40 -> 10722558 | C39: ='C6-FinPos'!D40 -> 12530249 | D39: ='C6-FinPos'!E40 -> 12530249 | F39: ='C6-FinPos'!F40 -> 10722557.93 | J39: ='C6-FinPos'!G40 -> 12530249
A40: Community wealth/Equity | B40: ='C6-FinPos'!C48 -> 131501602 | C40: ='C6-FinPos'!D48 -> 142533631 | D40: ='C6-FinPos'!E48 -> 142533631 | F40: ='C6-FinPos'!F48 -> 141791845.9 | J40: ='C6-FinPos'!G48 -> 142533631
A42: Cash flows
A43: Net cash from (used) operating | B43: ='C7-CFlow'!C18 -> 9783328 | C43: ='C7-CFlow'!D18 -> 10322921 | D43: ='C7-CFlow'!E18 -> 10322921 | E43: ='C7-CFlow'!F18 -> -2716802.46 | F43: ='C7-CFlow'!G18 -> 12757527.26 | G43: ='C7-CFlow'!H18 -> 13242745.33 | H43: =G43-F43 -> 485218.0733 | I43: =IF(H43=0,"",H43/G43) -> 0.03664029332 | J43: ='C7-CFlow'!K18 -> 10322921
A44: Net cash from (used) investing | B44: ='C7-CFlow'!C28 -> -10034278 | C44: ='C7-CFlow'!D28 -> -7919510 | D44: ='C7-CFlow'!E28 -> -7919510 | E44: ='C7-CFlow'!F28 -> -349665.41 | F44: ='C7-CFlow'!G28 -> -3347035.71 | G44: ='C7-CFlow'!H28 -> -7923796 | H44: =G44-F44 -> -4576760.29 | I44: =IF(H44=0,"",H44/G44) -> 0.5775969359 | J44: ='C7-CFlow'!K28 -> -7919510
A45: Net cash from (used) financing | B45: ='C7-CFlow'!C37 -> 15390 | C45: ='C7-CFlow'!D37 -> 10000 | D45: ='C7-CFlow'!E37 -> 10000 | E45: ='C7-CFlow'!F37 -> 2200 | F45: ='C7-CFlow'!G37 -> 7100 | G45: ='C7-CFlow'!H37 -> 5878 | H45: =G45-F45 -> -1222 | I45: =IF(H45=0,"",H45/G45) -> -0.2078938414 | J45: ='C7-CFlow'!K37 -> 10000
A46: Cash/cash equivalents at the month/year end | B46: ='C7-CFlow'!C41 -> 22376445 | C46: ='C7-CFlow'!D41 -> 25282301 | D46: ='C7-CFlow'!E41 -> 25282301 | E46: ='C7-CFlow'!F41 -> 0 | F46: ='C7-CFlow'!G41 -> 31794036.55 | G46: ='C7-CFlow'!H41 -> 28193717.33 | H46: =G46-F46 -> -3600319.217 | I46: =IF(H46=0,"",H46/G46) -> -0.1276993443 | J46: ='C7-CFlow'!K41 -> 24789856
A48: Debtors & creditors analysis | B48: ='SC3'!C3 -> 0-30 Days | C48: ='SC3'!D3 -> 31-60 Days | D48: ='SC3'!E3 -> 61-90 Days | E48: ='SC3'!F3 -> 91-120 Days | F48: ='SC3'!G3 -> 121-150 Dys | G48: ='SC3'!H3 -> 151-180 Dys | H48: ='SC3'!I3 -> 181 Dys-1 Yr | I48: ='SC3'!J3 -> Over 1Yr | J48: Total
A49: =LEFT('SC3'!A4,20) -> Debtors Age Analysis
A50: ='SC3'!A14 -> Total By Income Source | B50: ='SC3'!C14 -> 2313384.84 | C50: ='SC3'!D14 -> 92781.81 | D50: ='SC3'!E14 -> 130084.72 | E50: ='SC3'!F14 -> 122210.72 | F50: ='SC3'!G14 -> 109424.92 | G50: ='SC3'!H14 -> 4326441.65 | H50: ='SC3'!I14 -> 0 | I50: ='SC3'!J14 -> 0 | J50: ='SC3'!K14 -> 7094328.66
A51: =LEFT('SC4'!A5,22) -> Creditors Age Analysis
A52: Total Creditors | B52: ='SC4'!C15 -> 0 | C52: ='SC4'!D15 -> 0 | D52: ='SC4'!E15 -> 0 | E52: ='SC4'!F15 -> 0 | F52: ='SC4'!G15 -> 0 | G52: ='SC4'!H15 -> 0 | H52: ='SC4'!I15 -> 0 | I52: ='SC4'!J15 -> 0 | J52: ='SC4'!K15 -> 0

Sheet C2-FinPerf SC
A1: =muni& " - "&S71A& " - "&date -> NC074 Kareeberg - Table C2 Monthly Budget Statement - Financial Performance (standard classification) - Mid-Year Assessment
A2: =desc -> Description | B2: =head27 -> Ref | C2: =Head1 -> 2014/15 | D2: =Head2 -> Budget Year 2015/16
C3: =Head5 -> Audited Outcome | D3: =Head6 -> Original Budget | E3: =Head7 -> Adjusted Budget | F3: =Head38 -> Monthly actual | G3: =Head39 -> YearTD actual | H3: =Head40 -> YearTD budget | I3: =Head41 -> YTD variance | J3: =Head41 -> YTD variance | K3: =Head8 -> Full Year Forecast
A4: R thousands | B4: 1 | J4: %
A5: Revenue - Standard
A6: Governance and administration | C6: =SUM(C7:C9) -> 38413952 | D6: 45690838 | E6: 45690838 | F6: 1122101.15 | G6: 24166253.61 | H6: 30713988 | I6: =G6-H6 -> -6547734.39 | J6: =IF(I6=0,"",I6/H6) -> -0.2131841163 | K6: =SUM(K7:K9) -> 45690838
A7: Executive and council | C7: ='C2C'!C7 -> 25693533 | D7: ='C2C'!D7 -> 28108215 | E7: ='C2C'!E7 -> 28108215 | F7: ='C2C'!F7 -> 1022319.53 | G7: ='C2C'!G7 -> 14011254.32 | H7: ='C2C'!H7 -> 22772982 | I7: -8761727.68 | J7: =IF(I7=0,"",I7/H7) -> -0.3847422213 | K7: ='C2C'!K7 -> 28108215
A8: Budget and treasury office | C8: ='C2C'!C10 -> 12720419 | D8: ='C2C'!D10 -> 17582623 | E8: ='C2C'!E10 -> 17582623 | F8: ='C2C'!F10 -> 99781.62 | G8: ='C2C'!G10 -> 10154999.29 | H8: ='C2C'!H10 -> 7941006 | I8: 2213993.29 | J8: 0.2788051401 | K8: ='C2C'!K10 -> 17582623
A9: Corporate services | C9: ='C2C'!C11 -> 0 | D9: ='C2C'!D11 -> 0 | E9: ='C2C'!E11 -> 0 | F9: ='C2C'!F11 -> 0 | G9: ='C2C'!G11 -> 0 | H9: ='C2C'!H11 -> 0 | I9: 0 | K9: ='C2C'!K11 -> 0
A10: Community and public safety | C10: =SUM(C11:C15) -> 69313 | D10: 24755 | E10: 24755 | F10: 1826.8 | G10: 10464.6 | H10: 4816 | I10: 5648.6 | J10: 1.17288206 | K10: =SUM(K11:K15) -> 24755
A11: Community and social services | C11: ='C2C'!C17 -> 13370 | D11: ='C2C'!D17 -> 6650 | E11: ='C2C'!E17 -> 6650 | F11: ='C2C'!F17 -> 1614.8 | G11: ='C2C'!G17 -> 9098.6 | H11: ='C2C'!H17 -> 2978 | I11: 6120.6 | J11: 2.055271995 | K11: ='C2C'!K17 -> 6650
A12: Sport and recreation | C12: ='C2C'!C26 -> 55323 | D12: ='C2C'!D26 -> 17400 | E12: ='C2C'!E26 -> 17400 | F12: ='C2C'!F26 -> 212 | G12: ='C2C'!G26 -> 1316 | H12: ='C2C'!H26 -> 1136 | I12: 180 | J12: 0.1584507042 | K12: ='C2C'!K26 -> 17400
A13: Public safety | C13: ='C2C'!C27 -> 620 | D13: ='C2C'!D27 -> 705 | E13: ='C2C'!E27 -> 705 | F13: ='C2C'!F27 -> 0 | G13: ='C2C'!G27 -> 50 | H13: ='C2C'!H27 -> 702 | I13: -652 | J13: -0.9287749288 | K13: ='C2C'!K27 -> 705
A14: Housing | C14: ='C2C'!C33 -> 0 | D14: ='C2C'!D33 -> 0 | E14: ='C2C'!E33 -> 0 | F14: ='C2C'!F33 -> 0 | G14: ='C2C'!G33 -> 0 | H14: ='C2C'!H33 -> 0 | I14: =G14-H14 -> 0 | J14: =IF(I14=0,"",I14/H14) ->  | K14: ='C2C'!K33 -> 0
A15: Health | C15: ='C2C'!C34 -> 0 | D15: ='C2C'!D34 -> 0 | E15: ='C2C'!E34 -> 0 | F15: ='C2C'!F34 -> 0 | G15: ='C2C'!G34 -> 0 | H15: ='C2C'!H34 -> 0 | I15: 0 | K15: ='C2C'!K34 -> 0
A16: Economic and environmental services | C16: =SUM(C17:C19) -> 6050 | D16: 2000 | E16: 2000 | F16: 410 | G16: 5100 | H16: 1223 | I16: 3877 | J16: 3.17007359 | K16: =SUM(K17:K19) -> 2000
A17: Planning and development | C17: ='C2C'!C39 -> 0 | D17: ='C2C'!D39 -> 0 | E17: ='C2C'!E39 -> 0 | F17: ='C2C'!F39 -> 0 | G17: ='C2C'!G39 -> 0 | H17: ='C2C'!H39 -> 0 | I17: 0 | K17: ='C2C'!K39 -> 0
A18: Road transport | C18: ='C2C'!C43 -> 6050 | D18: ='C2C'!D43 -> 2000 | E18: ='C2C'!E43 -> 2000 | F18: ='C2C'!F43 -> 410 | G18: ='C2C'!G43 -> 5100 | H18: ='C2C'!H43 -> 1223 | I18: 3877 | J18: 3.17007359 | K18: ='C2C'!K43 -> 2000
A19: Environmental protection | C19: ='C2C'!C49 -> 0 | D19: ='C2C'!D49 -> 0 | E19: ='C2C'!E49 -> 0 | F19: ='C2C'!F49 -> 0 | G19: ='C2C'!G49 -> 0 | H19: ='C2C'!H49 -> 0 | I19: 0 | K19: ='C2C'!K49 -> 0
A20: Trading services | C20: =SUM(C21:C24) -> 18639340 | D20: =SUM(D21:D24) -> 19566158 | E20: 19566158 | F20: 1548442.8 | G20: 9385411.83 | H20: 9313329 | I20: 72082.83 | J20: 0.007739749127 | K20: =SUM(K21:K24) -> 19566158
A21: Electricity | C21: ='C2C'!C54 -> 7617994 | D21: ='C2C'!D54 -> 8590910 | E21: ='C2C'!E54 -> 8590910 | F21: ='C2C'!F54 -> 677855.62 | G21: ='C2C'!G54 -> 4339443.8 | H21: ='C2C'!H54 -> 4241318 | I21: =G21-H21 -> 98125.8 | J21: 0.02313568565 | K21: ='C2C'!K54 -> 8590910
A22: Water | C22: ='C2C'!C57 -> 4319052 | D22: ='C2C'!D57 -> 4522536 | E22: ='C2C'!E57 -> 4522536 | F22: ='C2C'!F57 -> 362623.2 | G22: ='C2C'!G57 -> 2200150.24 | H22: ='C2C'!H57 -> 2181577 | I22: =G22-H22 -> 18573.24 | J22: 0.008513676116 | K22: ='C2C'!K57 -> 4522536
A23: Waste water management | C23: ='C2C'!C60 -> 3285586 | D23: ='C2C'!D60 -> 2695568 | E23: ='C2C'!E60 -> 2695568 | F23: ='C2C'!F60 -> 207934.06 | G23: ='C2C'!G60 -> 1331558.91 | H23: ='C2C'!H60 -> 1333320 | I23: =G23-H23 -> -1761.09 | J23: -0.001320830708 | K23: ='C2C'!K60 -> 2695568
A24: Waste management | C24: ='C2C'!C64 -> 3416708 | D24: ='C2C'!D64 -> 3757144 | E24: ='C2C'!E64 -> 3757144 | F24: ='C2C'!F64 -> 300029.92 | G24: ='C2C'!G64 -> 1514258.88 | H24: ='C2C'!H64 -> 1557114 | I24: =G24-H24 -> -42855.12 | J24: -0.02752214674 | K24: ='C2C'!K64 -> 3757144
A25: Other | B25: 4 | C25: ='C2C'!C66 -> 0 | D25: ='C2C'!D66 -> 0 | E25: ='C2C'!E66 -> 0 | F25: ='C2C'!F66 -> 0 | G25: ='C2C'!G66 -> 0 | H25: ='C2C'!H66 -> 0 | I25: =G25-H25 -> 0 | K25: ='C2C'!K66 -> 0
A26: Total Revenue - Standard | B26: 2 | C26: =C6+C10+C16+C20+C25 -> 57128655 | D26: =D6+D10+D16+D20+D25 -> 65283751 | E26: 65283751 | F26: 2672780.75 | G26: 33567230.04 | H26: 40033356 | I26: -6466125.96 | J26: -0.1615184588 | K26: =K6+K10+K16+K20+K25 -> 65283751
A28: Expenditure - Standard
A29: =A6 -> Governance and administration | C29: =SUM(C30:C32) -> 28026898 | D29: 35327396 | E29: 35327396 | F29: 2430338.9 | G29: 13468523.9 | H29: 15311404 | I29: =G29-H29 -> -1842880.1 | J29: =IF(I29=0,"",I29/H29) -> -0.1203599683 | K29: =SUM(K30:K32) -> 35327396
A30: =A7 -> Executive and council | C30: ='C2C'!C76 -> 18558951 | D30: ='C2C'!D76 -> 23078495 | E30: ='C2C'!E76 -> 23078495 | F30: ='C2C'!F76 -> 1110656.61 | G30: ='C2C'!G76 -> 8537917.08 | H30: ='C2C'!H76 -> 9242734 | I30: -704816.92 | J30: =IF(I30=0,"",I30/H30) -> -0.07625632416 | K30: ='C2C'!K76 -> 23078495
A31: Budget and treasury office | C31: ='C2C'!C79 -> 7626701 | D31: ='C2C'!D79 -> 9512394 | E31: ='C2C'!E79 -> 9512394 | F31: ='C2C'!F79 -> 1131425.64 | G31: ='C2C'!G79 -> 3824968.86 | H31: ='C2C'!H79 -> 4931138 | I31: -1106169.14 | J31: -0.2243232982 | K31: ='C2C'!K79 -> 9512394
A32: Corporate services | C32: ='C2C'!C80 -> 1841246 | D32: ='C2C'!D80 -> 2736507 | E32: ='C2C'!E80 -> 2736507 | F32: ='C2C'!F80 -> 188256.65 | G32: ='C2C'!G80 -> 1105637.96 | H32: ='C2C'!H80 -> 1137532 | I32: -31894.04 | J32: -0.02803792772 | K32: ='C2C'!K80 -> 2736507
A33: Community and public safety | C33: =SUM(C34:C38) -> 1853694 | D33: 2223854 | E33: 2223854 | F33: 148450.21 | G33: 948981.1 | H33: 919708 | I33: 29273.1 | J33: 0.03182868911 | K33: =SUM(K34:K38) -> 2223854
A34: Community and social services | C34: ='C2C'!C86 -> 1063260 | D34: ='C2C'!D86 -> 1374982 | E34: ='C2C'!E86 -> 1374982 | F34: ='C2C'!F86 -> 104498.64 | G34: ='C2C'!G86 -> 623535.65 | H34: ='C2C'!H86 -> 600833 | I34: 22702.65 | J34: 0.03778529142 | K34: ='C2C'!K86 -> 1374982
A35: Sport and recreation | C35: ='C2C'!C95 -> 703500 | D35: ='C2C'!D95 -> 724964 | E35: ='C2C'!E95 -> 724964 | F35: ='C2C'!F95 -> 41607.52 | G35: ='C2C'!G95 -> 265112.25 | H35: ='C2C'!H95 -> 277915 | I35: -12802.75 | J35: -0.04606714283 | K35: ='C2C'!K95 -> 724964
A36: Public safety | C36: ='C2C'!C96 -> 56578 | D36: ='C2C'!D96 -> 74942 | E36: ='C2C'!E96 -> 74942 | F36: ='C2C'!F96 -> 1346.3 | G36: ='C2C'!G96 -> 56742.55 | H36: ='C2C'!H96 -> 34947 | I36: 21795.55 | J36: 0.6236744213 | K36: ='C2C'!K96 -> 74942
A37: Housing | C37: ='C2C'!C102 -> 0 | D37: ='C2C'!D102 -> 0 | E37: ='C2C'!E102 -> 0 | F37: ='C2C'!F102 -> 0 | G37: ='C2C'!G102 -> 0 | H37: ='C2C'!H102 -> 0 | I37: 0 | K37: ='C2C'!K102 -> 0
A38: Health | C38: ='C2C'!C103 -> 30356 | D38: ='C2C'!D103 -> 48966 | E38: ='C2C'!E103 -> 48966 | F38: ='C2C'!F103 -> 997.75 | G38: ='C2C'!G103 -> 3590.65 | H38: ='C2C'!H103 -> 6013 | I38: -2422.35 | J38: -0.4028521537 | K38: ='C2C'!K103 -> 48966
A39: Economic and environmental services | C39: =SUM(C40:C42) -> 2959895 | D39: 3382043 | E39: 3382043 | F39: 175060.13 | G39: 1110227.86 | H39: 1170488 | I39: -60260.14 | J39: -0.05148291994 | K39: =SUM(K40:K42) -> 3382043
A40: Planning and development | C40: ='C2C'!C108 -> 0 | D40: ='C2C'!D108 -> 0 | E40: ='C2C'!E108 -> 0 | F40: ='C2C'!F108 -> 0 | G40: ='C2C'!G108 -> 0 | H40: ='C2C'!H108 -> 0 | I40: 0 | K40: ='C2C'!K108 -> 0
A41: Road transport | C41: ='C2C'!C112 -> 2959895 | D41: ='C2C'!D112 -> 3382043 | E41: ='C2C'!E112 -> 3382043 | F41: ='C2C'!F112 -> 175060.13 | G41: ='C2C'!G112 -> 1110227.86 | H41: ='C2C'!H112 -> 1170488 | I41: -60260.14 | J41: -0.05148291994 | K41: ='C2C'!K112 -> 3382043
A42: Environmental protection | C42: ='C2C'!C118 -> 0 | D42: ='C2C'!D118 -> 0 | E42: ='C2C'!E118 -> 0 | F42: ='C2C'!F118 -> 0 | G42: ='C2C'!G118 -> 0 | H42: ='C2C'!H118 -> 0 | I42: 0 | K42: ='C2C'!K118 -> 0
A43: Trading services | C43: =SUM(C44:C47) -> 16497164 | D43: =SUM(D44:D47) -> 18222458 | E43: 18222458 | F43: 1332366.99 | G43: 8039117.573 | H43: 7711282 | I43: 327835.573 | J43: 0.0425137575 | K43: =SUM(K44:K47) -> 18222458
A44: Electricity | C44: ='C2C'!C123 -> 9197390 | D44: ='C2C'!D123 -> 10352736 | E44: ='C2C'!E123 -> 10352736 | F44: ='C2C'!F123 -> 761812.61 | G44: ='C2C'!G123 -> 5046711.62 | H44: ='C2C'!H123 -> 5067579 | I44: -20867.38 | J44: -0.004117820364 | K44: ='C2C'!K123 -> 10352736
A45: Water | C45: ='C2C'!C126 -> 1205173 | D45: ='C2C'!D126 -> 1395523 | E45: ='C2C'!E126 -> 1395523 | F45: ='C2C'!F126 -> 68351.55 | G45: ='C2C'!G126 -> 646357.93 | H45: ='C2C'!H126 -> 470911 | I45: 175446.93 | J45: 0.3725691904 | K45: ='C2C'!K126 -> 1395523
A46: Waste water management | C46: ='C2C'!C129 -> 3146943 | D46: ='C2C'!D129 -> 3344414 | E46: ='C2C'!E129 -> 3344414 | F46: ='C2C'!F129 -> 485298.99 | G46: ='C2C'!G129 -> 2194553.553 | H46: ='C2C'!H129 -> 2001088 | I46: 193465.553 | J46: 0.09668018248 | K46: ='C2C'!K129 -> 3344414
A47: Waste management | C47: ='C2C'!C133 -> 2947658 | D47: ='C2C'!D133 -> 3129785 | E47: ='C2C'!E133 -> 3129785 | F47: ='C2C'!F133 -> 16903.84 | G47: ='C2C'!G133 -> 151494.47 | H47: ='C2C'!H133 -> 171704 | I47: -20209.53 | J47: -0.1176998206 | K47: ='C2C'!K133 -> 3129785
A48: Other | C48: ='C2C'!C135 -> 0 | D48: ='C2C'!D135 -> 0 | E48: ='C2C'!E135 -> 0 | F48: ='C2C'!F135 -> 0 | G48: ='C2C'!G135 -> 0 | H48: ='C2C'!H135 -> 0 | I48: 0 | K48: ='C2C'!K135 -> 0
A49: Total Expenditure - Standard | B49: 3 | C49: =C29+C33+C39+C43+C48 -> 49337651 | D49: =D29+D33+D39+D43+D48 -> 59155751 | E49: 59155751 | F49: 4086216.23 | G49: 23566850.43 | H49: 25112882 | I49: -1546031.567 | J49: -0.0615632872 | K49: =K29+K33+K39+K43+K48 -> 59155751
A50: Surplus/ (Deficit) for the year | C50: =C26-C49 -> 7791004 | D50: 6128000 | E50: 6128000 | F50: -1413435.48 | G50: 10000379.61 | H50: 14920474 | I50: =I26-I49 -> -4920094.393 | J50: =IF(I50=0,"",I50/H50) -> -0.3297545636 | K50: =K26-K49 -> 6128000
A51: =head27a -> References
A52: 1. Government Finance Statistics Functions and Sub-functions are standardised to assist the compilation of national and international accounts for comparison purposes
A53: 2. Total Revenue by standard classification must reconcile to Total Operating Revenue shown in the Financial Performance Statement
A54: 3. Total Expenditure by standard classification must reconcile to total operating expenditure shown in 'Financial Performance Statement'
A55: 4. All amounts must be classified under a standard classification (modified GFS). The GFS function 'Other' is only for Abbatoirs, Air Transport, Markets and Tourism - and if used must be supported by footnotes. Nothing else may be placed under 'Other'. Assign associate share to relevant classification

Sheet C2C
A1: =muni& " - "&S71A& " - "&date -> NC074 Kareeberg - Table C2 Monthly Budget Statement - Financial Performance (standard classification) - Mid-Year Assessment
A2: =desc -> Description | B2: =head27 -> Ref | C2: =Head1 -> 2014/15 | D2: =Head2 -> Budget Year 2015/16
C3: =Head5 -> Audited Outcome | D3: =Head6 -> Original Budget | E3: =Head7 -> Adjusted Budget | F3: =Head38 -> Monthly actual | G3: =Head39 -> YearTD actual | H3: =Head40 -> YearTD budget | I3: =Head41 -> YTD variance | J3: =Head41 -> YTD variance | K3: =Head8 -> Full Year Forecast
A4: R thousands | B4: 1 | J4: %
A5: Revenue - Standard
A6: Municipal governance and administration | C6: =C7+C10+C11 -> 38413952 | D6: =D7+D10+D11 -> 45690838 | E6: 45690838 | F6: 1122101.15 | G6: 24166253.61 | H6: 30713988 | I6: =G6-H6 -> -6547734.39 | J6: =IF(I6=0,"",I6/H6) -> -0.2131841163 | K6: 45690838
A7: Executive and council | C7: =SUM(C8:C9) -> 25693533 | D7: =SUM(D8:D9) -> 28108215 | E7: 28108215 | F7: 1022319.53 | G7: 14011254.32 | H7: 22772982 | I7: =G7-H7 -> -8761727.68 | J7: =IF(I7=0,"",I7/H7) -> -0.3847422213 | K7: 28108215
A8: Mayor and Council | C8: 25693533 | D8: 28108215 | E8: 28108215 | F8: 1022319.53 | G8: 14011254.32 | H8: 22772982 | I8: -8761727.68 | J8: -0.3847422213 | K8: 28108215
A9: Municipal Manager | D9: 0 | E9: 0 | F9: 0 | G9: 0 | I9: 0 | K9: 0
A10: Budget and treasury office | C10: 12720419 | D10: 17582623 | E10: 17582623 | F10: 99781.62 | G10: 10154999.29 | H10: 7941006 | I10: 2213993.29 | J10: 0.2788051401 | K10: 17582623
A11: Corporate services | C11: =SUM(C12:C15) -> 0 | D11: =SUM(D12:D15) -> 0 | E11: 0 | F11: 0 | G11: 0 | H11: 0 | I11: 0 | K11: 0
A12: Human Resources | F12: 0 | G12: 0 | H12: 0 | I12: 0
A13: Information Technology | F13: 0 | G13: 0 | I13: 0
A14: Property Services | F14: 0 | G14: 0 | I14: 0
A15: Other Admin | F15: 0 | G15: 0 | I15: 0
A16: Community and public safety | C16: =C17+C26+C27+C33+C34 -> 69313 | D16: =D17+D26+D27+D33+D34 -> 24755 | E16: 24755 | F16: 1826.8 | G16: 10464.6 | H16: 4816 | I16: 5648.6 | J16: 1.17288206 | K16: 24755
A17: Community and social services | C17: =SUM(C18:C25) -> 13370 | D17: =SUM(D18:D25) -> 6650 | E17: 6650 | F17: 1614.8 | G17: 9098.6 | H17: 2978 | I17: 6120.6 | J17: 2.055271995 | K17: 6650
A18: Libraries and Archives | C18: 2920 | D18: 730 | E18: 730 | F18: 64.8 | G18: 753.6 | H18: 2978 | I18: -2224.4 | J18: -0.7469442579 | K18: 730
A19: Museums & Art Galleries etc | C19: 0 | D19: 0 | E19: 0 | F19: 0 | G19: 0 | I19: 0 | K19: 0
A20: Community halls and Facilities | D20: 0 | E20: 0 | F20: 0 | G20: 0 | I20: 0 | K20: 0
A21: Cemeteries & Crematoriums | C21: 10450 | D21: 5920 | E21: 5920 | F21: 1550 | G21: 8345 | I21: 8345 | K21: 5920
A22: Child Care | D22: 0 | E22: 0 | F22: 0 | G22: 0 | I22: 0 | K22: 0
A23: Aged Care | D23: 0 | E23: 0 | F23: 0 | G23: 0 | I23: 0 | K23: 0
A24: Other Community | D24: 0 | E24: 0 | F24: 0 | G24: 0 | I24: 0 | K24: 0
A25: Other Social | D25: 0 | E25: 0 | F25: 0 | G25: 0 | I25: 0 | K25: 0
A26: Sport and recreation | C26: 55323 | D26: 17400 | E26: 17400 | F26: 212 | G26: 1316 | H26: 1136 | I26: 180 | J26: 0.1584507042 | K26: 17400
A27: Public safety | C27: =SUM(C28:C32) -> 620 | D27: =SUM(D28:D32) -> 705 | E27: 705 | F27: 0 | G27: 50 | H27: 702 | I27: -652 | J27: -0.9287749288 | K27: 705
A28: Police | D28: 0 | E28: 0 | F28: 0 | G28: 0 | H28: 702 | I28: -702 | J28: -1
A29: Fire | C29: 0 | D29: 0 | E29: 0 | F29: 0 | G29: 0 | I29: 0
A30: Civil Defence | C30: 0 | D30: 0 | E30: 0 | F30: 0 | G30: 0 | I30: 0
A31: Street Lighting | D31: 0 | E31: 0 | F31: 0 | G31: 0 | I31: 0
A32: Other | C32: 620 | D32: 705 | E32: 705 | F32: 0 | G32: 50 | I32: 50 | K32: 705
A33: Housing | I33: 0
A34: Health | C34: =SUM(C35:C37) -> 0 | D34: =SUM(D35:D37) -> 0 | E34: 0 | F34: 0 | G34: 0 | H34: 0 | I34: 0 | K34: 0
A35: Clinics | F35: 0 | G35: 0 | H35: 0 | I35: 0
A36: Ambulance | F36: 0 | G36: 0 | I36: 0
A37: Other | F37: 0 | G37: 0 | I37: 0
A38: Economic and environmental services | C38: =C39+C43+C49 -> 6050 | D38: =D39+D43+D49 -> 2000 | E38: 2000 | F38: 410 | G38: 5100 | H38: 1223 | I38: 3877 | J38: 3.17007359 | K38: 2000
A39: Planning and development | C39: =SUM(C40:C42) -> 0 | D39: =SUM(D40:D42) -> 0 | E39: 0 | F39: 0 | G39: 0 | H39: 0 | I39: 0 | K39: 0
A40: Economic Development/Planning | F40: 0 | G40: 0 | H40: 0 | I40: 0
A41: Town Planning/Building enforcement | F41: 0 | G41: 0 | I41: 0
A42: Licensing & Regulation | F42: 0 | G42: 0 | I42: 0
A43: Road transport | C43: =SUM(C44:C48) -> 6050 | D43: =SUM(D44:D48) -> 2000 | E43: 2000 | F43: 410 | G43: 5100 | H43: 1223 | I43: 3877 | J43: 3.17007359 | K43: 2000
A44: Roads | C44: 0 | D44: 400 | E44: 400 | F44: 0 | G44: 0 | H44: 1223 | I44: -1223 | J44: -1 | K44: 400
A45: Public Buses | D45: 0 | E45: 0 | F45: 0 | G45: 0 | I45: 0 | K45: 0
A46: Parking Garages | D46: 0 | E46: 0 | F46: 0 | G46: 0 | I46: 0 | K46: 0
A47: Vehicle Licensing and Testing | C47: 5400 | D47: 1500 | E47: 1500 | F47: 360 | G47: 4800 | I47: 4800 | K47: 1500
A48: Other | C48: 650 | D48: 100 | E48: 100 | F48: 50 | G48: 300 | I48: 300 | K48: 100
A49: Environmental protection | C49: =SUM(C50:C52) -> 0 | D49: =SUM(D50:D52) -> 0 | E49: 0 | F49: 0 | G49: 0 | H49: 0 | I49: 0 | K49: 0
A50: Pollution Control | F50: 0 | G50: 0 | H50: 0 | I50: 0
A51: Biodiversity & Landscape | F51: 0 | G51: 0 | I51: 0
A52: Other | F52: 0 | G52: 0 | I52: 0
A53: Trading services | C53: =C54+C57+C60+C64 -> 18639340 | D53: =D54+D57+D60+D64 -> 19566158 | E53: 19566158 | F53: 1548442.8 | G53: 9385411.83 | H53: 9313329 | I53: 72082.83 | J53: 0.007739749127 | K53: =K54+K57+K60+K64 -> 19566158
A54: Electricity | C54: =SUM(C55:C56) -> 7617994 | D54: =SUM(D55:D56) -> 8590910 | E54: 8590910 | F54: 677855.62 | G54: 4339443.8 | H54: 4241318 | I54: 98125.8 | J54: 0.02313568565 | K54: 8590910
A55: Electricity Distribution | C55: 7617994 | D55: 8590910 | E55: 8590910 | F55: 677855.62 | G55: 4339443.8 | H55: 4241318 | I55: 98125.8 | J55: 0.02313568565 | K55: 8590910
A56: Electricity Generation | F56: 0 | G56: 0 | I56: 0
A57: Water | C57: =SUM(C58:C59) -> 4319052 | D57: =SUM(D58:D59) -> 4522536 | E57: 4522536 | F57: 362623.2 | G57: 2200150.24 | H57: 2181577 | I57: 18573.24 | J57: 0.008513676116 | K57: 4522536
A58: Water Distribution | C58: 0 | D58: 0 | E58: 0 | F58: 0 | G58: 0 | H58: 2181577 | I58: -2181577 | J58: -1 | K58: 0
A59: Water Storage | C59: 4319052 | D59: 4522536 | E59: 4522536 | F59: 362623.2 | G59: 2200150.24 | I59: 2200150.24 | K59: 4522536
A60: Waste water management | C60: =SUM(C61:C63) -> 3285586 | D60: =SUM(D61:D63) -> 2695568 | E60: 2695568 | F60: 207934.06 | G60: 1331558.91 | H60: 1333320 | I60: -1761.09 | J60: -0.001320830708 | K60: 2695568
A61: Sewerage | C61: 3285586 | D61: 2695568 | E61: 2695568 | F61: 207934.06 | G61: 1331558.91 | H61: 1333320 | I61: -1761.09 | J61: -0.001320830708 | K61: 2695568
A62: Storm Water Management | F62: 0 | G62: 0 | I62: 0
A63: Public Toilets | F63: 0 | G63: 0 | I63: 0
A64: Waste management | C64: =SUM(C65) -> 3416708 | D64: =SUM(D65) -> 3757144 | E64: 3757144 | F64: 300029.92 | G64: 1514258.88 | H64: 1557114 | I64: -42855.12 | J64: -0.02752214674 | K64: 3757144
A65: Solid Waste | C65: 3416708 | D65: 3757144 | E65: 3757144 | F65: 300029.92 | G65: 1514258.88 | H65: 1557114 | I65: -42855.12 | J65: -0.02752214674 | K65: 3757144
A66: Other | C66: =SUM(C67:C71) -> 0 | D66: =SUM(D67:D71) -> 0 | E66: 0 | F66: 0 | G66: 0 | H66: 0 | I66: 0 | K66: 0
A67: Air Transport | F67: 0 | G67: 0 | I67: 0
A68: Abattoirs | F68: 0 | G68: 0 | I68: 0
A69: Tourism | F69: 0 | G69: 0 | I69: 0
A70: Forestry | F70: 0 | G70: 0 | I70: 0
A71: Markets | F71: 0 | G71: 0 | I71: =G71-H71 -> 0 | J71: =IF(I71=0,"",I71/H71) -> 
A72: ="Total "&A5 -> Total Revenue - Standard | B72: 2 | C72: =C6+C16+C38+C53+C66 -> 57128655 | D72: 65283751 | E72: 65283751 | F72: 2672780.75 | G72: 33567230.04 | H72: 40033356 | I72: =G72-H72 -> -6466125.96 | J72: =IF(I72=0,"",I72/H72) -> -0.1615184588 | K72: =K6+K16+K38+K53+K66 -> 65283751
A74: Expenditure - Standard
A75: =A6 -> Municipal governance and administration | C75: =C76+C79+C80 -> 28026898 | D75: 35327396 | E75: 35327396 | F75: 2430338.9 | G75: 13468523.9 | H75: 15311404 | I75: =G75-H75 -> -1842880.1 | J75: =IF(I75=0,"",I75/H75) -> -0.1203599683 | K75: 35327396
A76: =A7 -> Executive and council | C76: =SUM(C77:C78) -> 18558951 | D76: 23078495 | E76: 23078495 | F76: 1110656.61 | G76: 8537917.08 | H76: 9242734 | I76: -704816.92 | J76: -0.07625632416 | K76: 23078495
A77: Mayor and Council | C77: 18558951 | D77: 23078495 | E77: 23078495 | F77: 1110656.61 | G77: 8537917.08 | H77: 9242734 | I77: -704816.92 | J77: -0.07625632416 | K77: 23078495
A78: Municipal Manager | D78: 0 | E78: 0 | F78: 0 | G78: 0 | I78: 0 | K78: 0
A79: Budget and treasury office | C79: 7626701 | D79: 9512394 | E79: 9512394 | F79: 1131425.64 | G79: 3824968.86 | H79: 4931138 | I79: -1106169.14 | J79: -0.2243232982 | K79: 9512394
A80: Corporate services | C80: =SUM(C81:C84) -> 1841246 | D80: 2736507 | E80: 2736507 | F80: 188256.65 | G80: 1105637.96 | H80: 1137532 | I80: -31894.04 | J80: -0.02803792772 | K80: 2736507
A81: Human Resources | C81: 1841246 | D81: 2736507 | E81: 2736507 | F81: 188256.65 | G81: 1105637.96 | H81: 1137532 | I81: -31894.04 | J81: -0.02803792772 | K81: 2736507
A82: Information Technology | F82: 0 | G82: 0 | I82: 0
A83: Property Services | F83: 0 | G83: 0 | I83: 0
A84: Other Admin | F84: 0 | G84: 0 | I84: 0
A85: Community and public safety | C85: =C86+C95+C96+C102+C103 -> 1853694 | D85: 2223854 | E85: 2223854 | F85: 148450.21 | G85: 948981.1 | H85: 919708 | I85: 29273.1 | J85: 0.03182868911 | K85: 2223854
A86: Community and social services | C86: =SUM(C87:C94) -> 1063260 | D86: 1374982 | E86: 1374982 | F86: 104498.64 | G86: 623535.65 | H86: 600833 | I86: 22702.65 | J86: 0.03778529142 | K86: 1374982
A87: Libraries and Archives | C87: 837061 | D87: 1144471 | E87: 1144471 | F87: 84664.41 | G87: 507690.3 | H87: 600833 | I87: -93142.7 | J87: -0.1550226103 | K87: 1144471
A88: Museums & Art Galleries etc | C88: 33132 | D88: 34739 | E88: 34739 | F88: 1420.08 | G88: 7288.48 | I88: 7288.48 | K88: 34739
A89: Community halls and Facilities | D89: 0 | E89: 0 | F89: 0 | G89: 0 | I89: 0 | K89: 0
A90: Cemeteries & Crematoriums | C90: 193067 | D90: 195772 | E90: 195772 | F90: 18414.15 | G90: 108556.87 | I90: 108556.87 | K90: 195772
A91: Child Care | F91: 0 | G91: 0 | I91: 0
A92: Aged Care | F92: 0 | G92: 0 | I92: 0
A93: Other Community | F93: 0 | G93: 0 | I93: 0
A94: Other Social | F94: 0 | G94: 0 | I94: 0
A95: Sport and recreation | C95: 703500 | D95: 724964 | E95: 724964 | F95: 41607.52 | G95: 265112.25 | H95: 277915 | I95: -12802.75 | J95: -0.04606714283 | K95: 724964
A96: Public safety | C96: =SUM(C97:C101) -> 56578 | D96: 74942 | E96: 74942 | F96: 1346.3 | G96: 56742.55 | H96: 34947 | I96: 21795.55 | J96: 0.6236744213 | K96: 74942
A97: Police | D97: 0 | E97: 0 | F97: 0 | G97: 0 | H97: 34947 | I97: -34947 | J97: -1 | K97: 0
A98: Fire | C98: 17369 | D98: 23030 | E98: 23030 | F98: 1346.3 | G98: 8593.05 | I98: 8593.05 | K98: 23030
A99: Civil Defence | C99: 4099 | D99: 5528 | E99: 5528 | F99: 0 | G99: 337.5 | I99: 337.5 | K99: 5528
A100: Street Lighting | D100: 0 | E100: 0 | F100: 0 | G100: 0 | I100: 0 | K100: 0
A101: Other | C101: 35110 | D101: 46384 | E101: 46384 | F101: 0 | G101: 47812 | I101: 47812 | K101: 46384
A102: Housing | F102: 0 | G102: 0 | H102: 0 | I102: 0
A103: Health | C103: =SUM(C104:C106) -> 30356 | D103: 48966 | E103: 48966 | F103: 997.75 | G103: 3590.65 | H103: 6013 | I103: -2422.35 | J103: -0.4028521537 | K103: 48966
A104: Clinics | C104: 30356 | D104: 48966 | E104: 48966 | F104: 997.75 | G104: 3590.65 | H104: 6013 | I104: -2422.35 | J104: -0.4028521537 | K104: 48966
A105: Ambulance | F105: 0 | G105: 0 | I105: 0
A106: Other | F106: 0 | G106: 0 | I106: 0
A107: Economic and environmental services | C107: =C108+C112+C118 -> 2959895 | D107: 3382043 | E107: 3382043 | F107: 175060.13 | G107: 1110227.86 | H107: 1170488 | I107: -60260.14 | J107: -0.05148291994 | K107: 3382043
A108: Planning and development | C108: =SUM(C109:C111) -> 0 | D108: 0 | E108: 0 | F108: 0 | G108: 0 | H108: 0 | I108: 0 | K108: 0
A109: Economic Development/Planning | F109: 0 | G109: 0 | H109: 0 | I109: 0
A110: Town Planning/Building enforcement | F110: 0 | G110: 0 | I110: 0
A111: Licensing & Regulation | F111: 0 | G111: 0 | I111: 0
A112: Road transport | C112: =SUM(C113:C117) -> 2959895 | D112: 3382043 | E112: 3382043 | F112: 175060.13 | G112: 1110227.86 | H112: 1170488 | I112: -60260.14 | J112: -0.05148291994 | K112: 3382043
A113: Roads | C113: 1015743 | D113: 1101314 | E113: 1101314 | F113: 37828.17 | G113: 292747.43 | H113: 1170488 | I113: -877740.57 | J113: -0.7498928396 | K113: 1101314
A114: Public Buses | D114: 0 | E114: 0 | F114: 0 | G114: 0 | I114: 0 | K114: 0
A115: Parking Garages | D115: 0 | E115: 0 | F115: 0 | G115: 0 | I115: 0 | K115: 0
A116: Vehicle Licensing and Testing | C116: 187405 | D116: 189092 | E116: 189092 | F116: 9840.82 | G116: 88430.6 | I116: 88430.6 | K116: 189092
A117: Other | C117: 1756747 | D117: 2091637 | E117: 2091637 | F117: 127391.14 | G117: 729049.83 | I117: 729049.83 | K117: 2091637
A118: Environmental protection | C118: =SUM(C119:C121) -> 0 | D118: 0 | E118: 0 | F118: 0 | G118: 0 | H118: 0 | I118: 0 | K118: 0
A119: Pollution Control | F119: 0 | G119: 0 | H119: 0 | I119: 0
A120: Biodiversity & Landscape | F120: 0 | G120: 0 | I120: 0
A121: Other | F121: 0 | G121: 0 | I121: 0
A122: Trading services | C122: =C123+C126+C129+C133 -> 16497164 | D122: =D123+D126+D129+D133 -> 18222458 | E122: 18222458 | F122: 1332366.99 | G122: 8039117.573 | H122: 7711282 | I122: 327835.573 | J122: 0.0425137575 | K122: =K123+K126+K129+K133 -> 18222458
A123: Electricity | C123: =SUM(C124:C125) -> 9197390 | D123: 10352736 | E123: 10352736 | F123: 761812.61 | G123: 5046711.62 | H123: 5067579 | I123: -20867.38 | J123: -0.004117820364 | K123: 10352736
A124: Electricity Distribution | C124: 676235 | D124: 607028 | E124: 607028 | F124: 42488.97 | G124: 333607.53 | H124: 5067579 | I124: -4733971.47 | J124: -0.9341682626 | K124: 607028
A125: Electricity Generation | C125: 8521155 | D125: 9745708 | E125: 9745708 | F125: 719323.64 | G125: 4713104.09 | I125: 4713104.09 | K125: 9745708
A126: Water | C126: =SUM(C127:C128) -> 1205173 | D126: 1395523 | E126: 1395523 | F126: 68351.55 | G126: 646357.93 | H126: 470911 | I126: 175446.93 | J126: 0.3725691904 | K126: 1395523
A127: Water Distribution | C127: 248574 | D127: 500215 | E127: 500215 | F127: 15332.55 | G127: 393338.15 | H127: 470911 | I127: -77572.85 | J127: -0.1647293225 | K127: 500215
A128: Water Storage | C128: 956599 | D128: 895308 | E128: 895308 | F128: 53019 | G128: 253019.78 | I128: 253019.78 | K128: 895308
A129: Waste water management | C129: =SUM(C130:C132) -> 3146943 | D129: 3344414 | E129: 3344414 | F129: 485298.99 | G129: 2194553.553 | H129: 2001088 | I129: 193465.553 | J129: 0.09668018248 | K129: 3344414
A130: Sewerage | C130: 3146943 | D130: 3344414 | E130: 3344414 | F130: 485298.99 | G130: 2194553.553 | H130: 2001088 | I130: 193465.553 | J130: 0.09668018248 | K130: 3344414
A131: Storm Water Management | F131: 0 | G131: 0 | I131: 0
A132: Public Toilets | F132: 0 | G132: 0 | I132: 0
A133: Waste management | C133: =SUM(C134) -> 2947658 | D133: 3129785 | E133: 3129785 | F133: 16903.84 | G133: 151494.47 | H133: 171704 | I133: -20209.53 | J133: -0.1176998206 | K133: 3129785
A134: Solid Waste | C134: 2947658 | D134: 3129785 | E134: 3129785 | F134: 16903.84 | G134: 151494.47 | H134: 171704 | I134: -20209.53 | J134: -0.1176998206 | K134: 3129785
A135: Other | C135: =SUM(C136:C140) -> 0 | D135: 0 | E135: 0 | F135: 0 | G135: 0 | H135: 0 | I135: 0 | K135: 0
A136: Air Transport | F136: 0 | G136: 0 | I136: 0
A137: Abattoirs | F137: 0 | G137: 0 | I137: 0
A138: Tourism | F138: 0 | G138: 0 | I138: 0
A139: Forestry | F139: 0 | G139: 0 | I139: =G139-H139 -> 0 | J139: =IF(I139=0,"",I139/H139) -> 
A140: =A71 -> Markets | F140: 0 | G140: 0 | I140: =G140-H140 -> 0 | J140: =IF(I140=0,"",I140/H140) -> 
A141: ="Total "&A74 -> Total Expenditure - Standard | B141: 3 | C141: =C75+C85+C107+C122+C135 -> 49337651 | D141: =D75+D85+D107+D122+D135 -> 59155751 | E141: 59155751 | F141: 4086216.23 | G141: 23566850.43 | H141: 25112882 | I141: -1546031.567 | J141: =IF(I141=0,"",I141/H141) -> -0.0615632872 | K141: =K75+K85+K107+K122+K135 -> 59155751
A142: =result -> Surplus/ (Deficit) for the year | C142: =C72-C141 -> 7791004 | D142: 6128000 | E142: 6128000 | F142: -1413435.48 | G142: 10000379.61 | H142: 14920474 | I142: =G142-H142 -> -4920094.393 | J142: =IF(I142=0,"",I142/H142) -> -0.3297545636 | K142: 6128000
A143: =head27a -> References
A144: 1. Government Finance Statistics Functions and Sub-functions are standardised to assist national and international accounts and comparison
A145: 2. Total Revenue by Standard Classification must reconcile to total operating revenue shown in Financial Performance (revenue and expenditure)
A146: 3. Total Expenditure by Standard Classification must reconcile to total operating expenditure shown in Financial Performance (revenue and expenditure)
A147: 4. All amounts must be classified under a Standard (modified GFS) classification. The GFS function 'Other' is only for Abbatoirs, Air Transport, Markets and Tourism - and if used must be supported by footnotes. Nothing else may be placed under 'Other'. Assign associate share to relevant classification
A150: check oprev balance | C150: =C72-'C3C'!C171 -> 0 | D150: =D72-'C3C'!D171 -> 0 | E150: =E72-'C3C'!E171 -> 0 | F150: =F72-'C3C'!F171 -> 5329.62 | G150: =G72-'C3C'!G171 -> -294700.3 | H150: =H72-'C3C'!H171 -> -310322 | I150: =I72-'C3C'!I171 -> 15621.7 | K150: =K72-'C3C'!K171 -> 0
A151: check opexp balance | C151: =C141-'C3C'!C339 -> 0 | D151: =D141-'C3C'!D339 -> 0 | E151: =E141-'C3C'!E339 -> 0 | F151: =F141-'C3C'!F339 -> 0 | G151: =G141-'C3C'!G339 -> 0 | H151: =H141-'C3C'!H339 -> 0 | I151: =I141-'C3C'!I339 -> 0 | K151: =K141-'C3C'!K339 -> 0

Sheet C3-FinPerf V
A1: =muni& " - "&S71C& " - "&date -> NC074 Kareeberg - Table C3 Monthly Budget Statement - Financial Performance (revenue and expenditure by municipal vote) - Mid-Year Assessment
A2: =Vdesc -> Vote Description | B2: =head27 -> Ref | C2: =Head1 -> 2014/15 | D2: =Head2 -> Budget Year 2015/16
C3: =Head5 -> Audited Outcome | D3: =Head6 -> Original Budget | E3: =Head7 -> Adjusted Budget | F3: =Head38 -> Monthly actual | G3: =Head39 -> YearTD actual | H3: =Head40 -> YearTD budget | I3: =Head41 -> YTD variance | J3: =Head41 -> YTD variance | K3: =Head8 -> Full Year Forecast
A4: R thousands | J4: %
A5: Revenue by Vote | B5: 1
A6: ='Org structure'!A2 -> Vote 1 - Executive and Council | C6: ='C3C'!C6 -> 25693533 | D6: ='C3C'!D6 -> 28108215 | E6: ='C3C'!E6 -> 28108215 | F6: ='C3C'!F6 -> 1022319.53 | G6: ='C3C'!G6 -> 14011254.32 | H6: ='C3C'!H6 -> 22772982 | I6: =G6-H6 -> -8761727.68 | J6: =IF(I6=0,"",I6/H6) -> -0.3847422213 | K6: ='C3C'!K6 -> 28108215
A7: ='Org structure'!A3 -> Vote 2 - Budget and Treasury | C7: ='C3C'!C17 -> 12720419 | D7: ='C3C'!D17 -> 17582623 | E7: ='C3C'!E17 -> 17582623 | F7: ='C3C'!F17 -> 99781.62 | G7: ='C3C'!G17 -> 10154999.29 | H7: ='C3C'!H17 -> 7941006 | I7: =G7-H7 -> 2213993.29 | J7: =IF(I7=0,"",I7/H7) -> 0.2788051401 | K7: ='C3C'!K17 -> 17582623
A8: ='Org structure'!A4 -> Vote 3 - Corporate Services | C8: ='C3C'!C28 -> 0 | D8: ='C3C'!D28 -> 0 | E8: ='C3C'!E28 -> 0 | F8: ='C3C'!F28 -> 0 | G8: ='C3C'!G28 -> 0 | H8: ='C3C'!H28 -> 0 | I8: 0 | K8: ='C3C'!K28 -> 0
A9: ='Org structure'!A5 -> Vote 4 - Planning and Development | C9: ='C3C'!C39 -> 0 | D9: ='C3C'!D39 -> 0 | E9: ='C3C'!E39 -> 0 | F9: ='C3C'!F39 -> 0 | G9: ='C3C'!G39 -> 0 | H9: ='C3C'!H39 -> 0 | I9: 0 | K9: ='C3C'!K39 -> 0
A10: ='Org structure'!A6 -> Vote 5 - Health | C10: ='C3C'!C50 -> 0 | D10: ='C3C'!D50 -> 0 | E10: ='C3C'!E50 -> 0 | F10: ='C3C'!F50 -> 0 | G10: ='C3C'!G50 -> 0 | H10: ='C3C'!H50 -> 0 | I10: 0 | K10: ='C3C'!K50 -> 0
A11: ='Org structure'!A7 -> Vote 6 - Community and Social Services | C11: ='C3C'!C61 -> 13370 | D11: ='C3C'!D61 -> 6650 | E11: ='C3C'!E61 -> 6650 | F11: ='C3C'!F61 -> 1614.8 | G11: ='C3C'!G61 -> 9098.6 | H11: ='C3C'!H61 -> 2978 | I11: 6120.6 | J11: 2.055271995 | K11: ='C3C'!K61 -> 6650
A12: ='Org structure'!A8 -> Vote 7 - Housing | C12: ='C3C'!C72 -> 0 | D12: ='C3C'!D72 -> 0 | E12: ='C3C'!E72 -> 0 | F12: ='C3C'!F72 -> 0 | G12: ='C3C'!G72 -> 0 | H12: ='C3C'!H72 -> 0 | I12: 0 | K12: ='C3C'!K72 -> 0
A13: ='Org structure'!A9 -> Vote 8 - Public Safety | C13: ='C3C'!C83 -> 620 | D13: ='C3C'!D83 -> 705 | E13: ='C3C'!E83 -> 705 | F13: ='C3C'!F83 -> 0 | G13: ='C3C'!G83 -> 50 | H13: ='C3C'!H83 -> 702 | I13: -652 | J13: -0.9287749288 | K13: ='C3C'!K83 -> 705
A14: ='Org structure'!A10 -> Vote 9 - Sport and Recreation | C14: ='C3C'!C94 -> 55323 | D14: ='C3C'!D94 -> 17400 | E14: ='C3C'!E94 -> 17400 | F14: ='C3C'!F94 -> 212 | G14: ='C3C'!G94 -> 1316 | H14: ='C3C'!H94 -> 1136 | I14: 180 | J14: 0.1584507042 | K14: ='C3C'!K94 -> 17400
A15: ='Org structure'!A11 -> Vote 10 - Environmental Protection | C15: ='C3C'!C105 -> 0 | D15: ='C3C'!D105 -> 0 | E15: ='C3C'!E105 -> 0 | F15: ='C3C'!F105 -> 0 | G15: ='C3C'!G105 -> 0 | H15: ='C3C'!H105 -> 0 | I15: 0 | K15: ='C3C'!K105 -> 0
A16: ='Org structure'!A12 -> Vote 11 - Solid Waste Management | C16: ='C3C'!C116 -> 3416708 | D16: ='C3C'!D116 -> 3757144 | E16: ='C3C'!E116 -> 3757144 | F16: ='C3C'!F116 -> 294700.3 | G16: ='C3C'!G116 -> 1808959.18 | H16: ='C3C'!H116 -> 1867436 | I16: -58476.82 | J16: -0.03131396203 | K16: ='C3C'!K116 -> 3757144
A17: ='Org structure'!A13 -> Vote 12 - Waste Water Management | C17: ='C3C'!C127 -> 3285586 | D17: ='C3C'!D127 -> 2695568 | E17: ='C3C'!E127 -> 2695568 | F17: ='C3C'!F127 -> 207934.06 | G17: ='C3C'!G127 -> 1331558.91 | H17: ='C3C'!H127 -> 1333320 | I17: -1761.09 | J17: -0.001320830708 | K17: ='C3C'!K127 -> 2695568
A18: ='Org structure'!A14 -> Vote 13 - Road Transport | C18: ='C3C'!C138 -> 6050 | D18: ='C3C'!D138 -> 2000 | E18: ='C3C'!E138 -> 2000 | F18: ='C3C'!F138 -> 410 | G18: ='C3C'!G138 -> 5100 | H18: ='C3C'!H138 -> 1223 | I18: 3877 | J18: 3.17007359 | K18: ='C3C'!K138 -> 2000
A19: ='Org structure'!A15 -> Vote 14 - Water | C19: ='C3C'!C149 -> 4319052 | D19: ='C3C'!D149 -> 4522536 | E19: ='C3C'!E149 -> 4522536 | F19: ='C3C'!F149 -> 362623.2 | G19: ='C3C'!G149 -> 2200150.24 | H19: ='C3C'!H149 -> 2181577 | I19: 18573.24 | J19: 0.008513676116 | K19: ='C3C'!K149 -> 4522536
A20: ='Org structure'!A16 -> Vote 15 - Electricity | C20: ='C3C'!C160 -> 7617994 | D20: ='C3C'!D160 -> 8590910 | E20: ='C3C'!E160 -> 8590910 | F20: ='C3C'!F160 -> 677855.62 | G20: ='C3C'!G160 -> 4339443.8 | H20: ='C3C'!H160 -> 4241318 | I20: 98125.8 | J20: 0.02313568565 | K20: ='C3C'!K160 -> 8590910
A21: Total Revenue by Vote | B21: 2 | C21: =SUM(C6:C20) -> 57128655 | D21: =SUM(D6:D20) -> 65283751 | E21: 65283751 | F21: 2667451.13 | G21: 33861930.34 | H21: 40343678 | I21: -6481747.66 | J21: -0.1606632806 | K21: =SUM(K6:K20) -> 65283751
A23: Expenditure by Vote | B23: 1
A24: ='Org structure'!A2 -> Vote 1 - Executive and Council | C24: ='C3C'!C174 -> 18558951 | D24: ='C3C'!D174 -> 23078495 | E24: ='C3C'!E174 -> 23078495 | F24: ='C3C'!F174 -> 1110656.61 | G24: ='C3C'!G174 -> 8537917.08 | H24: ='C3C'!H174 -> 9242734 | I24: =G24-H24 -> -704816.92 | J24: =IF(I24=0,"",I24/H24) -> -0.07625632416 | K24: ='C3C'!K174 -> 23078495
A25: ='Org structure'!A3 -> Vote 2 - Budget and Treasury | C25: ='C3C'!C185 -> 7626701 | D25: ='C3C'!D185 -> 9512394 | E25: ='C3C'!E185 -> 9512394 | F25: ='C3C'!F185 -> 1131425.64 | G25: ='C3C'!G185 -> 3824968.86 | H25: ='C3C'!H185 -> 4931138 | I25: -1106169.14 | J25: -0.2243232982 | K25: ='C3C'!K185 -> 9512394
A26: ='Org structure'!A4 -> Vote 3 - Corporate Services | C26: ='C3C'!C196 -> 1841246 | D26: ='C3C'!D196 -> 2736507 | E26: ='C3C'!E196 -> 2736507 | F26: ='C3C'!F196 -> 188256.65 | G26: ='C3C'!G196 -> 1105637.96 | H26: ='C3C'!H196 -> 1137532 | I26: -31894.04 | J26: -0.02803792772 | K26: ='C3C'!K196 -> 2736507
A27: ='Org structure'!A5 -> Vote 4 - Planning and Development | C27: ='C3C'!C207 -> 0 | D27: ='C3C'!D207 -> 0 | E27: ='C3C'!E207 -> 0 | F27: ='C3C'!F207 -> 0 | G27: ='C3C'!G207 -> 0 | H27: ='C3C'!H207 -> 0 | I27: 0 | K27: ='C3C'!K207 -> 0
A28: ='Org structure'!A6 -> Vote 5 - Health | C28: ='C3C'!C218 -> 30356 | D28: ='C3C'!D218 -> 48966 | E28: ='C3C'!E218 -> 48966 | F28: ='C3C'!F218 -> 997.75 | G28: ='C3C'!G218 -> 3590.65 | H28: ='C3C'!H218 -> 6013 | I28: -2422.35 | J28: -0.4028521537 | K28: ='C3C'!K218 -> 48966
A29: ='Org structure'!A7 -> Vote 6 - Community and Social Services | C29: ='C3C'!C229 -> 1063260 | D29: ='C3C'!D229 -> 1374982 | E29: ='C3C'!E229 -> 1374982 | F29: ='C3C'!F229 -> 104498.64 | G29: ='C3C'!G229 -> 623535.65 | H29: ='C3C'!H229 -> 600833 | I29: 22702.65 | J29: 0.03778529142 | K29: ='C3C'!K229 -> 1374982
A30: ='Org structure'!A8 -> Vote 7 - Housing | C30: ='C3C'!C240 -> 0 | D30: ='C3C'!D240 -> 0 | E30: ='C3C'!E240 -> 0 | F30: ='C3C'!F240 -> 0 | G30: ='C3C'!G240 -> 0 | H30: ='C3C'!H240 -> 0 | I30: 0 | J30: =IF(I30=0,"",I30/H30) ->  | K30: ='C3C'!K240 -> 0
A31: ='Org structure'!A9 -> Vote 8 - Public Safety | C31: ='C3C'!C251 -> 56578 | D31: ='C3C'!D251 -> 74942 | E31: ='C3C'!E251 -> 74942 | F31: ='C3C'!F251 -> 1346.3 | G31: ='C3C'!G251 -> 56742.55 | H31: ='C3C'!H251 -> 34947 | I31: 21795.55 | J31: 0.6236744213 | K31: ='C3C'!K251 -> 74942
A32: ='Org structure'!A10 -> Vote 9 - Sport and Recreation | C32: ='C3C'!C262 -> 703500 | D32: ='C3C'!D262 -> 724964 | E32: ='C3C'!E262 -> 724964 | F32: ='C3C'!F262 -> 41607.52 | G32: ='C3C'!G262 -> 265112.25 | H32: ='C3C'!H262 -> 277915 | I32: -12802.75 | J32: -0.04606714283 | K32: ='C3C'!K262 -> 724964
A33: ='Org structure'!A11 -> Vote 10 - Environmental Protection | C33: ='C3C'!C273 -> 0 | D33: ='C3C'!D273 -> 0 | E33: ='C3C'!E273 -> 0 | F33: ='C3C'!F273 -> 0 | G33: ='C3C'!G273 -> 0 | H33: ='C3C'!H273 -> 0 | I33: 0 | J33: =IF(I33=0,"",I33/H33) ->  | K33: ='C3C'!K273 -> 0
A34: ='Org structure'!A12 -> Vote 11 - Solid Waste Management | C34: ='C3C'!C284 -> 2947658 | D34: ='C3C'!D284 -> 3129785 | E34: ='C3C'!E284 -> 3129785 | F34: ='C3C'!F284 -> 16903.84 | G34: ='C3C'!G284 -> 151494.47 | H34: ='C3C'!H284 -> 171704 | I34: -20209.53 | J34: =IF(I34=0,"",I34/H34) -> -0.1176998206 | K34: ='C3C'!K284 -> 3129785
A35: ='Org structure'!A13 -> Vote 12 - Waste Water Management | C35: ='C3C'!C295 -> 3146943 | D35: ='C3C'!D295 -> 3344414 | E35: ='C3C'!E295 -> 3344414 | F35: ='C3C'!F295 -> 485298.99 | G35: ='C3C'!G295 -> 2194553.553 | H35: ='C3C'!H295 -> 2001088 | I35: 193465.553 | J35: =IF(I35=0,"",I35/H35) -> 0.09668018248 | K35: ='C3C'!K295 -> 3344414
A36: ='Org structure'!A14 -> Vote 13 - Road Transport | C36: ='C3C'!C306 -> 2959895 | D36: ='C3C'!D306 -> 3382043 | E36: ='C3C'!E306 -> 3382043 | F36: ='C3C'!F306 -> 175060.13 | G36: ='C3C'!G306 -> 1110227.86 | H36: ='C3C'!H306 -> 1170488 | I36: -60260.14 | J36: =IF(I36=0,"",I36/H36) -> -0.05148291994 | K36: ='C3C'!K306 -> 3382043
A37: ='Org structure'!A15 -> Vote 14 - Water | C37: ='C3C'!C317 -> 1205173 | D37: ='C3C'!D317 -> 1395523 | E37: ='C3C'!E317 -> 1395523 | F37: ='C3C'!F317 -> 68351.55 | G37: ='C3C'!G317 -> 646357.93 | H37: ='C3C'!H317 -> 470911 | I37: 175446.93 | J37: =IF(I37=0,"",I37/H37) -> 0.3725691904 | K37: ='C3C'!K317 -> 1395523
A38: ='Org structure'!A16 -> Vote 15 - Electricity | C38: ='C3C'!C328 -> 9197390 | D38: ='C3C'!D328 -> 10352736 | E38: ='C3C'!E328 -> 10352736 | F38: ='C3C'!F328 -> 761812.61 | G38: ='C3C'!G328 -> 5046711.62 | H38: ='C3C'!H328 -> 5067579 | I38: -20867.38 | J38: -0.004117820364 | K38: ='C3C'!K328 -> 10352736
A39: Total Expenditure by Vote | B39: 2 | C39: =SUM(C24:C38) -> 49337651 | D39: =SUM(D24:D38) -> 59155751 | E39: 59155751 | F39: 4086216.23 | G39: 23566850.43 | H39: 25112882 | I39: -1546031.567 | J39: =IF(I39=0,"",I39/H39) -> -0.0615632872 | K39: =SUM(K24:K38) -> 59155751
A40: =result -> Surplus/ (Deficit) for the year | B40: 2 | C40: =C21-C39 -> 7791004 | D40: 6128000 | E40: 6128000 | F40: -1418765.1 | G40: 10295079.91 | H40: 15230796 | I40: =I21-I39 -> -4935716.093 | J40: =IF(I40=0,"",I40/H40) -> -0.3240615982 | K40: =K21-K39 -> 6128000
A41: =head27a -> References
A42: 1. Insert 'Vote'; e.g. Department, if different to standard classification structure
A43: 2. Must reconcile to Monthly Budget Statement - Financial Performance Statement (standard classification)

Sheet C3C
A1: =muni& " - "&S71C& " - "&"A"& " - "&date -> NC074 Kareeberg - Table C3 Monthly Budget Statement - Financial Performance (revenue and expenditure by municipal vote) - A - Mid-Year Assessment
A2: =Vdesc -> Vote Description | B2: =head27 -> Ref | C2: =Head1 -> 2014/15 | D2: =Head2 -> Budget Year 2015/16 | L2: =Head4 -> 
A3: R thousand | C3: =Head5 -> Audited Outcome | D3: =Head6 -> Original Budget | E3: =Head7 -> Adjusted Budget | F3: =Head38 -> Monthly actual | G3: =Head39 -> YearTD actual | H3: =Head40 -> YearTD budget | I3: =Head41 -> YTD variance | J3: =Head41 -> YTD variance | K3: =Head8 -> Full Year Forecast | L3: =Head12 -> Forecast 2010/11 | M3: =Head13 -> Forecast 2011/12 | N3: =Head14 -> Forecast 2012/13 | O3: =Head15 -> Forecast 2013/14 | P3: =Head16 -> Forecast 2014/15 | Q3: =Head17 -> Forecast 2015/16 | R3: =Head18 -> Forecast 2016/17 | S3: =Head19 -> Forecast 2017/18 | T3: =Head20 -> Forecast 2018/19 | U3: =Head21 -> Forecast 2019/20 | V3: =Head22 -> Forecast 2020/21 | W3: =Head23 -> Forecast 2021/22
J4: %
A5: Revenue by Vote | B5: 1
A6: ='Org structure'!A2 -> Vote 1 - Executive and Council | C6: =SUM(C7:C16) -> 25693533 | D6: =SUM(D7:D16) -> 28108215 | E6: 28108215 | F6: 1022319.53 | G6: 14011254.32 | H6: 22772982 | I6: =G6-H6 -> -8761727.68 | J6: =IF(I6=0,"",I6/H6) -> -0.3847422213 | K6: 28108215
A7: ='Org structure'!E3 -> 1,1 - Executive and Council | C7: 25693533 | D7: 28108215 | E7: 28108215 | F7: 1022319.53 | G7: 14011254.32 | H7: 22772982 | I7: -8761727.68 | J7: -0.3847422213 | K7: 28108215
A8: ='Org structure'!E4 -> 0 | I8: 0
A9: ='Org structure'!E5 -> 0 | I9: 0
A10: ='Org structure'!E6 -> 0 | I10: 0
A11: ='Org structure'!E7 -> 0 | I11: 0
A12: ='Org structure'!E8 -> 0 | I12: 0
A13: ='Org structure'!E9 -> 0 | I13: 0
A14: ='Org structure'!E10 -> 0 | I14: 0
A15: ='Org structure'!E11 -> 0 | I15: 0
A16: ='Org structure'!E12 -> 0 | I16: 0
A17: ='Org structure'!A3 -> Vote 2 - Budget and Treasury | C17: =SUM(C18:C27) -> 12720419 | D17: =SUM(D18:D27) -> 17582623 | E17: 17582623 | F17: 99781.62 | G17: 10154999.29 | H17: 7941006 | I17: 2213993.29 | J17: 0.2788051401 | K17: 17582623
A18: ='Org structure'!E14 -> 2,1 - Official Housing | C18: 5500 | D18: 6000 | E18: 6000 | F18: 500 | G18: 3000 | I18: 3000 | K18: 6000
A19: ='Org structure'!E15 -> 2,2 - Rates | C19: 9685401 | D19: 11702865 | E19: 11702865 | F19: 0 | G19: 9335889.89 | H19: 7941006 | I19: 1394883.89 | J19: 0.1756558162 | K19: 11702865
A20: ='Org structure'!E16 -> 2,3 - Commonage | C20: 343641 | D20: 275392 | E20: 275392 | F20: 835 | G20: 100857.71 | I20: 100857.71 | K20: 275392
A21: ='Org structure'!E17 -> 2,4 - Municipal Buildings | C21: 24694 | D21: 43922 | E21: 43922 | F21: 1422 | G21: 11612 | I21: 11612 | K21: 43922
A22: ='Org structure'!E18 -> 2,5 - Budget and Treasury Office | C22: 2661183 | D22: 5554144 | E22: 5554144 | F22: 97024.62 | G22: 703639.69 | I22: 703639.69 | K22: 5554144
A23: ='Org structure'!E19 -> 2,6 - Airport | C23: 0 | D23: 300 | E23: 300 | F23: 0 | G23: 0 | I23: 0 | K23: 300
A24: ='Org structure'!E20 -> 2,7 - Abattoir | C24: 0 | D24: 0 | E24: 0 | F24: 0 | G24: 0 | I24: 0 | K24: 0
A25: ='Org structure'!E21 -> 0 | I25: 0
A26: ='Org structure'!E22 -> 0 | I26: 0
A27: ='Org structure'!E23 -> 0 | I27: 0
A28: ='Org structure'!A4 -> Vote 3 - Corporate Services | C28: =SUM(C29:C38) -> 0 | D28: 0 | E28: 0 | F28: 0 | G28: 0 | H28: 0 | I28: 0 | K28: 0
A29: ='Org structure'!E25 -> 3,1 - Corporate Services | I29: 0
A30: ='Org structure'!E26 -> 0 | I30: 0
A31: ='Org structure'!E27 -> 0 | I31: 0
A32: ='Org structure'!E28 -> 0 | I32: 0
A33: ='Org structure'!E29 -> 0 | I33: 0
A34: ='Org structure'!E30 -> 0 | I34: 0
A35: ='Org structure'!E31 -> 0 | I35: 0
A36: ='Org structure'!E32 -> 0 | I36: 0
A37: ='Org structure'!E33 -> 0 | I37: 0
A38: ='Org structure'!E34 -> 0 | I38: 0
A39: ='Org structure'!A5 -> Vote 4 - Planning and Development | C39: =SUM(C40:C49) -> 0 | D39: 0 | E39: 0 | F39: 0 | G39: 0 | H39: 0 | I39: 0 | K39: 0
A40: ='Org structure'!E36 -> 4.1 - [Name of sub-vote] | I40: 0
A41: ='Org structure'!E37 -> 0 | I41: 0
A42: ='Org structure'!E38 -> 0 | I42: 0
A43: ='Org structure'!E39 -> 0 | I43: 0
A44: ='Org structure'!E40 -> 0 | I44: 0
A45: ='Org structure'!E41 -> 0 | I45: 0
A46: ='Org structure'!E42 -> 0 | I46: 0
A47: ='Org structure'!E43 -> 0 | I47: 0
A48: ='Org structure'!E44 -> 0 | I48: 0
A49: ='Org structure'!E45 -> 0 | I49: 0
A50: ='Org structure'!A6 -> Vote 5 - Health | C50: =SUM(C51:C60) -> 0 | D50: =SUM(D51:D60) -> 0 | E50: 0 | F50: 0 | G50: 0 | H50: 0 | I50: 0 | K50: 0
A51: ='Org structure'!E47 -> 5,1 - Health | I51: 0
A52: ='Org structure'!E48 -> 5,2 - Clinics | I52: 0
A53: ='Org structure'!E49 -> 0 | I53: 0
A54: ='Org structure'!E50 -> 0 | I54: 0
A55: ='Org structure'!E51 -> 0 | I55: 0
A56: ='Org structure'!E52 -> 0 | I56: 0
A57: ='Org structure'!E53 -> 0 | I57: 0
A58: ='Org structure'!E54 -> 0 | I58: 0
A59: ='Org structure'!E55 -> 0 | I59: 0
A60: ='Org structure'!E56 -> 0 | I60: 0
A61: ='Org structure'!A7 -> Vote 6 - Community and Social Services | C61: =SUM(C62:C71) -> 13370 | D61: =SUM(D62:D71) -> 6650 | E61: 6650 | F61: 1614.8 | G61: 9098.6 | H61: 2978 | I61: 6120.6 | J61: 2.055271995 | K61: 6650
A62: ='Org structure'!E58 -> 6,1 - Cemetry | C62: 10450 | D62: 5920 | E62: 5920 | F62: 1550 | G62: 8345 | H62: 2978 | I62: 5367 | J62: 1.802216253 | K62: 5920
A63: ='Org structure'!E59 -> 6,2 - Library | C63: 2920 | D63: 730 | E63: 730 | F63: 64.8 | G63: 753.6 | I63: 753.6 | K63: 730
A64: ='Org structure'!E60 -> 6,3 - Museum | C64: 0 | D64: 0 | E64: 0 | F64: 0 | G64: 0 | I64: 0 | K64: 0
A65: ='Org structure'!E61 -> 0 | I65: 0
A66: ='Org structure'!E62 -> 0 | I66: 0
A67: ='Org structure'!E63 -> 0 | I67: 0
A68: ='Org structure'!E64 -> 0 | I68: 0
A69: ='Org structure'!E65 -> 0 | I69: 0
A70: ='Org structure'!E66 -> 0 | I70: =G70-H70 -> 0 | J70: =IF(I70=0,"",I70/H70) -> 
A71: ='Org structure'!E67 -> 0 | I71: 0
A72: ='Org structure'!A8 -> Vote 7 - Housing | C72: =SUM(C73:C82) -> 0 | D72: 0 | E72: 0 | F72: 0 | G72: 0 | H72: 0 | I72: 0 | K72: 0
A73: ='Org structure'!E69 -> 7.1 - [Name of sub-vote] | I73: 0
A74: ='Org structure'!E70 -> 0 | I74: 0
A75: ='Org structure'!E71 -> 0 | I75: 0
A76: ='Org structure'!E72 -> 0 | I76: 0
A77: ='Org structure'!E73 -> 0 | I77: 0
A78: ='Org structure'!E74 -> 0 | I78: 0
A79: ='Org structure'!E75 -> 0 | I79: 0
A80: ='Org structure'!E76 -> 0 | I80: 0
A81: ='Org structure'!E77 -> 0 | I81: 0
A82: ='Org structure'!E78 -> 0 | I82: 0
A83: ='Org structure'!A9 -> Vote 8 - Public Safety | C83: =SUM(C84:C93) -> 620 | D83: =SUM(D84:D93) -> 705 | E83: 705 | F83: 0 | G83: 50 | H83: 702 | I83: -652 | J83: -0.9287749288 | K83: 705
A84: ='Org structure'!E80 -> 8,1 - Fire Service | C84: 0 | D84: 0 | E84: 0 | F84: 0 | G84: 0 | H84: 702 | I84: -702 | J84: -1 | K84: 0
A85: ='Org structure'!E81 -> 8,2 - Civil Defence | C85: 0 | D85: 0 | E85: 0 | F85: 0 | G85: 0 | I85: 0 | K85: 0
A86: ='Org structure'!E82 -> 8,3 - Pound | C86: 620 | D86: 705 | E86: 705 | F86: 0 | G86: 50 | I86: 50 | K86: 705
A87: ='Org structure'!E83 -> 0 | I87: 0
A88: ='Org structure'!E84 -> 0 | I88: 0
A89: ='Org structure'!E85 -> 0 | I89: 0
A90: ='Org structure'!E86 -> 0 | I90: 0
A91: ='Org structure'!E87 -> 0 | I91: 0
A92: ='Org structure'!E88 -> 0 | I92: 0
A93: ='Org structure'!E89 -> 0 | I93: 0
A94: ='Org structure'!A10 -> Vote 9 - Sport and Recreation | C94: =SUM(C95:C104) -> 55323 | D94: =SUM(D95:D104) -> 17400 | E94: 17400 | F94: 212 | G94: 1316 | H94: 1136 | I94: 180 | J94: 0.1584507042 | K94: 17400
A95: ='Org structure'!E91 -> 9,1 - Nature Reserve | C95: 46600 | D95: 5100 | E95: 5100 | F95: 0 | G95: 0 | H95: 1136 | I95: -1136 | J95: -1 | K95: 5100
A96: ='Org structure'!E92 -> 9,2 - Parks and Gardens | C96: 0 | D96: 200 | E96: 200 | F96: 0 | G96: 0 | I96: 0 | K96: 200
A97: ='Org structure'!E93 -> 9,3 - Swimming Pool | C97: 0 | D97: 9000 | E97: 9000 | F97: 0 | G97: 0 | I97: 0 | K97: 9000
A98: ='Org structure'!E94 -> 9,4 - Caravan Park | C98: 8723 | D98: 3100 | E98: 3100 | F98: 212 | G98: 1316 | I98: 1316 | K98: 3100
A99: ='Org structure'!E95 -> 0 | I99: 0
A100: ='Org structure'!E96 -> 0 | I100: 0
A101: ='Org structure'!E97 -> 0 | I101: 0
A102: ='Org structure'!E98 -> 0 | I102: 0
A103: ='Org structure'!E99 -> 0 | I103: 0
A104: ='Org structure'!E100 -> 0 | I104: 0
A105: ='Org structure'!A11 -> Vote 10 - Environmental Protection | C105: =SUM(C106:C115) -> 0 | D105: =SUM(D106:D115) -> 0 | E105: 0 | F105: 0 | G105: 0 | H105: 0 | I105: 0 | K105: 0
A106: ='Org structure'!E102 -> 10.1 - [Name of sub-vote] | I106: 0
A107: ='Org structure'!E103 -> 0 | I107: 0
A108: ='Org structure'!E104 -> 0 | I108: 0
A109: ='Org structure'!E105 -> 0 | I109: 0
A110: ='Org structure'!E106 -> 0 | I110: 0
A111: ='Org structure'!E107 -> 0 | I111: 0
A112: ='Org structure'!E108 -> 0 | I112: 0
A113: ='Org structure'!E109 -> 0 | I113: 0
A114: ='Org structure'!E110 -> 0 | I114: 0
A115: ='Org structure'!E111 -> 0 | I115: 0
A116: ='Org structure'!A12 -> Vote 11 - Solid Waste Management | C116: =SUM(C117:C126) -> 3416708 | D116: =SUM(D117:D126) -> 3757144 | E116: 3757144 | F116: 294700.3 | G116: 1808959.18 | H116: 1867436 | I116: -58476.82 | J116: -0.03131396203 | K116: 3757144
A117: ='Org structure'!E113 -> 11,1 - Refuse removal | C117: 3416708 | D117: 3757144 | E117: 3757144 | F117: 294700.3 | G117: 1808959.18 | H117: 1867436 | I117: -58476.82 | J117: -0.03131396203 | K117: 3757144
A118: ='Org structure'!E114 -> 0 | I118: 0
A119: ='Org structure'!E115 -> 0 | I119: 0
A120: ='Org structure'!E116 -> 0 | I120: 0
A121: ='Org structure'!E117 -> 0 | I121: 0
A122: ='Org structure'!E118 -> 0 | I122: 0
A123: ='Org structure'!E119 -> 0 | I123: 0
A124: ='Org structure'!E120 -> 0 | I124: 0
A125: ='Org structure'!E121 -> 0 | I125: 0
A126: ='Org structure'!E122 -> 0 | I126: 0
A127: ='Org structure'!A13 -> Vote 12 - Waste Water Management | C127: =SUM(C128:C137) -> 3285586 | D127: =SUM(D128:D137) -> 2695568 | E127: 2695568 | F127: 207934.06 | G127: 1331558.91 | H127: 1333320 | I127: -1761.09 | J127: -0.001320830708 | K127: 2695568
A128: ='Org structure'!E124 -> 12,1 - Sewerage | C128: 3285586 | D128: 2695568 | E128: 2695568 | F128: 207934.06 | G128: 1331558.91 | H128: 1333320 | I128: -1761.09 | J128: -0.001320830708 | K128: 2695568
A129: ='Org structure'!E125 -> 0 | I129: 0
A130: ='Org structure'!E126 -> 0 | I130: 0
A131: ='Org structure'!E127 -> 0 | I131: 0
A132: ='Org structure'!E128 -> 0 | I132: 0
A133: ='Org structure'!E129 -> 0 | I133: 0
A134: ='Org structure'!E130 -> 0 | I134: =G134-H134 -> 0 | J134: =IF(I134=0,"",I134/H134) -> 
A135: ='Org structure'!E131 -> 0 | I135: 0
A136: ='Org structure'!E132 -> 0 | I136: 0
A137: ='Org structure'!E133 -> 0 | I137: 0
A138: ='Org structure'!A14 -> Vote 13 - Road Transport | C138: =SUM(C139:C148) -> 6050 | D138: =SUM(D139:D148) -> 2000 | E138: 2000 | F138: 410 | G138: 5100 | H138: 1223 | I138: 3877 | J138: 3.17007359 | K138: 2000
A139: ='Org structure'!E135 -> 13,1 - Main Roads | C139: 0 | D139: 0 | E139: 0 | F139: 0 | G139: 0 | H139: 1223 | I139: -1223 | J139: -1 | K139: 0
A140: ='Org structure'!E136 -> 13,2 - Public Works | C140: 650 | D140: 100 | E140: 100 | F140: 50 | G140: 300 | I140: 300 | K140: 100
A141: ='Org structure'!E137 -> 13,3 - Streets and Pavements | C141: 0 | D141: 400 | E141: 400 | F141: 0 | G141: 0 | I141: 0 | K141: 400
A142: ='Org structure'!E138 -> 13,4 - Traffic and licencing | C142: 5400 | D142: 1500 | E142: 1500 | F142: 360 | G142: 4800 | I142: 4800 | K142: 1500
A143: ='Org structure'!E139 -> 0 | I143: 0
A144: ='Org structure'!E140 -> 0 | I144: 0
A145: ='Org structure'!E141 -> 0 | I145: 0
A146: ='Org structure'!E142 -> 0 | I146: 0
A147: ='Org structure'!E143 -> 0 | I147: 0
A148: ='Org structure'!E144 -> 0 | I148: 0
A149: ='Org structure'!A15 -> Vote 14 - Water | C149: =SUM(C150:C159) -> 4319052 | D149: =SUM(D150:D159) -> 4522536 | E149: 4522536 | F149: 362623.2 | G149: 2200150.24 | H149: 2181577 | I149: 18573.24 | J149: 0.008513676116 | K149: 4522536
A150: ='Org structure'!E146 -> 14,1 - Water Distribution | C150: 0 | D150: 0 | E150: 0 | F150: 0 | G150: 0 | H150: 2181577 | I150: -2181577 | J150: -1 | K150: 0
A151: ='Org structure'!E147 -> 14,2 - Water Storage | C151: 4319052 | D151: 4522536 | E151: 4522536 | F151: 362623.2 | G151: 2200150.24 | I151: 2200150.24 | K151: 4522536
A152: ='Org structure'!E148 -> 0 | I152: 0
A153: ='Org structure'!E149 -> 0 | I153: 0
A154: ='Org structure'!E150 -> 0 | I154: 0
A155: ='Org structure'!E151 -> 0 | I155: 0
A156: ='Org structure'!E152 -> 0 | I156: 0
A157: ='Org structure'!E153 -> 0 | I157: 0
A158: ='Org structure'!E154 -> 0 | I158: 0
A159: ='Org structure'!E155 -> 0 | I159: 0
A160: ='Org structure'!A16 -> Vote 15 - Electricity | C160: =SUM(C161:C170) -> 7617994 | D160: =SUM(D161:D170) -> 8590910 | E160: 8590910 | F160: 677855.62 | G160: 4339443.8 | H160: 4241318 | I160: 98125.8 | J160: 0.02313568565 | K160: 8590910
A161: ='Org structure'!E157 -> 15,1 - Electricity Administration | C161: 7617994 | D161: 8590910 | E161: 8590910 | F161: 677855.62 | G161: 4339443.8 | H161: 4241318 | I161: 98125.8 | J161: 0.02313568565 | K161: 8590910
A162: ='Org structure'!E158 -> 15,2 - Electricity Distribution | I162: 0
A163: ='Org structure'!E159 -> 15,3 - Electricity Generation | I163: 0
A164: ='Org structure'!E160 -> 0 | I164: 0
A165: ='Org structure'!E161 -> 0 | I165: 0
A166: ='Org structure'!E162 -> 0 | I166: 0
A167: ='Org structure'!E163 -> 0 | I167: 0
A168: ='Org structure'!E164 -> 0 | I168: 0
A169: ='Org structure'!E165 -> 0 | I169: 0
A170: ='Org structure'!E166 -> 0 | I170: 0 | L170: =SUM(L78:L81) -> 0 | M170: 0 | N170: 0 | O170: 0 | P170: 0 | Q170: 0 | R170: 0 | S170: 0 | T170: 0 | U170: 0 | V170: 0 | W170: 0
A171: Total Revenue by Vote | B171: 2 | C171: =C6+C17+C28+C39+C50+C61+C72+C83+C94+C105+C116+C127+C138+C149+C160 -> 57128655 | D171: =D6+D17+D28+D39+D50+D61+D72+D83+D94+D105+D116+D127+D138+D149+D160 -> 65283751 | E171: 65283751 | F171: 2667451.13 | G171: 33861930.34 | H171: 40343678 | I171: -6481747.66 | J171: -0.1606632806 | K171: 65283751
I172: 0
A173: Expenditure by Vote | B173: 1 | I173: 0
A174: ='Org structure'!A2 -> Vote 1 - Executive and Council | C174: =SUM(C175:C184) -> 18558951 | D174: 23078495 | E174: 23078495 | F174: 1110656.61 | G174: 8537917.08 | H174: 9242734 | I174: -704816.92 | J174: -0.07625632416 | K174: 23078495
A175: ='Org structure'!E3 -> 1,1 - Executive and Council | C175: 18558951 | D175: 23078495 | E175: 23078495 | F175: 1110656.61 | G175: 8537917.08 | H175: 9242734 | I175: -704816.92 | J175: -0.07625632416 | K175: 23078495
A176: ='Org structure'!E4 -> 0 | I176: 0
A177: ='Org structure'!E5 -> 0 | I177: 0
A178: ='Org structure'!E6 -> 0 | I178: 0
A179: ='Org structure'!E7 -> 0 | I179: 0
A180: ='Org structure'!E8 -> 0 | I180: 0
A181: ='Org structure'!E9 -> 0 | I181: 0
A182: ='Org structure'!E10 -> 0 | I182: 0
A183: ='Org structure'!E11 -> 0 | I183: 0
A184: ='Org structure'!E12 -> 0 | I184: 0
A185: ='Org structure'!A3 -> Vote 2 - Budget and Treasury | C185: =SUM(C186:C195) -> 7626701 | D185: =SUM(D186:D195) -> 9512394 | E185: =SUM(E186:E195) -> 9512394 | F185: 1131425.64 | G185: 3824968.86 | H185: 4931138 | I185: -1106169.14 | J185: -0.2243232982 | K185: 9512394
A186: ='Org structure'!E14 -> 2,1 - Official Housing | C186: 1245 | D186: 4833 | E186: 4833 | F186: 75 | G186: 541.35 | H186: 4931138 | I186: -4930596.65 | J186: -0.999890218 | K186: 4833
A187: ='Org structure'!E15 -> 2,2 - Rates | C187: 0 | D187: 0 | E187: 0 | F187: 0 | G187: 0 | I187: 0 | K187: 0
A188: ='Org structure'!E16 -> 2,3 - Commonage | C188: 83575 | D188: 99962 | E188: 99962 | F188: 2692.6 | G188: 17675.99 | I188: 17675.99 | K188: 99962
A189: ='Org structure'!E17 -> 2,4 - Municipal Buildings | C189: 238940 | D189: 281103 | E189: 281103 | F189: 8982.48 | G189: 62685.27 | I189: 62685.27 | K189: 281103
A190: ='Org structure'!E18 -> 2,5 - Budget and Treasury Office | C190: 7250599 | D190: 9063825 | E190: 9063825 | F190: 1116982.96 | G190: 3712423.82 | I190: 3712423.82 | K190: 9063825
A191: ='Org structure'!E19 -> 2,6 - Airport | C191: 52309 | D191: 62131 | E191: 62131 | F191: 2692.6 | G191: 31624.43 | I191: 31624.43 | K191: 62131
A192: ='Org structure'!E20 -> 2,7 - Abattoir | C192: 33 | D192: 540 | E192: 540 | F192: 0 | G192: 18 | I192: 18 | K192: 540
A193: ='Org structure'!E21 -> 0 | I193: 0
A194: ='Org structure'!E22 -> 0 | I194: 0
A195: ='Org structure'!E23 -> 0 | I195: 0
A196: ='Org structure'!A4 -> Vote 3 - Corporate Services | C196: =SUM(C197:C206) -> 1841246 | D196: 2736507 | E196: 2736507 | F196: 188256.65 | G196: 1105637.96 | H196: 1137532 | I196: -31894.04 | J196: -0.02803792772 | K196: 2736507
A197: ='Org structure'!E25 -> 3,1 - Corporate Services | C197: 1841246 | D197: 2736507 | E197: 2736507 | F197: 188256.65 | G197: 1105637.96 | H197: 1137532 | I197: -31894.04 | J197: -0.02803792772 | K197: 2736507
A198: ='Org structure'!E26 -> 0 | I198: =G198-H198 -> 0 | J198: =IF(I198=0,"",I198/H198) -> 
A199: ='Org structure'!E27 -> 0 | I199: 0
A200: ='Org structure'!E28 -> 0 | I200: 0
... 147 more rows

Sheet C4-FinPerf RE
A1: =muni& " - "&S71B& " - "&date -> NC074 Kareeberg - Table C4 Monthly Budget Statement - Financial Performance (revenue and expenditure) - Mid-Year Assessment
A2: =desc -> Description | B2: =head27 -> Ref | C2: =Head1 -> 2014/15 | D2: =Head2 -> Budget Year 2015/16
C3: =Head5 -> Audited Outcome | D3: =Head6 -> Original Budget | E3: =Head7 -> Adjusted Budget | F3: =Head38 -> Monthly actual | G3: =Head39 -> YearTD actual | H3: =Head40 -> YearTD budget | I3: =Head41 -> YTD variance | J3: =Head41 -> YTD variance | K3: =Head8 -> Full Year Forecast
A4: R thousands | J4: %
A5: Revenue By Source
A6: Property rates | C6: 4197712 | D6: 4353217 | E6: 4353217 | F6: 0 | G6: 4436123.89 | H6: 4353217 | I6: =G6-H6 -> 82906.89 | J6: =IF(I6=0,"",I6/H6) -> 0.01904497065 | K6: 4353217
A7: Property rates - penalties & collection charges | C7: 220605 | D7: 190000 | E7: 190000 | F7: 18832.75 | G7: 96883.25 | H7: 105734 | I7: -8850.75 | J7: -0.08370770046 | K7: 190000
A8: Service charges - electricity revenue | C8: 7617894 | D8: 8590210 | E8: 8590210 | F8: 677855.62 | G8: 4339363.8 | H8: 4069195 | I8: 270168.8 | J8: 0.06639367246 | K8: 8590210
A9: Service charges - water revenue | C9: 4318992 | D9: 4522096 | E9: 4522096 | F9: 362603.2 | G9: 2200110.24 | H9: 2142121 | I9: 57989.24 | J9: 0.02707094511 | K9: 4522096
A10: Service charges - sanitation revenue | C10: 2598446 | D10: 2695568 | E10: 2695568 | F10: 207934.06 | G10: 1331558.91 | H10: 1276891 | I10: 54667.91 | J10: 0.04281329417 | K10: 2695568
A11: Service charges - refuse revenue | C11: 3414462 | D11: 3756364 | E11: 3756364 | F11: 294446.8 | G11: 1807646.68 | H11: 1779392 | I11: 28254.68 | J11: 0.01587883951 | K11: 3756364
A12: Service charges - other | D12: 0 | E12: 0 | F12: 0 | G12: 0 | H12: 0 | I12: 0 | K12: 0
A13: Rental of facilities and equipment | C13: 389845 | D13: 339214 | E13: 339214 | F13: 3357 | G13: 122159.71 | H13: 187565.8819 | I13: -65406.17191 | J13: -0.3487103904 | K13: 339214
A14: Interest earned - external investments | C14: 1592813 | D14: 1297000 | E14: 1297000 | F14: 294117.91 | G14: 579642.93 | H14: 498997 | I14: 80645.93 | J14: 0.1616160618 | K14: 1297000
A15: Interest earned - outstanding debtors | C15: 2572 | D15: 3300 | E15: 3300 | F15: 181.75 | G15: 1173.39 | H15: 1548 | I15: -374.61 | J15: -0.241996124 | K15: 3300
A16: Dividends received | D16: 0 | E16: 0 | F16: 0 | G16: 0 | H16: 0 | I16: 0 | K16: 0
A17: Fines | C17: 6900 | D17: 12230 | E17: 12230 | F17: 674.8 | G17: 4693.6 | H17: 6141 | I17: -1447.4 | J17: -0.2356945123 | K17: 12230
A18: Licences and permits | C18: 6072 | D18: 7420 | E18: 7420 | F18: 318 | G18: 2907 | H18: 2461.573614 | I18: 445.4263862 | J18: 0.1809518853 | K18: 7420
A19: Agency services | C19: 147351 | D19: 103333 | E19: 103333 | F19: 10482.72 | G19: 78078.42 | H19: 40224.96982 | I19: 37853.45018 | J19: 0.9410435945 | K19: 103333
A20: Transfers recognised - operational | C20: 19551846 | D20: 23060000 | E20: 23060000 | F20: 377872.7 | G20: 14989386.32 | H20: 17053000 | I20: -2063613.68 | J20: -0.121011768 | K20: 23060000
A21: Other revenue | C21: 3036971 | D21: 8425799 | E21: 8425799 | F21: 69289.65 | G21: 537004.3 | H21: 899189.6212 | I21: -362185.3212 | J21: -0.402790816 | K21: 8425799
A22: Gains on disposal of PPE | D22: 0 | E22: 0 | F22: 0 | G22: 0 | H22: 0 | I22: 0 | K22: 0
A23: Total Revenue (excluding capital transfers and contributions) | C23: =SUM(C6:C22) -> 47102481 | D23: 57355751 | E23: 57355751 | F23: 2317966.96 | G23: 30526732.44 | H23: 32415678.05 | I23: -1888945.607 | J23: -0.05827259278 | K23: =SUM(K6:K22) -> 57355751
A25: Expenditure By Type
A26: Employee related costs | C26: 16252967 | D26: 16881136 | E26: 16881136 | F26: 1690794.97 | G26: 8142598.66 | H26: 8034060 | I26: =G26-H26 -> 108538.66 | J26: =IF(I26=0,"",I26/H26) -> 0.01350981446 | K26: 16881136
A27: Remuneration of councillors | C27: 2020110 | D27: 2062366 | E27: 2062366 | F27: 170027.93 | G27: 1006539.18 | H27: 977418 | I27: 29121.18 | J27: 0.02979398783 | K27: 2062366
A28: Debt impairment | D28: 2436881 | E28: 2436881 | F28: 0 | G28: 0 | H28: 0 | I28: 0 | K28: 2436881
A29: Depreciation & asset impairment | C29: 3045069 | D29: 4322911 | E29: 4322911 | F29: 0 | G29: 0 | H29: 0 | I29: 0 | K29: 4322911
A30: Finance charges | C30: 873128 | D30: 831014 | E30: 831014 | F30: 0 | G30: 0 | H30: 0 | I30: 0 | K30: 831014
A31: Bulk purchases | C31: 8532727 | D31: 9698001 | E31: 9698001 | F31: 717323.64 | G31: 4695996.59 | H31: 5321794 | I31: -625797.41 | J31: -0.1175914382 | K31: 9698001
A32: Other materials | C32: 880124 | D32: 469100 | E32: 469100 | F32: 99960.52 | G32: 773628.35 | H32: 245370 | I32: 528258.35 | J32: 2.152905204 | K32: 469100
A33: Contracted services | C33: 1607291 | D33: 515900 | E33: 515900 | F33: 38061.85 | G33: 618325.83 | H33: 269850 | I33: 348475.83 | J33: 1.291368649 | K33: 515900
A34: Transfers and grants | C34: 8018446 | D34: 9303352 | E34: 9303352 | F34: 355336.42 | G34: 4129091.34 | H34: 6202234 | I34: -2073142.66 | J34: -0.3342574079 | K34: 9303352
A35: Other expenditure | C35: 8065853 | D35: 12633090 | E35: 12633090 | F35: 1014710.9 | G35: 4200670.483 | H35: 4062156 | I35: 138514.483 | J35: 0.03409876012 | K35: 12633090
A36: Loss on disposal of PPE | C36: 41936 | D36: 2000 | E36: 2000 | F36: 0 | G36: 0 | H36: 0 | I36: 0 | K36: 2000
A37: Total Expenditure | C37: =SUM(C26:C36) -> 49337651 | D37: =SUM(D26:D36) -> 59155751 | E37: =SUM(E26:E36) -> 59155751 | F37: 4086216.23 | G37: 23566850.43 | H37: 25112882 | I37: -1546031.567 | J37: -0.0615632872 | K37: 59155751
A39: Surplus/(Deficit) | C39: =C23-C37 -> -2235170 | D39: -1800000 | E39: -1800000 | F39: -1768249.27 | G39: 6959882.007 | H39: 7302796.047 | I39: =I23-I37 -> -342914.0396 | J39: -0.04695654067 | K39: =K23-K37 -> -1800000
A40: Transfers recognised - capital | C40: 10026174 | D40: 7928000 | E40: 7928000 | F40: 349484.17 | G40: 3335197.9 | H40: 7928000 | I40: =G40-H40 -> -4592802.1 | J40: -0.5793140893 | K40: 7928000
A41: Contributions recognised - capital | I41: =G41-H41 -> 0
A42: Contributed assets | I42: =G42-H42 -> 0
A43: Surplus/(Deficit) after capital transfers & contributions | C43: =C39+SUM(C40:C42) -> 7791004 | D43: 6128000 | E43: 6128000 | F43: -1418765.1 | G43: 10295079.91 | H43: 15230796.05 | K43: =K39+SUM(K40:K42) -> 6128000
A44: Taxation | I44: =G44-H44 -> 0 | J44: =IF(I44=0,"",I44/H44) -> 
A45: Surplus/(Deficit) after taxation | C45: =C43-C44 -> 7791004 | D45: 6128000 | E45: 6128000 | F45: -1418765.1 | G45: 10295079.91 | H45: 15230796.05 | K45: =K43-K44 -> 6128000
A46: Attributable to minorities
A47: Surplus/(Deficit) attributable to municipality | C47: =SUM(C45:C46) -> 7791004 | D47: 6128000 | E47: 6128000 | F47: -1418765.1 | G47: 10295079.91 | H47: 15230796.05 | K47: =SUM(K45:K46) -> 6128000
A48: Share of surplus/ (deficit) of associate
A49: Surplus/ (Deficit) for the year | C49: =C47+C48 -> 7791004 | D49: 6128000 | E49: 6128000 | F49: -1418765.1 | G49: 10295079.91 | H49: 15230796.05 | K49: =K47+K48 -> 6128000
A50: =head27a -> References
A51: 1. Material variances to be explained on Table SC1
A54: =A23&" including capital transfers/contributions etc" -> Total Revenue (excluding capital transfers and contributions) including capital transfers/contributions etc | C54: =C23+SUM(C40:C42) -> 57128655 | D54: 65283751 | E54: 65283751 | F54: 2667451.13 | G54: 33861930.34 | H54: 40343678.05 | K54: =K23+SUM(K40:K42) -> 65283751

Sheet C5-Capex
A1: =muni& " - "&S71D& " - "&date -> NC074 Kareeberg - Table C5 Monthly Budget Statement - Capital Expenditure (municipal vote, standard classification and funding) - Mid-Year Assessment
A2: =Vdesc -> Vote Description | B2: =head27 -> Ref | C2: =Head1 -> 2014/15 | D2: =Head2 -> Budget Year 2015/16
C3: =Head5 -> Audited Outcome | D3: =Head6 -> Original Budget | E3: =Head7 -> Adjusted Budget | F3: =Head38 -> Monthly actual | G3: =Head39 -> YearTD actual | H3: =Head40 -> YearTD budget | I3: =Head41 -> YTD variance | J3: =Head41 -> YTD variance | K3: =Head8 -> Full Year Forecast
A4: R thousands | B4: 1 | J4: %
A5: Multi-Year expenditure appropriation | B5: 2
A6: ='Org structure'!A2 -> Vote 1 - Executive and Council | C6: ='C5C'!C7 -> 0 | D6: ='C5C'!D7 -> 0 | E6: ='C5C'!E7 -> 0 | F6: ='C5C'!F7 -> 0 | G6: ='C5C'!G7 -> 0 | H6: ='C5C'!H7 -> 0 | I6: =G6-H6 -> 0 | J6: =IF(I6=0,"",I6/H6) ->  | K6: ='C5C'!K7 -> 0
A7: ='Org structure'!A3 -> Vote 2 - Budget and Treasury | C7: ='C5C'!C18 -> 0 | D7: ='C5C'!D18 -> 0 | E7: ='C5C'!E18 -> 0 | F7: ='C5C'!F18 -> 0 | G7: ='C5C'!G18 -> 0 | H7: ='C5C'!H18 -> 0 | I7: =G7-H7 -> 0 | J7: =IF(I7=0,"",I7/H7) ->  | K7: ='C5C'!K18 -> 0
A8: ='Org structure'!A4 -> Vote 3 - Corporate Services | C8: ='C5C'!C29 -> 0 | D8: ='C5C'!D29 -> 0 | E8: ='C5C'!E29 -> 0 | F8: ='C5C'!F29 -> 0 | G8: ='C5C'!G29 -> 0 | H8: ='C5C'!H29 -> 0 | I8: =G8-H8 -> 0 | J8: =IF(I8=0,"",I8/H8) ->  | K8: ='C5C'!K29 -> 0
A9: ='Org structure'!A5 -> Vote 4 - Planning and Development | C9: ='C5C'!C40 -> 0 | D9: ='C5C'!D40 -> 0 | E9: ='C5C'!E40 -> 0 | F9: ='C5C'!F40 -> 0 | G9: ='C5C'!G40 -> 0 | H9: ='C5C'!H40 -> 0 | I9: 0 | K9: ='C5C'!K40 -> 0
A10: ='Org structure'!A6 -> Vote 5 - Health | C10: ='C5C'!C51 -> 0 | D10: ='C5C'!D51 -> 0 | E10: ='C5C'!E51 -> 0 | F10: ='C5C'!F51 -> 0 | G10: ='C5C'!G51 -> 0 | H10: ='C5C'!H51 -> 0 | I10: 0 | K10: ='C5C'!K51 -> 0
A11: ='Org structure'!A7 -> Vote 6 - Community and Social Services | C11: ='C5C'!C62 -> 0 | D11: ='C5C'!D62 -> 0 | E11: ='C5C'!E62 -> 0 | F11: ='C5C'!F62 -> 0 | G11: ='C5C'!G62 -> 0 | H11: ='C5C'!H62 -> 0 | I11: 0 | K11: ='C5C'!K62 -> 0
A12: ='Org structure'!A8 -> Vote 7 - Housing | C12: ='C5C'!C73 -> 0 | D12: ='C5C'!D73 -> 0 | E12: ='C5C'!E73 -> 0 | F12: ='C5C'!F73 -> 0 | G12: ='C5C'!G73 -> 0 | H12: ='C5C'!H73 -> 0 | I12: 0 | K12: ='C5C'!K73 -> 0
A13: ='Org structure'!A9 -> Vote 8 - Public Safety | C13: ='C5C'!C84 -> 0 | D13: ='C5C'!D84 -> 0 | E13: ='C5C'!E84 -> 0 | F13: ='C5C'!F84 -> 0 | G13: ='C5C'!G84 -> 0 | H13: ='C5C'!H84 -> 0 | I13: 0 | K13: ='C5C'!K84 -> 0
A14: ='Org structure'!A10 -> Vote 9 - Sport and Recreation | C14: ='C5C'!C95 -> 0 | D14: ='C5C'!D95 -> 0 | E14: ='C5C'!E95 -> 0 | F14: ='C5C'!F95 -> 0 | G14: ='C5C'!G95 -> 0 | H14: ='C5C'!H95 -> 0 | I14: 0 | K14: ='C5C'!K95 -> 0
A15: ='Org structure'!A11 -> Vote 10 - Environmental Protection | C15: ='C5C'!C106 -> 0 | D15: ='C5C'!D106 -> 0 | E15: ='C5C'!E106 -> 0 | F15: ='C5C'!F106 -> 0 | G15: ='C5C'!G106 -> 0 | H15: ='C5C'!H106 -> 0 | I15: 0 | K15: ='C5C'!K106 -> 0
A16: ='Org structure'!A12 -> Vote 11 - Solid Waste Management | C16: ='C5C'!C117 -> 0 | D16: ='C5C'!D117 -> 0 | E16: ='C5C'!E117 -> 0 | F16: ='C5C'!F117 -> 0 | G16: ='C5C'!G117 -> 0 | H16: ='C5C'!H117 -> 0 | I16: 0 | K16: ='C5C'!K117 -> 0
A17: ='Org structure'!A13 -> Vote 12 - Waste Water Management | C17: ='C5C'!C128 -> 0 | D17: ='C5C'!D128 -> 0 | E17: ='C5C'!E128 -> 0 | F17: ='C5C'!F128 -> 0 | G17: ='C5C'!G128 -> 0 | H17: ='C5C'!H128 -> 0 | I17: 0 | K17: ='C5C'!K128 -> 0
A18: ='Org structure'!A14 -> Vote 13 - Road Transport | C18: ='C5C'!C139 -> 0 | D18: ='C5C'!D139 -> 0 | E18: ='C5C'!E139 -> 0 | F18: ='C5C'!F139 -> 0 | G18: ='C5C'!G139 -> 0 | H18: ='C5C'!H139 -> 0 | I18: =G18-H18 -> 0 | J18: =IF(I18=0,"",I18/H18) ->  | K18: ='C5C'!K139 -> 0
A19: ='Org structure'!A15 -> Vote 14 - Water | C19: ='C5C'!C150 -> 0 | D19: ='C5C'!D150 -> 0 | E19: ='C5C'!E150 -> 0 | F19: ='C5C'!F150 -> 0 | G19: ='C5C'!G150 -> 0 | H19: ='C5C'!H150 -> 0 | I19: =G19-H19 -> 0 | J19: =IF(I19=0,"",I19/H19) ->  | K19: ='C5C'!K150 -> 0
A20: ='Org structure'!A16 -> Vote 15 - Electricity | C20: ='C5C'!C161 -> 0 | D20: ='C5C'!D161 -> 0 | E20: ='C5C'!E161 -> 0 | F20: ='C5C'!F161 -> 0 | G20: ='C5C'!G161 -> 0 | H20: ='C5C'!H161 -> 0 | I20: =G20-H20 -> 0 | J20: =IF(I20=0,"",I20/H20) ->  | K20: ='C5C'!K161 -> 0
A21: Total Capital Multi-year expenditure | B21: 4,7 | C21: =SUM(C6:C20) -> 0 | D21: =SUM(D6:D20) -> 0 | E21: 0 | F21: 0 | G21: 0 | H21: 0 | I21: 0 | J21: =IF(I21=0,"",I21/H21) ->  | K21: =SUM(K6:K20) -> 0
A23: Single Year expenditure appropriation | B23: 2
A24: ='Org structure'!A2 -> Vote 1 - Executive and Council | C24: ='C5C'!C176 -> 657 | D24: ='C5C'!D176 -> 0 | E24: ='C5C'!E176 -> 0 | F24: ='C5C'!F176 -> 0 | G24: ='C5C'!G176 -> 0 | H24: ='C5C'!H176 -> 0 | I24: ='C5C'!I176 -> 0 | J24: =IF(I24=0,"",I24/H24) ->  | K24: ='C5C'!K176 -> 0
A25: ='Org structure'!A3 -> Vote 2 - Budget and Treasury | C25: ='C5C'!C187 -> 10581 | D25: ='C5C'!D187 -> 0 | E25: ='C5C'!E187 -> 0 | F25: ='C5C'!F187 -> 20740.67 | G25: ='C5C'!G187 -> 181615.97 | H25: ='C5C'!H187 -> 0 | I25: ='C5C'!I187 -> 181615.97 | J25: =IF(I25=0,"",I25/H25) ->  | K25: ='C5C'!K187 -> 0
A26: ='Org structure'!A4 -> Vote 3 - Corporate Services | C26: ='C5C'!C198 -> 1823 | D26: ='C5C'!D198 -> 0 | E26: ='C5C'!E198 -> 0 | F26: ='C5C'!F198 -> 0 | G26: ='C5C'!G198 -> 3354.39 | H26: ='C5C'!H198 -> 0 | I26: ='C5C'!I198 -> 3354.39 | K26: ='C5C'!K198 -> 0
A27: ='Org structure'!A5 -> Vote 4 - Planning and Development | C27: ='C5C'!C209 -> 0 | D27: ='C5C'!D209 -> 0 | E27: ='C5C'!E209 -> 0 | F27: ='C5C'!F209 -> 0 | G27: ='C5C'!G209 -> 0 | H27: ='C5C'!H209 -> 0 | I27: ='C5C'!I209 -> 0 | K27: ='C5C'!K209 -> 0
A28: ='Org structure'!A6 -> Vote 5 - Health | C28: ='C5C'!C220 -> 0 | D28: ='C5C'!D220 -> 0 | E28: ='C5C'!E220 -> 0 | F28: ='C5C'!F220 -> 0 | G28: ='C5C'!G220 -> 0 | H28: ='C5C'!H220 -> 0 | I28: ='C5C'!I220 -> 0 | K28: ='C5C'!K220 -> 0
A29: ='Org structure'!A7 -> Vote 6 - Community and Social Services | C29: ='C5C'!C231 -> 896690 | D29: ='C5C'!D231 -> 0 | E29: ='C5C'!E231 -> 0 | F29: ='C5C'!F231 -> 87456.58 | G29: ='C5C'!G231 -> 322744.05 | H29: ='C5C'!H231 -> 0 | I29: ='C5C'!I231 -> 322744.05 | K29: ='C5C'!K231 -> 0
A30: ='Org structure'!A8 -> Vote 7 - Housing | C30: ='C5C'!C242 -> 0 | D30: ='C5C'!D242 -> 0 | E30: ='C5C'!E242 -> 0 | F30: ='C5C'!F242 -> 0 | G30: ='C5C'!G242 -> 0 | H30: ='C5C'!H242 -> 0 | I30: ='C5C'!I242 -> 0 | K30: ='C5C'!K242 -> 0
A31: ='Org structure'!A9 -> Vote 8 - Public Safety | C31: ='C5C'!C253 -> 0 | D31: ='C5C'!D253 -> 0 | E31: ='C5C'!E253 -> 0 | F31: ='C5C'!F253 -> 0 | G31: ='C5C'!G253 -> 0 | H31: ='C5C'!H253 -> 0 | I31: ='C5C'!I253 -> 0 | K31: ='C5C'!K253 -> 0
A32: ='Org structure'!A10 -> Vote 9 - Sport and Recreation | C32: ='C5C'!C264 -> 1405352 | D32: ='C5C'!D264 -> 1228000 | E32: ='C5C'!E264 -> 1228000 | F32: ='C5C'!F264 -> 10569.2 | G32: ='C5C'!G264 -> 141476.9 | H32: ='C5C'!H264 -> 1228000 | I32: ='C5C'!I264 -> -1086523.1 | J32: -0.884790798 | K32: ='C5C'!K264 -> 1228000
A33: ='Org structure'!A11 -> Vote 10 - Environmental Protection | C33: ='C5C'!C275 -> 0 | D33: ='C5C'!D275 -> 0 | E33: ='C5C'!E275 -> 0 | F33: ='C5C'!F275 -> 0 | G33: ='C5C'!G275 -> 0 | H33: ='C5C'!H275 -> 0 | I33: ='C5C'!I275 -> 0 | K33: ='C5C'!K275 -> 0
A34: ='Org structure'!A12 -> Vote 11 - Solid Waste Management | C34: ='C5C'!C286 -> 0 | D34: ='C5C'!D286 -> 1000000 | E34: ='C5C'!E286 -> 1000000 | F34: ='C5C'!F286 -> 0 | G34: ='C5C'!G286 -> 568.4 | H34: ='C5C'!H286 -> 1000000 | I34: ='C5C'!I286 -> -999431.6 | J34: -0.9994316 | K34: ='C5C'!K286 -> 1000000
A35: ='Org structure'!A13 -> Vote 12 - Waste Water Management | C35: ='C5C'!C297 -> 15624 | D35: ='C5C'!D297 -> 3700000 | E35: ='C5C'!E297 -> 3700000 | F35: ='C5C'!F297 -> 0 | G35: ='C5C'!G297 -> 689.7 | H35: ='C5C'!H297 -> 3700000 | I35: ='C5C'!I297 -> -3699310.3 | J35: -0.9998135946 | K35: ='C5C'!K297 -> 3700000
A36: ='Org structure'!A14 -> Vote 13 - Road Transport | C36: ='C5C'!C308 -> 5050824 | D36: ='C5C'!D308 -> 2000000 | E36: ='C5C'!E308 -> 2000000 | F36: ='C5C'!F308 -> 121870.04 | G36: ='C5C'!G308 -> 1363978.72 | H36: ='C5C'!H308 -> 2000000 | I36: ='C5C'!I308 -> -636021.28 | J36: -0.31801064 | K36: ='C5C'!K308 -> 2000000
A37: ='Org structure'!A15 -> Vote 14 - Water | C37: ='C5C'!C319 -> 2706787 | D37: ='C5C'!D319 -> 0 | E37: ='C5C'!E319 -> 0 | F37: ='C5C'!F319 -> 109635.22 | G37: ='C5C'!G319 -> 1342300.37 | H37: ='C5C'!H319 -> 0 | I37: ='C5C'!I319 -> 1342300.37 | K37: ='C5C'!K319 -> 0
A38: ='Org structure'!A16 -> Vote 15 - Electricity | C38: ='C5C'!C330 -> 0 | D38: ='C5C'!D330 -> 0 | E38: ='C5C'!E330 -> 0 | F38: ='C5C'!F330 -> 0 | G38: ='C5C'!G330 -> 0 | H38: ='C5C'!H330 -> 0 | I38: ='C5C'!I330 -> 0 | K38: ='C5C'!K330 -> 0
A39: Total Capital single-year expenditure | B39: 4 | C39: =SUM(C24:C38) -> 10088338 | D39: 7928000 | E39: 7928000 | F39: 350271.71 | G39: 3356728.5 | H39: 7928000 | I39: -4571271.5 | J39: -0.5765983224 | K39: =SUM(K24:K38) -> 7928000
A40: Total Capital Expenditure | C40: =C39+C21 -> 10088338 | D40: 7928000 | E40: 7928000 | F40: 350271.71 | G40: 3356728.5 | H40: 7928000 | I40: -4571271.5 | J40: =IF(I40=0,"",I40/H40) -> -0.5765983224 | K40: =K39+K21 -> 7928000
A42: Capital Expenditure - Standard Classification
A43: ='C2-FinPerf SC'!A29 -> Governance and administration | C43: =SUM(C44:C46) -> 13062 | D43: 0 | E43: 0 | F43: 20740.67 | G43: 184970.36 | H43: 0 | I43: =G43-H43 -> 184970.36 | J43: =IF(I43=0,"",I43/H43) ->  | K43: =SUM(K44:K46) -> 0
A44: ='C2-FinPerf SC'!A30 -> Executive and council | C44: 657 | D44: 0 | E44: 0 | F44: 0 | G44: 0 | H44: 0 | I44: 0 | J44: =IF(I44=0,"",I44/H44) -> 
A45: ='C2-FinPerf SC'!A31 -> Budget and treasury office | C45: 10582 | D45: 0 | E45: 0 | F45: 20740.67 | G45: 181615.97 | H45: 0 | I45: 181615.97
A46: ='C2-FinPerf SC'!A32 -> Corporate services | C46: 1823 | D46: 0 | E46: 0 | F46: 0 | G46: 3354.39 | H46: 0 | I46: 3354.39
A47: ='C2-FinPerf SC'!A33 -> Community and public safety | C47: =SUM(C48:C52) -> 2302041 | D47: 1228000 | E47: 1228000 | F47: 98025.78 | G47: 464220.95 | H47: 1228000 | I47: -763779.05 | J47: -0.6219699104 | K47: =SUM(K48:K52) -> 1228000
A48: ='C2-FinPerf SC'!A34 -> Community and social services | C48: 896690 | D48: 0 | E48: 0 | F48: 87456.58 | G48: 322744.05 | H48: 0 | I48: 322744.05
A49: ='C2-FinPerf SC'!A35 -> Sport and recreation | C49: 1405351 | D49: 1228000 | E49: 1228000 | F49: 10569.2 | G49: 141476.9 | H49: 1228000 | I49: -1086523.1 | J49: -0.884790798 | K49: 1228000
A50: ='C2-FinPerf SC'!A36 -> Public safety | F50: 0 | G50: 0 | H50: 0 | I50: 0
A51: ='C2-FinPerf SC'!A37 -> Housing | F51: 0 | G51: 0 | H51: 0 | I51: 0
A52: ='C2-FinPerf SC'!A38 -> Health | F52: 0 | G52: 0 | H52: 0 | I52: 0
A53: ='C2-FinPerf SC'!A39 -> Economic and environmental services | C53: =SUM(C54:C56) -> 5050824 | D53: 2000000 | E53: 2000000 | F53: 121870.04 | G53: 1363978.72 | H53: 2000000 | I53: -636021.28 | J53: -0.31801064 | K53: =SUM(K54:K56) -> 2000000
A54: ='C2-FinPerf SC'!A40 -> Planning and development | F54: 0 | G54: 0 | H54: 0 | I54: 0
A55: ='C2-FinPerf SC'!A41 -> Road transport | C55: 5050824 | D55: 2000000 | E55: 2000000 | F55: 121870.04 | G55: 1363978.72 | H55: 2000000 | I55: -636021.28 | J55: -0.31801064 | K55: 2000000
A56: ='C2-FinPerf SC'!A42 -> Environmental protection | F56: 0 | G56: 0 | H56: 0 | I56: 0
A57: ='C2-FinPerf SC'!A43 -> Trading services | C57: =SUM(C58:C61) -> 2722411 | D57: 4700000 | E57: 4700000 | F57: 109635.22 | G57: 1343558.47 | H57: 4700000 | I57: -3356441.53 | J57: -0.7141364957 | K57: =SUM(K58:K61) -> 4700000
A58: ='C2-FinPerf SC'!A44 -> Electricity | F58: 0 | G58: 0 | H58: 0 | I58: 0
A59: ='C2-FinPerf SC'!A45 -> Water | C59: 2706787 | D59: 0 | E59: 0 | F59: 109635.22 | G59: 1342300.37 | H59: 0 | I59: 1342300.37 | K59: 3700000
A60: ='C2-FinPerf SC'!A46 -> Waste water management | C60: 15624 | D60: 3700000 | E60: 3700000 | F60: 0 | G60: 689.7 | H60: 3700000 | I60: -3699310.3 | J60: -0.9998135946 | K60: 1000000
A61: ='C2-FinPerf SC'!A47 -> Waste management | D61: 1000000 | E61: 1000000 | F61: 0 | G61: 568.4 | H61: 1000000 | I61: -999431.6 | J61: -0.9994316
A62: ='C2-FinPerf SC'!A48 -> Other | I62: 0
A63: Total Capital Expenditure - Standard Classification | B63: 3 | C63: =C43+C47+C53+C57+C62 -> 10088338 | D63: =D43+D47+D53+D57+D62 -> 7928000 | E63: 7928000 | F63: 350271.71 | G63: 3356728.5 | H63: 7928000 | I63: -4571271.5 | J63: -0.5765983224 | K63: =K43+K47+K53+K57+K62 -> 7928000
A65: Funded by:
A66: National Government | C66: 9649413 | D66: 7928000 | E66: 7928000 | F66: 314744.17 | G66: 3116022.55 | H66: 7928000 | I66: =G66-H66 -> -4811977.45 | J66: =IF(I66=0,"",I66/H66) -> -0.6069598196 | K66: 7928000
A67: Provincial Government | C67: 376762 | D67: 0 | E67: 0 | F67: 34740 | G67: 219175.32 | H67: 0 | I67: 219175.32
A68: District Municipality | G68: 0 | H68: 0 | I68: 0
A69: Other transfers and grants | G69: 0 | H69: 0 | I69: 0
A70: Transfers recognised - capital | C70: =SUM(C66:C69) -> 10026175 | D70: 7928000 | E70: 7928000 | F70: 349484.17 | G70: 3335197.87 | H70: 7928000 | I70: -4592802.13 | J70: -0.5793140931 | K70: =SUM(K66:K69) -> 7928000
A71: Public contributions & donations | B71: 5 | G71: 0 | H71: 0 | I71: 0
A72: Borrowing | B72: 6 | G72: 0 | H72: 0 | I72: 0
A73: Internally generated funds | C73: 62163 | D73: 0 | E73: 0 | F73: 787.54 | G73: 21530.6 | H73: 0 | I73: 21530.6
A74: Total Capital Funding | C74: =SUM(C70:C73) -> 10088338 | D74: 7928000 | E74: 7928000 | F74: =SUM(F70:F73) -> 350271.71 | G74: =SUM(G70:G73) -> 3356728.47 | H74: =SUM(H70:H73) -> 7928000 | I74: -4571271.53 | J74: -0.5765983262 | K74: 7928000
A75: =head27a -> References
A76: 1. Municipalities may choose to appropriate for capital expenditure for three years or for one year (if one year appropriation projected expenditure required for yr2 and yr3).
A77: 2. Include capital component of PPP unitary payment
A78: 3. Capital expenditure by standard classification must reconcile to the total of multi-year and single year appropriations
A79: 4. Include expenditure on investment property, intangible and biological assets
A80: 5. Must reconcile to Monthly Budget Statement Financial Performance (revenue and expenditure)
A81: 6. Include finance leases and PPP capital funding component of unitary payment - total borrowing/repayments to reconcile to changes in Table SA17
A86: check balance | C86: =C40-C74 -> 0 | D86: =D40-D74 -> 0 | E86: 0 | F86: 0 | G86: 0.03000000026 | H86: 0 | K86: 0

Sheet C5C
A1: =muni& " - "&S71D& " - "&"A"& " - "&date -> NC074 Kareeberg - Table C5 Monthly Budget Statement - Capital Expenditure (municipal vote, standard classification and funding) - A - Mid-Year Assessment
A2: =Vdesc -> Vote Description | B2: =head27 -> Ref | C2: =Head1 -> 2014/15 | D2: =Head2 -> Budget Year 2015/16 | L2: =Head4 -> 
A3: R thousand | C3: =Head5 -> Audited Outcome | D3: =Head6 -> Original Budget | E3: =Head7 -> Adjusted Budget | F3: =Head38 -> Monthly actual | G3: =Head39 -> YearTD actual | H3: =Head40 -> YearTD budget | I3: =Head41 -> YTD variance | J3: =Head41 -> YTD variance | K3: =Head8 -> Full Year Forecast | L3: =Head12 -> Forecast 2010/11 | M3: =Head13 -> Forecast 2011/12 | N3: =Head14 -> Forecast 2012/13 | O3: =Head15 -> Forecast 2013/14 | P3: =Head16 -> Forecast 2014/15 | Q3: =Head17 -> Forecast 2015/16 | R3: =Head18 -> Forecast 2016/17 | S3: =Head19 -> Forecast 2017/18 | T3: =Head20 -> Forecast 2018/19 | U3: =Head21 -> Forecast 2019/20 | V3: =Head22 -> Forecast 2020/21 | W3: =Head23 -> Forecast 2021/22
J4: %
A5: Capital expenditure - Municipal Vote
A6: Expenditure of multi-year capital appropriation | B6: 1
A7: ='Org structure'!A2 -> Vote 1 - Executive and Council | C7: =SUM(C8:C17) -> 0 | D7: =SUM(D8:D17) -> 0 | E7: 0 | F7: 0 | G7: 0 | H7: 0 | I7: =G7-H7 -> 0 | J7: =IF(I7=0,"",I7/H7) ->  | K7: 0
A8: ='Org structure'!E3 -> 1,1 - Executive and Council | I8: 0
A9: ='Org structure'!E4 -> 0 | I9: 0
A10: ='Org structure'!E5 -> 0 | I10: 0
A11: ='Org structure'!E6 -> 0 | I11: 0
A12: ='Org structure'!E7 -> 0 | I12: 0
A13: ='Org structure'!E8 -> 0 | I13: 0
A14: ='Org structure'!E9 -> 0 | I14: 0
A15: ='Org structure'!E10 -> 0 | I15: 0
A16: ='Org structure'!E11 -> 0 | I16: 0
A17: ='Org structure'!E12 -> 0 | I17: 0
A18: ='Org structure'!A3 -> Vote 2 - Budget and Treasury | C18: =SUM(C19:C28) -> 0 | D18: =SUM(D19:D28) -> 0 | E18: 0 | F18: 0 | G18: 0 | H18: 0 | I18: 0 | K18: 0
A19: ='Org structure'!E14 -> 2,1 - Official Housing | I19: 0
A20: ='Org structure'!E15 -> 2,2 - Rates | I20: 0
A21: ='Org structure'!E16 -> 2,3 - Commonage | I21: 0
A22: ='Org structure'!E17 -> 2,4 - Municipal Buildings | I22: 0
A23: ='Org structure'!E18 -> 2,5 - Budget and Treasury Office | I23: 0
A24: ='Org structure'!E19 -> 2,6 - Airport | I24: 0
A25: ='Org structure'!E20 -> 2,7 - Abattoir | I25: 0
A26: ='Org structure'!E21 -> 0 | I26: 0
A27: ='Org structure'!E22 -> 0 | I27: 0
A28: ='Org structure'!E23 -> 0 | I28: 0
A29: ='Org structure'!A4 -> Vote 3 - Corporate Services | C29: =SUM(C30:C39) -> 0 | D29: 0 | E29: 0 | F29: 0 | G29: 0 | H29: 0 | I29: 0 | K29: 0
A30: ='Org structure'!E25 -> 3,1 - Corporate Services | I30: 0
A31: ='Org structure'!E26 -> 0 | I31: 0
A32: ='Org structure'!E27 -> 0 | I32: 0
A33: ='Org structure'!E28 -> 0 | I33: 0
A34: ='Org structure'!E29 -> 0 | I34: 0
A35: ='Org structure'!E30 -> 0 | I35: 0
A36: ='Org structure'!E31 -> 0 | I36: 0
A37: ='Org structure'!E32 -> 0 | I37: 0
A38: ='Org structure'!E33 -> 0 | I38: 0
A39: ='Org structure'!E34 -> 0 | I39: 0
A40: ='Org structure'!A5 -> Vote 4 - Planning and Development | C40: =SUM(C41:C50) -> 0 | D40: 0 | E40: 0 | F40: 0 | G40: 0 | H40: 0 | I40: 0 | K40: 0
A41: ='Org structure'!E36 -> 4.1 - [Name of sub-vote] | I41: 0
A42: ='Org structure'!E37 -> 0 | I42: 0
A43: ='Org structure'!E38 -> 0 | I43: 0
A44: ='Org structure'!E39 -> 0 | I44: 0
A45: ='Org structure'!E40 -> 0 | I45: 0
A46: ='Org structure'!E41 -> 0 | I46: 0
A47: ='Org structure'!E42 -> 0 | I47: 0
A48: ='Org structure'!E43 -> 0 | I48: 0
A49: ='Org structure'!E44 -> 0 | I49: 0
A50: ='Org structure'!E45 -> 0 | I50: 0
A51: ='Org structure'!A6 -> Vote 5 - Health | C51: =SUM(C52:C61) -> 0 | D51: =SUM(D52:D61) -> 0 | E51: 0 | F51: 0 | G51: 0 | H51: 0 | I51: 0 | K51: 0
A52: ='Org structure'!E47 -> 5,1 - Health | I52: 0
A53: ='Org structure'!E48 -> 5,2 - Clinics | I53: 0
A54: ='Org structure'!E49 -> 0 | I54: 0
A55: ='Org structure'!E50 -> 0 | I55: 0
A56: ='Org structure'!E51 -> 0 | I56: 0
A57: ='Org structure'!E52 -> 0 | I57: 0
A58: ='Org structure'!E53 -> 0 | I58: 0
A59: ='Org structure'!E54 -> 0 | I59: 0
A60: ='Org structure'!E55 -> 0 | I60: 0
A61: ='Org structure'!E56 -> 0 | I61: 0
A62: ='Org structure'!A7 -> Vote 6 - Community and Social Services | C62: =SUM(C63:C72) -> 0 | D62: =SUM(D63:D72) -> 0 | E62: 0 | F62: 0 | G62: 0 | H62: 0 | I62: 0 | K62: 0
A63: ='Org structure'!E58 -> 6,1 - Cemetry | I63: 0
A64: ='Org structure'!E59 -> 6,2 - Library | I64: 0
A65: ='Org structure'!E60 -> 6,3 - Museum | I65: 0
A66: ='Org structure'!E61 -> 0 | I66: 0
A67: ='Org structure'!E62 -> 0 | I67: 0
A68: ='Org structure'!E63 -> 0 | I68: 0
A69: ='Org structure'!E64 -> 0 | I69: 0
A70: ='Org structure'!E65 -> 0 | I70: 0
A71: ='Org structure'!E66 -> 0 | I71: =G71-H71 -> 0 | J71: =IF(I71=0,"",I71/H71) -> 
A72: ='Org structure'!E67 -> 0 | I72: 0
A73: ='Org structure'!A8 -> Vote 7 - Housing | C73: =SUM(C74:C83) -> 0 | D73: 0 | E73: 0 | F73: 0 | G73: 0 | H73: 0 | I73: 0 | K73: 0
A74: ='Org structure'!E69 -> 7.1 - [Name of sub-vote] | I74: 0
A75: ='Org structure'!E70 -> 0 | I75: 0
A76: ='Org structure'!E71 -> 0 | I76: 0
A77: ='Org structure'!E72 -> 0 | I77: 0
A78: ='Org structure'!E73 -> 0 | I78: 0
A79: ='Org structure'!E74 -> 0 | I79: 0
A80: ='Org structure'!E75 -> 0 | I80: 0
A81: ='Org structure'!E76 -> 0 | I81: 0
A82: ='Org structure'!E77 -> 0 | I82: 0
A83: ='Org structure'!E78 -> 0 | I83: 0
A84: ='Org structure'!A9 -> Vote 8 - Public Safety | C84: =SUM(C85:C94) -> 0 | D84: =SUM(D85:D94) -> 0 | E84: 0 | F84: 0 | G84: 0 | H84: 0 | I84: 0 | K84: 0
A85: ='Org structure'!E80 -> 8,1 - Fire Service | I85: 0
A86: ='Org structure'!E81 -> 8,2 - Civil Defence | I86: 0
A87: ='Org structure'!E82 -> 8,3 - Pound | I87: 0
A88: ='Org structure'!E83 -> 0 | I88: 0
A89: ='Org structure'!E84 -> 0 | I89: 0
A90: ='Org structure'!E85 -> 0 | I90: 0
A91: ='Org structure'!E86 -> 0 | I91: 0
A92: ='Org structure'!E87 -> 0 | I92: 0
A93: ='Org structure'!E88 -> 0 | I93: 0
A94: ='Org structure'!E89 -> 0 | I94: 0
A95: ='Org structure'!A10 -> Vote 9 - Sport and Recreation | C95: =SUM(C96:C105) -> 0 | D95: =SUM(D96:D105) -> 0 | E95: 0 | F95: 0 | G95: 0 | H95: 0 | I95: 0 | K95: 0
A96: ='Org structure'!E91 -> 9,1 - Nature Reserve | I96: 0
A97: ='Org structure'!E92 -> 9,2 - Parks and Gardens | I97: 0
A98: ='Org structure'!E93 -> 9,3 - Swimming Pool | I98: 0
A99: ='Org structure'!E94 -> 9,4 - Caravan Park | I99: 0
A100: ='Org structure'!E95 -> 0 | I100: 0
A101: ='Org structure'!E96 -> 0 | I101: 0
A102: ='Org structure'!E97 -> 0 | I102: 0
A103: ='Org structure'!E98 -> 0 | I103: 0
A104: ='Org structure'!E99 -> 0 | I104: 0
A105: ='Org structure'!E100 -> 0 | I105: 0
A106: ='Org structure'!A11 -> Vote 10 - Environmental Protection | C106: =SUM(C107:C116) -> 0 | D106: =SUM(D107:D116) -> 0 | E106: 0 | F106: 0 | G106: 0 | H106: 0 | I106: 0 | K106: 0
A107: ='Org structure'!E102 -> 10.1 - [Name of sub-vote] | I107: 0
A108: ='Org structure'!E103 -> 0 | I108: 0
A109: ='Org structure'!E104 -> 0 | I109: 0
A110: ='Org structure'!E105 -> 0 | I110: 0
A111: ='Org structure'!E106 -> 0 | I111: 0
A112: ='Org structure'!E107 -> 0 | I112: 0
A113: ='Org structure'!E108 -> 0 | I113: 0
A114: ='Org structure'!E109 -> 0 | I114: 0
A115: ='Org structure'!E110 -> 0 | I115: 0
A116: ='Org structure'!E111 -> 0 | I116: 0
A117: ='Org structure'!A12 -> Vote 11 - Solid Waste Management | C117: =SUM(C118:C127) -> 0 | D117: =SUM(D118:D127) -> 0 | E117: 0 | F117: 0 | G117: 0 | H117: 0 | I117: 0 | K117: 0
A118: ='Org structure'!E113 -> 11,1 - Refuse removal | I118: 0
A119: ='Org structure'!E114 -> 0 | I119: 0
A120: ='Org structure'!E115 -> 0 | I120: 0
A121: ='Org structure'!E116 -> 0 | I121: 0
A122: ='Org structure'!E117 -> 0 | I122: 0
A123: ='Org structure'!E118 -> 0 | I123: 0
A124: ='Org structure'!E119 -> 0 | I124: 0
A125: ='Org structure'!E120 -> 0 | I125: 0
A126: ='Org structure'!E121 -> 0 | I126: 0
A127: ='Org structure'!E122 -> 0 | I127: 0
A128: ='Org structure'!A13 -> Vote 12 - Waste Water Management | C128: =SUM(C129:C138) -> 0 | D128: =SUM(D129:D138) -> 0 | E128: 0 | F128: 0 | G128: 0 | H128: 0 | I128: 0 | K128: 0
A129: ='Org structure'!E124 -> 12,1 - Sewerage | I129: 0
A130: ='Org structure'!E125 -> 0 | I130: 0
A131: ='Org structure'!E126 -> 0 | I131: 0
A132: ='Org structure'!E127 -> 0 | I132: 0
A133: ='Org structure'!E128 -> 0 | I133: 0
A134: ='Org structure'!E129 -> 0 | I134: 0
A135: ='Org structure'!E130 -> 0 | I135: =G135-H135 -> 0 | J135: =IF(I135=0,"",I135/H135) -> 
A136: ='Org structure'!E131 -> 0 | I136: 0
A137: ='Org structure'!E132 -> 0 | I137: 0
A138: ='Org structure'!E133 -> 0 | I138: 0
A139: ='Org structure'!A14 -> Vote 13 - Road Transport | C139: =SUM(C140:C149) -> 0 | D139: =SUM(D140:D149) -> 0 | E139: 0 | F139: 0 | G139: 0 | H139: 0 | I139: 0 | K139: 0
A140: ='Org structure'!E135 -> 13,1 - Main Roads | I140: 0
A141: ='Org structure'!E136 -> 13,2 - Public Works | I141: 0
A142: ='Org structure'!E137 -> 13,3 - Streets and Pavements | I142: 0
A143: ='Org structure'!E138 -> 13,4 - Traffic and licencing | I143: 0
A144: ='Org structure'!E139 -> 0 | I144: 0
A145: ='Org structure'!E140 -> 0 | I145: 0
A146: ='Org structure'!E141 -> 0 | I146: 0
A147: ='Org structure'!E142 -> 0 | I147: 0
A148: ='Org structure'!E143 -> 0 | I148: 0
A149: ='Org structure'!E144 -> 0 | I149: 0
A150: ='Org structure'!A15 -> Vote 14 - Water | C150: =SUM(C151:C160) -> 0 | D150: =SUM(D151:D160) -> 0 | E150: 0 | F150: 0 | G150: 0 | H150: 0 | I150: 0 | K150: 0
A151: ='Org structure'!E146 -> 14,1 - Water Distribution | I151: 0
A152: ='Org structure'!E147 -> 14,2 - Water Storage | I152: 0
A153: ='Org structure'!E148 -> 0 | I153: 0
A154: ='Org structure'!E149 -> 0 | I154: 0
A155: ='Org structure'!E150 -> 0 | I155: 0
A156: ='Org structure'!E151 -> 0 | I156: 0
A157: ='Org structure'!E152 -> 0 | I157: 0
A158: ='Org structure'!E153 -> 0 | I158: 0
A159: ='Org structure'!E154 -> 0 | I159: 0
A160: ='Org structure'!E155 -> 0 | I160: 0
A161: ='Org structure'!A16 -> Vote 15 - Electricity | C161: =SUM(C162:C171) -> 0 | D161: =SUM(D162:D171) -> 0 | E161: 0 | F161: 0 | G161: 0 | H161: 0 | I161: 0 | K161: 0
A162: ='Org structure'!E157 -> 15,1 - Electricity Administration | I162: 0
A163: ='Org structure'!E158 -> 15,2 - Electricity Distribution | I163: 0
A164: ='Org structure'!E159 -> 15,3 - Electricity Generation | I164: 0
A165: ='Org structure'!E160 -> 0 | I165: 0
A166: ='Org structure'!E161 -> 0 | I166: 0
A167: ='Org structure'!E162 -> 0 | I167: 0
A168: ='Org structure'!E163 -> 0 | I168: 0
A169: ='Org structure'!E164 -> 0 | I169: 0
A170: ='Org structure'!E165 -> 0 | I170: 0
A171: ='Org structure'!E166 -> 0 | I171: 0 | L171: =SUM(L79:L82) -> 0 | M171: 0 | N171: 0 | O171: 0 | P171: 0 | Q171: 0 | R171: 0 | S171: 0 | T171: 0 | U171: 0 | V171: 0 | W171: 0
A172: Total multi-year capital expenditure | C172: =C7+C18+C29+C40+C51+C62+C73+C84+C95+C106+C117+C128+C139+C150+C161 -> 0 | D172: =D7+D18+D29+D40+D51+D62+D73+D84+D95+D106+D117+D128+D139+D150+D161 -> 0 | E172: 0 | F172: 0 | G172: 0 | H172: 0 | I172: 0 | K172: 0
I173: 0
A174: Capital expenditure - Municipal Vote
A175: Expenditue of single-year capital appropriation | B175: 1 | I175: 0
A176: ='Org structure'!A2 -> Vote 1 - Executive and Council | C176: =SUM(C177:C186) -> 657 | D176: 0 | E176: 0 | F176: 0 | G176: 0 | H176: 0 | I176: 0 | K176: 0
A177: ='Org structure'!E3 -> 1,1 - Executive and Council | C177: 657 | I177: 0
A178: ='Org structure'!E4 -> 0 | I178: 0
A179: ='Org structure'!E5 -> 0 | I179: 0
A180: ='Org structure'!E6 -> 0 | I180: 0
A181: ='Org structure'!E7 -> 0 | I181: 0
A182: ='Org structure'!E8 -> 0 | I182: 0
A183: ='Org structure'!E9 -> 0 | I183: 0
A184: ='Org structure'!E10 -> 0 | I184: 0
A185: ='Org structure'!E11 -> 0 | I185: 0
A186: ='Org structure'!E12 -> 0 | I186: 0
A187: ='Org structure'!A3 -> Vote 2 - Budget and Treasury | C187: =SUM(C188:C197) -> 10581 | D187: =SUM(D188:D197) -> 0 | E187: =SUM(E188:E197) -> 0 | F187: 20740.67 | G187: 181615.97 | H187: 0 | I187: 181615.97 | K187: 0
A188: ='Org structure'!E14 -> 2,1 - Official Housing | I188: 0
A189: ='Org structure'!E15 -> 2,2 - Rates | I189: 0
A190: ='Org structure'!E16 -> 2,3 - Commonage | C190: 7812 | D190: 0 | E190: 0 | I190: 0
A191: ='Org structure'!E17 -> 2,4 - Municipal Buildings | D191: 0 | E191: 0 | F191: 20740.67 | G191: 177194.78 | I191: 177194.78
A192: ='Org structure'!E18 -> 2,5 - Budget and Treasury Office | C192: 2769 | D192: 0 | E192: 0 | G192: 4421.19 | I192: 4421.19
A193: ='Org structure'!E19 -> 2,6 - Airport | I193: 0
A194: ='Org structure'!E20 -> 2,7 - Abattoir | I194: 0
A195: ='Org structure'!E21 -> 0 | I195: 0
A196: ='Org structure'!E22 -> 0 | I196: 0
A197: ='Org structure'!E23 -> 0 | I197: 0
A198: ='Org structure'!A4 -> Vote 3 - Corporate Services | C198: =SUM(C199:C208) -> 1823 | D198: 0 | E198: 0 | F198: 0 | G198: 3354.39 | H198: 0 | I198: 3354.39 | K198: 0
A199: ='Org structure'!E25 -> 3,1 - Corporate Services | C199: 1823 | D199: 0 | E199: 0 | G199: 3354.39 | I199: 3354.39
A200: ='Org structure'!E26 -> 0 | I200: =G200-H200 -> 0 | J200: =IF(I200=0,"",I200/H200) -> 
... 145 more rows

Sheet C6-FinPos
A1: =muni& " - "&S71E& " - "&date -> NC074 Kareeberg - Table C6 Monthly Budget Statement - Financial Position - Mid-Year Assessment
A2: =desc -> Description | B2: =head27 -> Ref | C2: =Head1 -> 2014/15 | D2: =Head2 -> Budget Year 2015/16
C3: =Head5 -> Audited Outcome | D3: =Head6 -> Original Budget | E3: =Head7 -> Adjusted Budget | F3: =Head39 -> YearTD actual | G3: =Head8 -> Full Year Forecast
A4: R thousands | B4: 1
A5: ASSETS
A6: Current assets
A7: Cash | C7: 250868 | D7: 1538120 | E7: 1538120 | F7: 466830.24 | G7: 1538120
A8: Call investment deposits | C8: 22125577 | D8: 23744182 | E8: 23744182 | F8: 31327206.56 | G8: 23744182
A9: Consumer debtors | C9: 2460854 | D9: 6000119 | E9: 6000119 | F9: 4368643 | G9: 6000119
A10: Other debtors | C10: 35132 | D10: 29515 | E10: 29515 | F10: 35131.92 | G10: 29515
A11: Current portion of long-term receivables | C11: 8727 | D11: 8490 | E11: 8490 | F11: 3680.42 | G11: 8490
A12: Inventory | D12: 0 | E12: 0 | G12: 0
A13: Total current assets | C13: =SUM(C7:C12) -> 24881158 | D13: =SUM(D7:D12) -> 31320426 | E13: =SUM(E7:E12) -> 31320426 | F13: =SUM(F7:F12) -> 36201492.14 | G13: =SUM(G7:G12) -> 31320426
A15: Non current assets
A16: Long-term receivables | C16: 39306 | D16: 41621 | E16: 41621 | F16: 39306.49 | G16: 41621
A17: Investments | D17: 0 | E17: 0 | G17: 0
A18: Investment property | C18: 15482392 | D18: 10214723 | E18: 10214723 | F18: 15482392.43 | G18: 10214723
A19: Investments in Associate | D19: 0 | E19: 0 | G19: 0
A20: Property, plant and equipment | C20: 106069603 | D20: 119113037 | E20: 119113037 | F20: 109421684.8 | G20: 119113037
A21: Agricultural | D21: 0 | E21: 0 | G21: 0
A22: Biological assets | D22: 0 | E22: 0 | G22: 0
A23: Intangible assets | C23: 18371 | D23: 24759 | E23: 24759 | F23: 18371.38 | G23: 24759
A24: Other non-current assets | C24: 794698 | D24: 1233910 | E24: 1233910 | F24: 788745.04 | G24: 1233910
A25: Total non current assets | C25: =SUM(C16:C24) -> 122404370 | D25: =SUM(D16:D24) -> 130628050 | E25: =SUM(E16:E24) -> 130628050 | F25: =SUM(F16:F24) -> 125750500.1 | G25: =SUM(G16:G24) -> 130628050
A26: TOTAL ASSETS | C26: =C13+C25 -> 147285528 | D26: =D13+D25 -> 161948476 | E26: =E13+E25 -> 161948476 | F26: =F13+F25 -> 161951992.2 | G26: =G13+G25 -> 161948476
A28: LIABILITIES
A29: Current liabilities
A30: Bank overdraft | F30: 0
A31: Borrowing
A32: Consumer deposits | C32: 308159 | D32: 370388 | E32: 370388 | F32: 315259 | G32: 370388
A33: Trade and other payables | C33: 2833649 | D33: 4855064 | E33: 4855064 | F33: 7701758.97 | G33: 4855064
A34: Provisions | C34: 1919560 | D34: 1659144 | E34: 1659144 | F34: 1420570.46 | G34: 1659144
A35: Total current liabilities | C35: =SUM(C30:C34) -> 5061368 | D35: =SUM(D30:D34) -> 6884596 | E35: =SUM(E30:E34) -> 6884596 | F35: =SUM(F30:F34) -> 9437588.43 | G35: =SUM(G30:G34) -> 6884596
A37: Non current liabilities
A38: Borrowing
A39: Provisions | C39: 10722558 | D39: 12530249 | E39: 12530249 | F39: 10722557.93 | G39: 12530249
A40: Total non current liabilities | C40: =SUM(C38:C39) -> 10722558 | D40: =SUM(D38:D39) -> 12530249 | E40: =SUM(E38:E39) -> 12530249 | F40: =SUM(F38:F39) -> 10722557.93 | G40: =SUM(G38:G39) -> 12530249
A41: TOTAL LIABILITIES | C41: =C35+C40 -> 15783926 | D41: =D35+D40 -> 19414845 | E41: =E35+E40 -> 19414845 | F41: =F35+F40 -> 20160146.36 | G41: =G35+G40 -> 19414845
A43: NET ASSETS | B43: 2 | C43: =C26-C41 -> 131501602 | D43: =D26-D41 -> 142533631 | E43: =E26-E41 -> 142533631 | F43: =F26-F41 -> 141791845.9 | G43: =G26-G41 -> 142533631
A45: COMMUNITY WEALTH/EQUITY
A46: Accumulated Surplus/(Deficit) | C46: 120115780 | D46: 131095644 | E46: 131095644 | F46: 130404906.5 | G46: 131095644
A47: Reserves | C47: 11385822 | D47: 11437987 | E47: 11437987 | F47: 11386939.32 | G47: 11437987
A48: TOTAL COMMUNITY WEALTH/EQUITY | B48: 2 | C48: =SUM(C46:C47) -> 131501602 | D48: =SUM(D46:D47) -> 142533631 | E48: =SUM(E46:E47) -> 142533631 | F48: =SUM(F46:F47) -> 141791845.9 | G48: =SUM(G46:G47) -> 142533631
A49: =head27a -> References
A50: 1. Material variances to be explained in Table SC1
A51: 2. Net assets must balance with Total Community Wealth/Equity
A54: check balance | C54: =C43-C48 -> 0 | D54: =D43-D48 -> 0 | E54: =E43-E48 -> 0 | F54: =F43-F48 -> 0 | G54: =G43-G48 -> 0

Sheet C7-CFlow
A1: =muni& " - "&S71F& " - "&date -> NC074 Kareeberg - Table C7 Monthly Budget Statement - Cash Flow - Mid-Year Assessment
A2: =desc -> Description | B2: =head27 -> Ref | C2: =Head1 -> 2014/15 | D2: =Head2 -> Budget Year 2015/16
C3: =Head5 -> Audited Outcome | D3: =Head6 -> Original Budget | E3: =Head7 -> Adjusted Budget | F3: =Head38 -> Monthly actual | G3: =Head39 -> YearTD actual | H3: =Head40 -> YearTD budget | I3: =Head41 -> YTD variance | J3: =Head41 -> YTD variance | K3: =Head8 -> Full Year Forecast
A4: R thousands | B4: 1 | J4: %
A5: CASH FLOW FROM OPERATING ACTIVITIES
A6: Receipts
A7: Property rates, penalties & collection charges | C7: 4425478 | D7: 3177848 | E7: 3177848 | F7: -30010.29 | G7: 13860682.55 | H7: 12370299 | I7: =G7-H7 -> 1490383.55 | J7: =IF(I7=0,"",I7/H7) -> 0.1204808024 | K7: 3177848
A8: Service charges | C8: 10990674 | D8: 18586024 | E8: 18586024 | F8: 859077.94 | G8: 4525051.12 | I8: =G8-H8 -> 4525051.12 | J8: =IF(I8=0,"",I8/H8) ->  | K8: 18586024
A9: Other revenue | C9: 8863940 | D9: 8796408 | E9: 8796408 | F9: 114994.84 | G9: 268182.83 | I9: 268182.83 | K9: 8796408
A10: Government - operating | C10: 20592415 | D10: 23060000 | E10: 23060000 | F10: 377872.7 | G10: 14989386.32 | H10: 14475000 | I10: =G10-H10 -> 514386.32 | J10: 0.03553618791 | K10: 23060000
A11: Government - capital | C11: 10026174 | D11: 7928000 | E11: 7928000 | F11: 732399.6 | G11: 3006456.79 | H11: 7928000 | I11: =G11-H11 -> -4921543.21 | J11: =IF(I11=0,"",I11/H11) -> -0.6207799205 | K11: 7928000
A12: Interest | C12: 1559335 | D12: 1170600 | E12: 1170600 | F12: 294117.91 | G12: 579642.93 | H12: 465073 | I12: =G12-H12 -> 114569.93 | J12: 0.2463482722 | K12: 1170600
A13: Dividends | I13: =G13-H13 -> 0
A14: Payments
A15: Suppliers and employees | C15: -37783114 | D15: -42261593 | E15: -42261593 | F15: -4709918.74 | G15: -20342783.94 | H15: -15793392 | I15: =H15-G15 -> 4549391.94 | J15: -0.2880566721 | K15: -42261593
A16: Finance charges | C16: -873128 | D16: -831014 | E16: -831014 | H16: 0 | I16: =H16-G16 -> 0 | K16: -831014
A17: Transfers and Grants | C17: -8018446 | D17: -9303352 | E17: -9303352 | F17: -355336.42 | G17: -4129091.34 | H17: -6202234.667 | I17: =H17-G17 -> -2073143.327 | J17: 0.3342574795 | K17: -9303352
A18: NET CASH FROM/(USED) OPERATING ACTIVITIES | C18: =SUM(C7:C13)+SUM(C15:C17) -> 9783328 | D18: 10322921 | E18: 10322921 | F18: -2716802.46 | G18: 12757527.26 | H18: 13242745.33 | I18: =H18-G18 -> 485218.0733 | J18: 0.03664029332 | K18: =SUM(K7:K13)+SUM(K15:K17) -> 10322921
A20: CASH FLOWS FROM INVESTING ACTIVITIES
A21: Receipts
A22: Proceeds on disposal of PPE | C22: 44264 | D22: 0 | E22: 0 | F22: 0 | G22: 4646 | I22: =G22-H22 -> 4646 | J22: =IF(I22=0,"",I22/H22) -> 
A23: Decrease (Increase) in non-current debtors | C23: 9796 | D23: 8490 | E23: 8490 | F23: 606.3 | G23: 5046.79 | H23: 4204 | I23: =G23-H23 -> 842.79 | J23: 0.2004733587 | K23: 8490
A24: Decrease (increase) other non-current receivables | I24: =G24-H24 -> 0
A25: Decrease (increase) in non-current investments | I25: =G25-H25 -> 0
A26: Payments
A27: Capital assets | C27: -10088338 | D27: -7928000 | E27: -7928000 | F27: -350271.71 | G27: -3356728.5 | H27: -7928000 | I27: =H27-G27 -> -4571271.5 | J27: 0.5765983224 | K27: -7928000
A28: NET CASH FROM/(USED) INVESTING ACTIVITIES | C28: =SUM(C22:C25)+C27 -> -10034278 | D28: =SUM(D22:D25)+D27 -> -7919510 | E28: -7919510 | F28: -349665.41 | G28: -3347035.71 | H28: -7923796 | I28: =H28-G28 -> -4576760.29 | J28: 0.5775969359 | K28: =SUM(K22:K25)+K27 -> -7919510
A30: CASH FLOWS FROM FINANCING ACTIVITIES
A31: Receipts
A32: Short term loans | I32: =G32-H32 -> 0 | J32: =IF(I32=0,"",I32/H32) -> 
A33: Borrowing long term/refinancing | I33: =G33-H33 -> 0
A34: Increase (decrease) in consumer deposits | C34: 15390 | D34: 10000 | E34: 10000 | F34: 2200 | G34: 7100 | H34: 5878 | I34: =G34-H34 -> 1222 | J34: 0.2078938414 | K34: 10000
A35: Payments
A36: Repayment of borrowing | I36: =H36-G36 -> 0
A37: NET CASH FROM/(USED) FINANCING ACTIVITIES | C37: =SUM(C32:C34)+C36 -> 15390 | D37: 10000 | E37: 10000 | F37: 2200 | G37: 7100 | H37: 5878 | I37: =H37-G37 -> -1222 | J37: -0.2078938414 | K37: =SUM(K32:K34)+K36 -> 10000
A39: NET INCREASE/ (DECREASE) IN CASH HELD | C39: =C18+C28+C37 -> -235560 | D39: 2413411 | E39: 2413411 | F39: -3064267.87 | G39: 9417591.55 | H39: 5324827.333 | K39: =K18+K28+K37 -> 2413411
A40: Cash/cash equivalents at beginning: | C40: 22612005 | D40: 22868890 | E40: 22868890 | G40: =C41 -> 22376445 | H40: =IF(E40=0, D40, E40) -> 22868890 | K40: =G40 -> 22376445
A41: Cash/cash equivalents at month/year end: | C41: =C39+C40 -> 22376445 | D41: =D39+D40 -> 25282301 | E41: =E39+E40 -> 25282301 | G41: =G39+G40 -> 31794036.55 | H41: =H39+H40 -> 28193717.33 | K41: =K39+K40 -> 24789856
A42: References
A43: 1. Material variances to be explained in Table SC1

Sheet SC1
A1: =muni& " - "&S71G& " - "&date -> NC074 Kareeberg - Supporting Table SC1 Material variance explanations - Mid-Year Assessment
A2: =head27 -> Ref | B2: =desc -> Description
C3: Variance | D3: Reasons for material deviations | E3: Remedial or corrective steps/remarks
B4: R thousands
A5: 1 | B5: ='C4-FinPerf RE'!A5 -> Revenue By Source
B6: Rental of facilities and equipment | C6: -65406.17191 | D6: Awards of tenders for Vosburg have not been completed | E6: Tender will have to be awarded to prevent loss of revenue
B7: Interest earned - external investments | C7: 80645.93 | D7: interest received | E7: No steps needed
B8: Interest earned - outstanding debtors | C8: -374.61 | D8: Very little revenue - not material | E8: No steps needed
B9: Fines | C9: -1447.4 | D9: Very little revenue - not material | E9: No steps needed
B10: Licences and permits | C10: 445.4263862 | D10: No real pattern of purchases of licences and permits can be determined, thus this revenue source is budgeted for conservatively. | E10: No steps needed
B11: Agency services | C11: 37853.45018 | D11: No real pattern of purchases of licences and permits can be determined, thus this revenue source is budgeted for conservatively. | E11: No steps needed
B12: Transfers recognised - operational | C12: -2063613.68 | D12: All conditional grants not yet expended | E12: No steps needed
B13: Other revenue | C13: -362185.3212 | D13: VAT on grants not yet received | E13: No steps needed
A14: 2 | B14: ='C4-FinPerf RE'!A25 -> Expenditure By Type
B15: Bulk purchases | C15: -625797.41 | D15: Change from high to low season | E15: No steps needed
B16: Other materials | C16: 528258.35 | D16: Conditional grants allocated to line items | E16: The budget must be adjusted
B17: Contracted services | C17: 348475.83 | D17: Operating grant expenditure is allocated to line items | E17: The budget must be adjusted
B18: Transfers and grants | C18: -2073142.66 | D18: Subsidies not yet recorded as paid out | E18: No steps needed
A19: 3 | B19: =RIGHT('C5-Capex'!A40,19) -> Capital Expenditure
B20: Upgrade of sports field | C20: 0.02204438007 | D20: Work in progress | E20: Only R 1 228million approved by Council, Will have to be adjusted
B21: Upgrade of roads - Carnarvon | C21: 0.82636934 | D21: Work in progress | E21: On track
B22: Upgrade of roads - Vanwyksvlei | C22: 0.53636246 | D22: Work in progress | E22: On track
B23: Cemetery - Vanwyksvlei | C23: 1 | D23: Completed | E23: Will have to be adjusted
B24: Cemetery - Vosburg | C24: 1 | D24: Completed | E24: Will have to be adjusted
B25: Establishment of waterborne sewerage for Vosburg | C25: 0 | D25: Project to be registered | E25: Project postponed. Not approved by Council, Will have to be adjusted
B26: Upgrade of refuse site - Carnarvon | C26: 0 | D26: Project not started | E26: Tender to be advertised
B27: Water supply to Vanwyksvlei | D27: RBIG funding
A28: 4 | B28: Financial Position
A33: 5 | B33: Cash Flow
B34: December 2015 | C34: -3064267.87 | D34: Receipt of eqitable share
A38: 6 | B38: Measureable performance
A43: 7 | B43: Municipal Entities
A49: =head27a -> References
A50: 1. Revenue for each source, vote and standard classification
A51: 2. Expenditure for each type, vote and standard classification
A52: 3. Capital expenditure for each vote and standard classification
A53: 4. Explain any material variances between the annual budget and the expected financial position based on current trends
A54: 5. Cash receipts by source and cash payments by type where not explained under revenue and expenditure
A55: 6. For Sept, Dec, Mar and Jun statements explain any material variances in achievement of measurable performance objectives

Sheet SC2
A1: =muni& " - "&S71H& " - "&Head57 -> NC074 Kareeberg - Supporting Table SC2 Monthly Budget Statement - performance indicators - Mid-Year Assessment
A2: Description of financial indicator | B2: Basis of calculation | C2: =head27 -> Ref | D2: =Head1 -> 2014/15 | E2: =Head2 -> Budget Year 2015/16
D3: =Head5 -> Audited Outcome | E3: =Head6 -> Original Budget | F3: =Head7 -> Adjusted Budget | G3: =Head39 -> YearTD actual | H3: =Head8 -> Full Year Forecast
A5: Borrowing Management
A7: Capital Charges to Operating Expenditure | B7: Interest & principal paid/Operating Expenditure | D7: =IF(ISERROR((D42-D43)/D45),0,((D42-D43)/D45)) -> 0.0176969917 | E7: =IF(ISERROR((E42+E44)/E45),0,((E42+E44)/E45)) -> 0.08712466519 | F7: =IF(ISERROR((F42+F44)/F45),0,((F42+F44)/F45)) -> 0.08712466519 | G7: =IF(ISERROR((G42+G44)/G45),0,((G42+G44)/G45)) -> 0 | H7: =IF(ISERROR((H42+H44)/H45),0,((H42+H44)/H45)) -> 0.04891122082
A8: Borrowed funding of 'own' capital expenditure | B8: Borrowings/Capital expenditure excl. transfers and grants | D8: =IF(ISERROR(D47/D46),0,(D47/D46)) -> 0 | E8: =IF(ISERROR(E47/E46),0,(E47/E46)) -> 0 | F8: =IF(ISERROR(F47/F46),0,(F47/F46)) -> 0 | G8: =IF(ISERROR(G47/G46),0,(G47/G46)) -> 0 | H8: =IF(ISERROR(H47/H46),0,(H47/H46)) -> 0
A9: Safety of Capital
A10: Debt to Equity | B10: Loans, Accounts Payable, Overdraft & Tax Provision/ Funds & Reserves | D10: =IF(ISERROR(D48/D49),0,(D48/D49)) -> 0.02154839908 | E10: =IF(ISERROR(E48/E49),0,(E48/E49)) -> 0.03406258555 | F10: =IF(ISERROR(F48/F49),0,(F48/F49)) -> 0.03406258555 | G10: =IF(ISERROR(G48/G49),0,(G48/G49)) -> 0.05431736164 | H10: =IF(ISERROR(H48/H49),0,(H48/H49)) -> 0.03406258555
A11: Gearing | B11: Long Term Borrowing/ Funds & Reserves | D11: =IF(ISERROR(D51/D50),0,(D51/D50)) -> 0 | E11: =IF(ISERROR(E51/E50),0,(E51/E50)) -> 0 | F11: =IF(ISERROR(F51/F50),0,(F51/F50)) -> 0 | G11: =IF(ISERROR(G51/G50),0,(G51/G50)) -> 0 | H11: =IF(ISERROR(H51/H50),0,(H51/H50)) -> 0
A12: Liquidity
A13: Current Ratio | B13: Current assets/current liabilities | C13: 1 | D13: =IF(ISERROR(D52/D53),0,(D52/D53)) -> 4.915895861 | E13: =IF(ISERROR(E52/E53),0,(E52/E53)) -> 4.549348429 | F13: =IF(ISERROR(F52/F53),0,(F52/F53)) -> 4.549348429 | G13: =IF(ISERROR(G52/G53),0,(G52/G53)) -> 3.835883754 | H13: =IF(ISERROR(H52/H53),0,(H52/H53)) -> 4.549348429
A14: Liquidity Ratio | B14: Monetary Assets/Current Liabilities | D14: =IF(ISERROR(D54/D53),0,(D54/D53)) -> 4.421027082 | E14: =IF(ISERROR(E54/E53),0,(E54/E53)) -> 3.672300016 | F14: =IF(ISERROR(F54/F53),0,(F54/F53)) -> 3.672300016 | G14: =IF(ISERROR(G54/G53),0,(G54/G53)) -> 3.368872995 | H14: =IF(ISERROR(H54/H53),0,(H54/H53)) -> 3.672300016
A15: Revenue Management
A16: Annual Debtors Collection Rate (Payment Level %) | B16: Last 12 Mths Receipts/ Last 12 Mths Billing
A17: Outstanding Debtors to Revenue | B17: Total Outstanding Debtors to Annual Revenue | D17: =IF(ISERROR(D59/D55),0,(D59/D55)) -> 0.05401029725 | E17: =IF(ISERROR(E59/E55),0,(E59/E55)) -> 0.1060006171 | F17: =IF(ISERROR(F59/F55),0,(F59/F55)) -> 0.1060006171 | G17: =IF(ISERROR(G59/G55),0,(G59/G55)) -> 0.1456677959 | H17: =IF(ISERROR(H59/H55),0,(H59/H55)) -> 0.1060006171
A18: Longstanding Debtors Recovered | B18: Debtors > 12 Mths Recovered/Total Debtors > 12 Months Old | D18: =IF(ISERROR(D64/D63),0,(D64/D63)) -> 0.2220271714 | E18: =IF(ISERROR(E64/E63),0,(E64/E63)) -> 0.203983566 | F18: =IF(ISERROR(F64/F63),0,(F64/F63)) -> 0.203983566 | G18: =IF(ISERROR(G64/G63),0,(G64/G63)) -> 0.1223609638 | H18: =IF(ISERROR(H64/H63),0,(H64/H63)) -> 0.203983566
A19: Creditors Management
A20: Creditors System Efficiency | B20: % of Creditors Paid Within Terms (within MFMA s 65(e)) | D20: 1 | E20: 1 | F20: 1 | G20: 1 | H20: 1
A21: Funding of Provisions
A22: Percentage Of Provisions Not Funded | B22: Unfunded Provisions/Total Provisions
A23: Other Indicators
A24: Electricity Distribution Losses | B24: % Volume (units purchased and generated less units sold)/units purchased and generated | C24: 2 | D24: 0.0485 | E24: 0.1127 | F24: 0.1127 | G24: 0.1165339345 | H24: 0.1127
A25: Water Distribution Losses | B25: % Volume (units purchased and own source less units sold)/Total units purchased and own source | C25: 2
A26: Employee costs | B26: Employee costs/Total Revenue - capital revenue | D26: =IF(ISERROR(D40/D55),0,(D40/D55)) -> 0.3450554335 | E26: =IF(ISERROR(E40/E55),0,(E40/E55)) -> 0.2943233365 | F26: =IF(ISERROR(F40/F55),0,(F40/F55)) -> 0.2943233365 | G26: =IF(ISERROR(G40/G55),0,(G40/G55)) -> 0.2667366603 | H26: =IF(ISERROR(H40/H55),0,(H40/H55)) -> 0.2943233365
A27: Repairs & Maintenance | B27: R&M/Total Revenue - capital revenue | D27: =IF(ISERROR(D41/D55),0,(D41/D55)) -> 0.05172746633 | E27: =IF(ISERROR(E41/E55),0,(E41/E55)) -> 0.01717351761 | F27: =IF(ISERROR(F41/F55),0,(F41/F55)) -> 0.01717351761 | G27: =IF(ISERROR(G41/G55),0,(G41/G55)) -> 0.04559787664 | H27: =IF(ISERROR(H41/H55),0,(H41/H55)) -> 0.01717351761
A28: Interest & Depreciation | B28: I&D/Total Revenue - capital revenue | D28: =IF(ISERROR((D42+D44)/D55),0,((D42+D44)/D55)) -> 0.08318451421 | E28: =IF(ISERROR((E42+E44)/E55),0,((E42+E44)/E55)) -> 0.08985890534 | F28: =IF(ISERROR((F42+F44)/F55),0,((F42+F44)/F55)) -> 0.08985890534 | G28: =IF(ISERROR((G42+G44)/G55),0,((G42+G44)/G55)) -> 0 | H28: =IF(ISERROR((H42+H44)/H55),0,((H42+H44)/H55)) -> 0.05044620547
A29: IDP regulation financial viability indicators
A30: i. Debt coverage | B30: (Total Operating Revenue - Operating Grants)/Debt service payments due within financial year) | D30: 1.534871932 | E30: 1.75298169 | F30: 1.75298169 | G30: 1.605316708 | H30: 1.75298169
A31: ii. O/S Service Debtors to Revenue | B31: Total outstanding service debtors/annual revenue received for services | D31: 0.1417297045 | E31: 0.3107580781 | F31: 0.3107580781 | G31: 0.4594388904 | H31: 0.3107580781
A32: iii. Cost coverage | B32: (Available cash + Investments)/monthly fixed operational expenditure | D32: 5.44244273 | E32: 5.128624333 | F32: 5.128624333 | G32: 5.39639981 | H32: 5.128624333
A33: References
A34: 1. Consumer debtors > 12 months old are excluded from current assets.
A35: 2. Material variances to be explained.
A37: Calculations
A38: ='C6-FinPos'!A38 -> Borrowing | D38: ='C6-FinPos'!C38 -> 0 | E38: ='C6-FinPos'!D38 -> 0 | F38: ='C6-FinPos'!E38 -> 0 | G38: ='C6-FinPos'!F38 -> 0 | H38: 0
A39: Total Assets | D39: ='C6-FinPos'!C26 -> 147285528 | E39: ='C6-FinPos'!D26 -> 161948476 | F39: ='C6-FinPos'!E26 -> 161948476 | G39: ='C6-FinPos'!F26 -> 161951992.2 | H39: ='C6-FinPos'!G26 -> 161948476
A40: ='C4-FinPerf RE'!A26 -> Employee related costs | D40: ='C4-FinPerf RE'!C26 -> 16252967 | E40: ='C4-FinPerf RE'!D26 -> 16881136 | F40: ='C4-FinPerf RE'!E26 -> 16881136 | G40: ='C4-FinPerf RE'!G26 -> 8142598.66 | H40: ='C4-FinPerf RE'!K26 -> 16881136
A41: =A27 -> Repairs & Maintenance | D41: 2436492 | E41: 985000 | F41: 985000 | G41: 1391954.18 | H41: 985000
A42: Interest (finance charges) | D42: ='C4-FinPerf RE'!C30 -> 873128 | E42: ='C4-FinPerf RE'!D30 -> 831014 | F42: ='C4-FinPerf RE'!E30 -> 831014 | G42: ='C4-FinPerf RE'!G30 -> 0 | H42: ='C4-FinPerf RE'!K30 -> 831014
A43: Principal paid | D43: =-'C7-CFlow'!C36 -> 0 | E43: =-'C7-CFlow'!D36 -> 0 | F43: =-'C7-CFlow'!E36 -> 0 | G43: =-'C7-CFlow'!G36 -> 0 | H43: =-'C7-CFlow'!K36 -> 0
A44: Depreciation | D44: ='C4-FinPerf RE'!C29 -> 3045069 | E44: ='C4-FinPerf RE'!D29 -> 4322911 | F44: ='C4-FinPerf RE'!E29 -> 4322911 | H44: ='C4-FinPerf RE'!K27 -> 2062366
A45: Operating expenditure | D45: ='C4-FinPerf RE'!C37 -> 49337651 | E45: ='C4-FinPerf RE'!D37 -> 59155751 | F45: ='C4-FinPerf RE'!E37 -> 59155751 | G45: ='C4-FinPerf RE'!G37 -> 23566850.43 | H45: ='C4-FinPerf RE'!K37 -> 59155751
A46: ='C5-Capex'!A40 -> Total Capital Expenditure | D46: ='C5-Capex'!C40 -> 10088338 | E46: ='C5-Capex'!D40 -> 7928000 | F46: ='C5-Capex'!E40 -> 7928000 | G46: ='C5-Capex'!G40 -> 3356728.5 | H46: ='C5-Capex'!K40 -> 7928000
A47: Borrowed funding for capital | D47: ='C5-Capex'!C72 -> 0 | E47: ='C5-Capex'!D72 -> 0 | F47: ='C5-Capex'!E72 -> 0 | G47: ='C5-Capex'!G72 -> 0 | H47: ='C5-Capex'!K72 -> 0
A48: Debt | D48: ='C6-FinPos'!C30+'C6-FinPos'!C31+'C6-FinPos'!C33+'C6-FinPos'!C38 -> 2833649 | E48: ='C6-FinPos'!D30+'C6-FinPos'!D31+'C6-FinPos'!D33+'C6-FinPos'!D38 -> 4855064 | F48: ='C6-FinPos'!E30+'C6-FinPos'!E31+'C6-FinPos'!E33+'C6-FinPos'!E38 -> 4855064 | G48: ='C6-FinPos'!F30+'C6-FinPos'!F31+'C6-FinPos'!F33+'C6-FinPos'!F38 -> 7701758.97 | H48: ='C6-FinPos'!G30+'C6-FinPos'!G31+'C6-FinPos'!G33+'C6-FinPos'!G38 -> 4855064
A49: Equity | D49: ='C6-FinPos'!C48 -> 131501602 | E49: ='C6-FinPos'!D48 -> 142533631 | F49: ='C6-FinPos'!E48 -> 142533631 | G49: ='C6-FinPos'!F48 -> 141791845.9 | H49: ='C6-FinPos'!G48 -> 142533631
A50: ='C6-FinPos'!A47 -> Reserves | D50: ='C6-FinPos'!C47 -> 11385822 | E50: ='C6-FinPos'!D47 -> 11437987 | F50: ='C6-FinPos'!E47 -> 11437987 | G50: ='C6-FinPos'!F47 -> 11386939.32 | H50: ='C6-FinPos'!G47 -> 11437987
A51: ='C6-FinPos'!A38 -> Borrowing | D51: ='C6-FinPos'!C38 -> 0 | E51: ='C6-FinPos'!D38 -> 0 | F51: ='C6-FinPos'!E38 -> 0 | G51: ='C6-FinPos'!F38 -> 0 | H51: ='C6-FinPos'!G38 -> 0
A52: ='C6-FinPos'!A6 -> Current assets | D52: ='C6-FinPos'!C13 -> 24881158 | E52: ='C6-FinPos'!D13 -> 31320426 | F52: ='C6-FinPos'!E13 -> 31320426 | G52: ='C6-FinPos'!F13 -> 36201492.14 | H52: ='C6-FinPos'!G13 -> 31320426
A53: ='C6-FinPos'!A29 -> Current liabilities | D53: ='C6-FinPos'!C35 -> 5061368 | E53: ='C6-FinPos'!D35 -> 6884596 | F53: ='C6-FinPos'!E35 -> 6884596 | G53: ='C6-FinPos'!F35 -> 9437588.43 | H53: ='C6-FinPos'!G35 -> 6884596
A54: Monetary assets | D54: ='C6-FinPos'!C7+'C6-FinPos'!C8 -> 22376445 | E54: ='C6-FinPos'!D7+'C6-FinPos'!D8 -> 25282302 | F54: ='C6-FinPos'!E7+'C6-FinPos'!E8 -> 25282302 | G54: ='C6-FinPos'!F7+'C6-FinPos'!F8 -> 31794036.8 | H54: ='C6-FinPos'!G7+'C6-FinPos'!G8 -> 25282302
A55: ='C4-FinPerf RE'!A23 -> Total Revenue (excluding capital transfers and contributions) | D55: ='C4-FinPerf RE'!C23 -> 47102481 | E55: ='C4-FinPerf RE'!D23 -> 57355751 | F55: ='C4-FinPerf RE'!E23 -> 57355751 | G55: ='C4-FinPerf RE'!G23 -> 30526732.44 | H55: ='C4-FinPerf RE'!K23 -> 57355751
A56: ='C4-FinPerf RE'!A20 -> Transfers recognised - operational | D56: ='C4-FinPerf RE'!C20 -> 19551846 | E56: ='C4-FinPerf RE'!D20 -> 23060000 | F56: ='C4-FinPerf RE'!E20 -> 23060000 | G56: ='C4-FinPerf RE'!G20 -> 14989386.32 | H56: ='C4-FinPerf RE'!K20 -> 23060000
A57: ='C4-FinPerf RE'!A40 -> Transfers recognised - capital | D57: ='C4-FinPerf RE'!C40 -> 10026174 | E57: ='C4-FinPerf RE'!D40 -> 7928000 | F57: ='C4-FinPerf RE'!E40 -> 7928000 | G57: ='C4-FinPerf RE'!G40 -> 3335197.9 | H57: ='C4-FinPerf RE'!K40 -> 7928000
A58: Debt service payments | D58: ='C7-CFlow'!C12+'C7-CFlow'!C36 -> 1559335 | E58: ='C7-CFlow'!D12+'C7-CFlow'!D36 -> 1170600 | F58: ='C7-CFlow'!E12+'C7-CFlow'!E36 -> 1170600 | G58: ='C7-CFlow'!G16+'C7-CFlow'!G36 -> 0 | H58: ='C7-CFlow'!K16+'C7-CFlow'!K36 -> -831014
A59: Outstanding debtors (receivables) | D59: ='C6-FinPos'!C9+'C6-FinPos'!C10+'C6-FinPos'!C11+'C6-FinPos'!C16 -> 2544019 | E59: ='C6-FinPos'!D9+'C6-FinPos'!D10+'C6-FinPos'!D11+'C6-FinPos'!D16 -> 6079745 | F59: ='C6-FinPos'!E9+'C6-FinPos'!E10+'C6-FinPos'!E11+'C6-FinPos'!E16 -> 6079745 | G59: ='C6-FinPos'!F9+'C6-FinPos'!F10+'C6-FinPos'!F11+'C6-FinPos'!F16 -> 4446761.83 | H59: ='C6-FinPos'!G9+'C6-FinPos'!G10+'C6-FinPos'!G11+'C6-FinPos'!G16 -> 6079745
A60: Annual services revenue | D60: =SUM('C4-FinPerf RE'!C8:C12) -> 17949794 | E60: =SUM('C4-FinPerf RE'!D8:D12) -> 19564238 | F60: =SUM('C4-FinPerf RE'!E8:E12) -> 19564238 | G60: =SUM('C4-FinPerf RE'!G8:G12) -> 9678679.63
A61: Cash + investments | B61: Including LT investments | D61: ='C6-FinPos'!C7+'C6-FinPos'!C8+'C6-FinPos'!C17-'C6-FinPos'!C30 -> 22376445 | E61: ='C6-FinPos'!D7+'C6-FinPos'!D8+'C6-FinPos'!D17-'C6-FinPos'!D30 -> 25282302 | F61: ='C6-FinPos'!E7+'C6-FinPos'!E8+'C6-FinPos'!E17-'C6-FinPos'!E30 -> 25282302 | G61: ='C6-FinPos'!F7+'C6-FinPos'!F8+'C6-FinPos'!F17-'C6-FinPos'!F30 -> 31794036.8 | H61: ='C6-FinPos'!G7+'C6-FinPos'!G8+'C6-FinPos'!G17-'C6-FinPos'!G30 -> 25282302
A62: Fixed operational expend. (monthly) | D62: 4111470.917 | E62: 4929645.917 | F62: 4929645.917 | G62: 5891712.608 | H62: 4929645.917
A63: Longstanding debtors outstanding | D63: ='C6-FinPos'!C16 -> 39306 | E63: ='C6-FinPos'!D16 -> 41621 | F63: ='C6-FinPos'!E16 -> 41621 | G63: ='C6-FinPos'!F16 -> 39306.49 | H63: ='C6-FinPos'!G16 -> 41621
A64: Longstanding debtors recovered | D64: 8727 | E64: 8490 | F64: 8490 | G64: 4809.58 | H64: 8490
A65: Attorney collections

Sheet SC3
A1: =muni& " - "&S71I& " - "&Head57 -> NC074 Kareeberg - Supporting Table SC3 Monthly Budget Statement - aged debtors - Mid-Year Assessment
A2: =desc -> Description | C2: =Head2 -> Budget Year 2015/16
A3: R thousands | B3: NT Code | C3: 0-30 Days | D3: 31-60 Days | E3: 61-90 Days | F3: 91-120 Days | G3: 121-150 Dys | H3: 151-180 Dys | I3: 181 Dys-1 Yr | J3: Over 1Yr | K3: Total | L3: Total over 90 days | M3: Actual Bad Debts Written Off against Debtors | N3: Impairment - Bad Debts i.t.o Council Policy
A4: Debtors Age Analysis By Income Source
A5: Trade and Other Receivables from Exchange Transactions - Water | B5: 1200 | C5: 262603.2 | D5: 28571.24 | E5: 48552.88 | F5: 23158.08 | G5: 14991.16 | H5: 525635.08 | K5: =SUM(C5:J5) -> 903511.64 | L5: =SUM(F5:J5) -> 563784.32 | N5: 205651
A6: Trade and Other Receivables from Exchange Transactions - Electricity | B6: 1300 | C6: 435811.52 | D6: 25437.85 | E6: 45589.34 | F6: 42243.13 | G6: 47832.89 | H6: 323665.94 | K6: =SUM(C6:J6) -> 920580.67 | L6: =SUM(F6:J6) -> 413741.96 | N6: 211967
A7: Receivables from Non-exchange Transactions - Property Rates | B7: 1400 | C7: 0 | D7: 0 | E7: 0 | F7: 0 | G7: 0 | H7: 2559090.46 | K7: =SUM(C7:J7) -> 2559090.46 | L7: 2559090.46 | N7: 1489630
A8: Receivables from Exchange Transactions - Waste Water Management | B8: 1500 | C8: 107934.06 | D8: 6122.86 | E8: 539.01 | F8: 41207.71 | G8: 32486.47 | H8: 249149.15 | K8: 437439.26 | L8: 322843.33 | N8: 127914
A9: Receivables from Exchange Transactions - Waste Management | B9: 1600 | C9: 194446.8 | D9: 19331.27 | E9: 21473.01 | F9: 15601.8 | G9: 12542.26 | H9: 1.964508556e-10 | K9: 263395.14 | L9: =SUM(F9:J9) -> 28144.06 | N9: 32800
A10: Receivables from Exchange Transactions - Property Rental Debtors | B10: 1700 | C10: 0 | D10: 0 | E10: -1.364242053e-12 | F10: 0 | G10: -7.048583939e-12 | H10: 241293.25 | K10: 241293.25 | L10: =SUM(F10:J10) -> 241293.25 | N10: 241293
A11: Interest on Arrear Debtor Accounts | B11: 1810 | C11: 15507.63 | D11: 13318.59 | E11: 13930.48 | F11: 0 | G11: 1572.14 | H11: 427607.77 | K11: 471936.61 | L11: 429179.91 | N11: 418670
A12: Recoverable unauthorised, irregular, fruitless and wasteful expenditure | B12: 1820 | C12: 0 | D12: 0 | E12: 0 | F12: 0 | G12: 0 | H12: 0 | K12: 0 | L12: 0 | N12: 0
A13: Other | B13: 1900 | C13: 1297081.63 | D13: 0 | E13: 0 | F13: 0 | G13: 0 | H13: 0 | K13: 1297081.63 | L13: =SUM(F13:J13) -> 0 | N13: 0
A14: Total By Income Source | B14: 2000 | C14: =SUM(C5:C13) -> 2313384.84 | D14: 92781.81 | E14: 130084.72 | F14: 122210.72 | G14: 109424.92 | H14: 4326441.65 | I14: 0 | J14: 0 | K14: 7094328.66 | L14: =SUM(L5:L13) -> 4558077.29 | M14: 0 | N14: 2727925
A15: =Head1&" - totals only" -> 2014/15 - totals only | C15: 340867.87 | D15: 381533.1 | E15: 266960.04 | F15: 173737.65 | G15: 3057213.81 | H15: 1350105.4 | K15: =SUM(C15:J15) -> 5570417.87 | L15: =SUM(F15:J15) -> 4581056.86
A16: Debtors Age Analysis By Customer Group
A17: Organs of State | B17: 2200 | C17: 121830.58 | D17: 86514.8 | E17: 29547.46 | F17: 55615.24 | G17: 13602.85 | H17: 24846.7 | K17: =SUM(C17:J17) -> 331957.63 | L17: =SUM(F17:J17) -> 94064.79 | N17: 0
A18: Commercial | B18: 2300 | C18: 185258 | D18: 45430.25 | E18: 23255.52 | F18: 11872.96 | G18: 8577.04 | H18: 505575.1 | K18: =SUM(C18:J18) -> 779968.87 | L18: =SUM(F18:J18) -> 526025.1 | N18: 504071
A19: Households | B19: 2400 | C19: 2006296.26 | D19: -39163.24 | E19: 77281.74 | F19: 54722.52 | G19: 87245.03 | H19: 3796019.85 | K19: =SUM(C19:J19) -> 5982402.16 | L19: =SUM(F19:J19) -> 3937987.4 | N19: 2223854
A20: Other | B20: 2500 | C20: 0 | D20: 0 | E20: 0 | F20: 0 | G20: 0 | H20: 0 | K20: =SUM(C20:J20) -> 0 | L20: =SUM(F20:J20) -> 0
A21: Total By Customer Group | B21: 2600 | C21: =SUM(C17:C20) -> 2313384.84 | D21: 92781.81 | E21: 130084.72 | F21: 122210.72 | G21: 109424.92 | H21: 4326441.65 | I21: 0 | J21: =SUM(J17:J20) -> 0 | K21: =SUM(K17:K20) -> 7094328.66 | L21: =SUM(L17:L20) -> 4558077.29 | M21: =SUM(M17:M20) -> 0 | N21: =SUM(N17:N20) -> 2727925
A22: Notes
A23: Material increases in value of debtors' categories compared to previous month to be explained
A24: Bad debts = amounts actually written off in the month
A25: Total by Income Source must reconcile with Total by Customer Group
C26: =C14-C21 -> 0 | D26: =D14-D21 -> 0 | E26: =E14-E21 -> 0 | F26: 0 | G26: 0 | H26: 0 | I26: 0 | J26: =J14-J21 -> 0 | K26: 0
C27: =IF(C26=0,"","MUST AGREE") ->  | D27: =IF(D26=0,"","MUST AGREE") -> 

Sheet SC4
A1: =muni& " - "&S71J& " - "&Head57 -> NC074 Kareeberg - Supporting Table SC4 Monthly Budget Statement - aged creditors - Mid-Year Assessment
A2: =desc -> Description | B2: NT Code | C2: =Head2 -> Budget Year 2015/16 | L2: Prior year totals for chart (same period)
C3: 0 - 30 Days | D3: 31 - 60 Days | E3: 61 - 90 Days | F3: 91 - 120 Days | G3: 121 - 150 Days | H3: 151 - 180 Days | I3: 181 Days - 1 Year | J3: Over 1 Year | K3: Total
A4: R thousands
A5: Creditors Age Analysis By Customer Type
A6: Bulk Electricity | B6: 0100 | K6: =SUM(C6:J6) -> 0
A7: Bulk Water | B7: 0200 | K7: =SUM(C7:J7) -> 0
A8: PAYE deductions | B8: 0300 | K8: 0
A9: VAT (output less input) | B9: 0400 | K9: 0
A10: Pensions / Retirement deductions | B10: 0500 | K10: 0
A11: Loan repayments | B11: 0600 | K11: 0
A12: Trade Creditors | B12: 0700 | K12: 0
A13: Auditor General | B13: 0800 | K13: 0
A14: Other | B14: 0900 | K14: =SUM(C14:J14) -> 0
A15: Total By Customer Type | B15: 1000 | C15: =SUM(C6:C14) -> 0 | D15: =SUM(D6:D14) -> 0 | E15: 0 | F15: 0 | G15: 0 | H15: 0 | I15: 0 | J15: 0 | K15: =SUM(K6:K14) -> 0 | L15: =SUM(L6:L14) -> 0
A16: Notes
A17: Material increases in value of creditors' categories compared to previous month to be explained

Sheet SC5
A1: =muni& " - "&S71K& " - "&Head57 -> NC074 Kareeberg - Supporting Table SC5 Monthly Budget Statement - investment portfolio - Mid-Year Assessment
A2: Investments by maturity Name of institution & investment ID | B2: Ref | C2: Period of Investment | D2: Type of Investment | E2: Expiry date of investment | F2: Accrued interest for the month | G2: Yield for the month 1 (%) | H2: Market value at beginning of the month | I2: Change in market value | J2: Market value at end of the month
A3: R thousands | C3: Yrs/Months
A4: Municipality
A5: Capital Replacement Reserve | C5: 32 days | D5: fixed deposit | H5: 11347811.51 | I5: =J5-H5 -> 0 | J5: 11347811.51
A6: Housing Fund | C6: 1 day | D6: call deposit | H6: 38903.76 | I6: =J6-H6 -> 224.05 | J6: 39127.81
A7: Job creation - De Bult | C7: 32 days | D7: notice deposit | H7: 39361.08 | I7: 226.69 | J7: 39587.77
A8: Land development | C8: 1 day | D8: call deposit | H8: 16901.26 | I8: 97.19 | J8: 16998.45
A9: Land development | C9: 32 days | D9: notice deposit | H9: 15422.38 | I9: 88.81 | J9: 15511.19
A10: Land development | C10: 1 day | D10: call deposit | H10: 29478.11 | I10: 169.72 | J10: 29647.83
A11: Civil Defence | C11: 32 days | D11: notice deposit | H11: 19123.34 | I11: 172.76 | J11: 19296.1
A12: EPWP Vosburg dust | H12: 225918.37 | I12: -177935.42 | J12: 47982.95
A13: CMIP Kwaggakolk(vat) | C13: 1 day | D13: call deposit | H13: 623.34 | I13: 3.59 | J13: 626.93
A14: MSIG | C14: 1 day | D14: call deposit | H14: 866788.99 | I14: -94860.8 | J14: 771928.19
A15: MIG Sanitation interest/vat | C15: 1 day | D15: call deposit | H15: 1021812.99 | I15: 0 | J15: 1021812.99
A16: Electricity | C16: 1 day | D16: call deposit | H16: 35460.27 | I16: 204.19 | J16: 35664.46
A17: Water Services Plan | C17: 1 day | D17: call deposit | H17: 3315.62 | I17: 19.15 | J17: 3334.77
A18: CMIP-Saaipoort project 301 | C18: 1 day | D18: call deposit | H18: 3639.49 | I18: 21.06 | J18: 3660.55
A19: Library Development Projects | C19: 1 day | D19: call deposit | H19: 352654.27 | I19: -25044.03 | J19: 327610.24
A20: EPWP - Paving/ Cleaning | C20: 1 day | D20: call deposit | H20: 23970.75 | I20: 137.88 | J20: 24108.63
A21: Lotto Carnarvon | C21: 1 day | D21: call deposit | H21: 1840.8 | I21: 10.53 | J21: 1851.33
A22: Lotto Vosburg | C22: 1 day | D22: call deposit | H22: 32468.22 | I22: 186.95 | J22: 32655.17
A23: Finance Management Grant | C23: 1 day | D23: call deposit | H23: 1263696.08 | I23: -79539.72 | J23: 1184156.36
A24: Transfer Fees Sub-Economic Housing | C24: 32 days | D24: notice deposit | H24: 136486.28 | I24: 785.62 | J24: 137271.9
A25: VB Cleaning Project | C25: 1 day | D25: call deposit | H25: 25918.57 | I25: 149.13 | J25: 26067.7
A26: VAT - retention | C26: 1 day | D26: call deposit | H26: 12027.39 | I26: 69.18 | J26: 12096.57
A27: EPWP | C27: 1 day | D27: call deposit | H27: 227205.31 | I27: -82752.8 | J27: 144452.51
A28: MIG | C28: 1 day | D28: call deposit | H28: 3383414.97 | I28: -209368.1 | J28: 3174046.87
A29: Youth development | C29: 1 day | D29: call deposit | H29: 93632.07 | I29: 0 | J29: 93632.07
A30: Leave, PMS and Long Service Funds | C30: 1 day | D30: call deposit | H30: 2497056 | I30: -322612.74 | J30: 2174443.26
A31: Provision for Employee benefits | C31: 1 day | D31: call deposit | H31: 4000000 | I31: 0 | J31: 4000000
A32: Retension | C32: 1 day | D32: call deposit | H32: 619102.19 | I32: -298357.14 | J32: 320745.05
A33: Reserves | C33: 1 day | D33: call deposit | H33: 352115.68 | I33: 0 | J33: 352115.68
A34: General Account | C34: 1 day | D34: call deposit | H34: 7878961.72 | I34: -1950000 | J34: 5928961.72
A36: Municipality sub-total | F36: =SUM(F5:F35) -> 0 | H36: =SUM(H5:H35) -> 34565110.81 | I36: =SUM(I5:I35) -> -3237904.25 | J36: =SUM(J5:J35) -> 31327206.56
A38: Entities
A46: Entities sub-total | F46: =SUM(F39:F45) -> 0 | H46: =SUM(H39:H45) -> 0 | I46: =SUM(I39:I45) -> 0 | J46: =SUM(J39:J45) -> 0
A48: TOTAL INVESTMENTS AND INTEREST | B48: 2 | F48: =F36+F46 -> 0 | H48: =H36+H46 -> 34565110.81 | I48: =I36+I46 -> -3237904.25 | J48: =J36+J46 -> 31327206.56
A49: =head27a -> References
A50: 1. Yield is calculated as the annualised equivalent
A51: 2. Total market value must reconcile with the total of investments on the 'Financial Position statement'

Sheet SC6
A1: =muni& " - "&S71L& " - "&Head57 -> NC074 Kareeberg - Supporting Table SC6 Monthly Budget Statement - transfers and grant receipts - Mid-Year Assessment
A2: =desc -> Description | B2: =head27 -> Ref | C2: =Head1 -> 2014/15 | D2: =Head2 -> Budget Year 2015/16
C3: =Head5 -> Audited Outcome | D3: =Head6 -> Original Budget | E3: =Head7 -> Adjusted Budget | F3: =Head38 -> Monthly actual | G3: =Head39 -> YearTD actual | H3: =Head40 -> YearTD budget | I3: =Head41 -> YTD variance | J3: =Head41 -> YTD variance | K3: =Head8 -> Full Year Forecast
A4: R thousands | J4: %
A5: RECEIPTS: | B5: 1,2
A7: Operating Transfers and Grants
A8: National Government: | C8: =SUM(C9:C19) -> 20114176 | D8: 21751000 | E8: 21751000 | F8: 0 | G8: 17048645.87 | H8: 8470500 | I8: 8881895.87 | J8: =IF(I8=0,"",I8/H8) -> 1.048568074 | K8: =SUM(K9:K19) -> 21751000
A9: Local Government Equitable Share | C9: 15096000 | D9: 18021000 | E9: 18021000 | F9: 0 | G9: 13509000 | H9: 4740500 | I9: =G9-H9 -> 8768500 | J9: 1.849699399 | K9: 18021000
A10: Finance Management | C10: 1800000 | D10: 1800000 | E10: 1800000 | G10: 1800000 | H10: 1800000 | K10: 1800000
A11: Municipal Systems Improvement | C11: 934000 | D11: 930000 | E11: 930000 | G11: 926250 | H11: 930000 | K11: 930000
A12: EPWP Incentive | C12: 1000000 | D12: 1000000 | E12: 1000000 | F12: 0 | G12: 700000 | H12: 1000000 | K12: 1000000
A13: Municipal Infrastructure Grant (MIG) | C13: 905375
A14: Department of Water Affairs and Forestry | B14: 3 | C14: 378801 | G14: 113395.87 | I14: 113395.87
I15: 0
I16: 0
I17: 0
I18: 0
A19: Other transfers and grants [insert description] | I19: 0
A20: Provincial Government: | C20: =SUM(C21:C26) -> 778002 | D20: 1309000 | E20: 1309000 | F20: 0 | G20: 659952.76 | H20: 654500 | I20: 0 | K20: =SUM(K21:K26) -> 1309000
A21: Sport and Recreation | C21: 715207 | D21: 1309000 | E21: 1309000 | G21: 654500 | H21: 654500 | I21: =G21-H21 -> 0 | K21: 1309000
A22: Expanded Public Works Programme | C22: 62795 | F22: 0 | G22: 5452.76
I23: 0
B24: 4 | I24: 0
I25: 0
A26: Other transfers and grants [insert description] | I26: 0
A27: District Municipality: | C27: =SUM(C28:C29) -> 0 | D27: 0 | E27: 0 | F27: 0 | G27: 0 | H27: 0 | I27: 0 | K27: =SUM(K28:K29) -> 0
A28: [insert description] | I28: 0
I29: 0
A30: Other grant providers: | C30: =SUM(C31:C37) -> 235677 | D30: 0 | E30: 0 | F30: 0 | G30: 113232.78 | H30: 0 | I30: 113232.78 | K30: =SUM(K31:K37) -> 0
A31: Sanitation interest | C31: 123091 | G31: 113232.78 | I31: 113232.78
A32: CMIP Kwaggakolk (VAT) | C32: 112586
I37: 0
A38: Total Operating Transfers and Grants | B38: 5 | C38: =C8+C20+C27+C30 -> 21127855 | D38: 23060000 | E38: 23060000 | F38: 0 | G38: 17821831.41 | H38: 9125000 | I38: 8995128.65 | J38: 0.9857675233 | K38: =K8+K20+K27+K30 -> 23060000
A40: Capital Transfers and Grants
A41: =A8 -> National Government: | C41: =SUM(C42:C51) -> 9649411 | D41: 7928000 | E41: 7928000 | F41: 109635.22 | G41: 6310050.37 | H41: 7928000 | I41: -2964000 | J41: =IF(I41=0,"",I41/H41) -> -0.373864783 | K41: 7928000
A42: Municipal Infrastructure Grant (MIG) | C42: 6942624 | D42: 7928000 | E42: 7928000 | G42: 4964000 | H42: 7928000 | I42: =G42-H42 -> -2964000 | J42: -0.373864783 | K42: 7928000
A43: Regional Bulk Infrastructure | C43: 2706787 | F43: 109635.22 | G43: 1342300.37
A44: Municipal Systems Improvement | G44: 3750
I47: 0
I48: 0
I49: 0
I50: 0
A51: Other capital transfers [insert description] | I51: 0
A52: =A20 -> Provincial Government: | C52: =SUM(C53:C58) -> 376761 | D52: 0 | E52: 0 | F52: 34740 | G52: 87055.17 | H52: 0 | I52: =G52-H52 -> 87055.17 | J52: =IF(I52=0,"",I52/H52) ->  | K52: =SUM(K53:K58) -> 0
A53: Sport and Recreation | C53: 139792 | I53: 0 | J53: =IF(I53=0,"",I53/H53) -> 
A54: Expanded Public Works Programme | C54: 236969 | F54: 34740 | G54: 87055.17
I58: 0
A59: =A27 -> District Municipality: | C59: =SUM(C60:C61) -> 0 | D59: 0 | E59: 0 | F59: 0 | G59: 0 | H59: 0 | I59: 0 | K59: =SUM(K60:K61) -> 0
A60: [insert description] | I60: 0
I61: 0
A62: =A30 -> Other grant providers: | C62: =SUM(C63:C68) -> 0 | D62: 0 | E62: 0 | F62: 0 | G62: 0 | H62: 0 | I62: 0 | K62: =SUM(K63:K68) -> 0
A63: [insert description] | I63: 0 | J63: =IF(I63=0,"",I63/H63) -> 
I68: 0
A69: Total Capital Transfers and Grants | B69: 5 | C69: =C41+C52+C59+C62 -> 10026172 | D69: =D41+D52+D59+D62 -> 7928000 | E69: 7928000 | F69: 144375.22 | G69: 6397105.54 | H69: 7928000 | I69: -2876944.83 | J69: -0.3628840603 | K69: 7928000
A71: TOTAL RECEIPTS OF TRANSFERS & GRANTS | B71: 5 | C71: =C38+C69 -> 31154027 | D71: 30988000 | E71: 30988000 | F71: 144375.22 | G71: 24218936.95 | H71: 17053000 | I71: 6118183.82 | J71: 0.3587746332 | K71: 30988000
A72: =head27a -> References
A73: 1. Each grant is listed by name as gazetted together with the name of the transferring department or municipality, donor or other organisation
A74: 2. Grant expenditure must be separately listed for each grant received
A75: 3. Replacement of RSC levies
A76: 4. Housing subsidies for housing where ownership transferred
A77: 5. Total recurrent/capital grants and subsidies must reconcile to the 'Financial Performance' Statement

Sheet SC7(1)
A1: =muni& " - "&S71M& " - "&Head57 -> NC074 Kareeberg - Supporting Table SC7(1) Monthly Budget Statement - transfers and grant expenditure - Mid-Year Assessment
A2: =desc -> Description | B2: =head27 -> Ref | C2: =Head1 -> 2014/15 | D2: =Head2 -> Budget Year 2015/16
C3: =Head5 -> Audited Outcome | D3: =Head6 -> Original Budget | E3: =Head7 -> Adjusted Budget | F3: =Head38 -> Monthly actual | G3: =Head39 -> YearTD actual | H3: =Head40 -> YearTD budget | I3: =Head41 -> YTD variance | J3: =Head41 -> YTD variance | K3: =Head8 -> Full Year Forecast
A4: R thousands | J4: %
A5: EXPENDITURE
A7: Operating expenditure of Transfers and Grants
A8: ='SC6'!A8 -> National Government: | C8: =SUM(C9:C15) -> 20114176 | D8: 13033352 | E8: 13033352 | F8: 548017.06 | G8: 5330872.15 | H8: 6202234.667 | I8: -871362.5167 | J8: =IF(I8=0,"",I8/H8) -> -0.140491704 | K8: =SUM(K9:K15) -> 13033352
A9: ='SC6'!A9 -> Local Government Equitable Share | C9: 15096000 | D9: 9303352 | E9: 9303352 | F9: 415938.5 | G9: 4293792.72 | H9: 6202234.667 | I9: =G9-H9 -> -1908441.947 | J9: -0.307702312 | K9: 9303352
A10: ='SC6'!A10 -> Finance Management | C10: 1800000 | D10: 1800000 | E10: 1800000 | F10: 14800 | G10: 539961.91 | H10: 0 | I10: 539961.91 | K10: 1800000
A11: ='SC6'!A11 -> Municipal Systems Improvement | C11: 934000 | D11: 930000 | E11: 930000 | F11: 58193.56 | G11: 143011.52 | H11: 0 | I11: 143011.52 | K11: 930000
A12: ='SC6'!A12 -> EPWP Incentive | C12: 1000000 | D12: 1000000 | E12: 1000000 | F12: 59085 | G12: 354106 | H12: 0 | I12: 354106 | K12: 1000000
A13: ='SC6'!A13 -> Municipal Infrastructure Grant (MIG) | C13: 905375 | I13: 0
A14: ='SC6'!A14 -> Department of Water Affairs and Forestry | C14: 378801 | I14: 0
A15: ='SC6'!A19 -> Other transfers and grants [insert description] | I15: 0
A16: ='SC6'!A20 -> Provincial Government: | C16: =SUM(C17:C21) -> 778002 | D16: 1309000 | E16: 1309000 | F16: 171410.41 | G16: 346715.25 | H16: 0 | I16: 346715.25 | K16: =SUM(K17:K21) -> 1309000
A17: ='SC6'!A21 -> Sport and Recreation | C17: 715207 | D17: 1309000 | E17: 1309000 | F17: 28893.86 | G17: 198745.94 | I17: =G17-H17 -> 198745.94 | K17: 1309000
A18: Expanded Public Works Programme | C18: 62795 | F18: 142516.55 | G18: 147969.31 | I18: 147969.31
A19: ='SC6'!A24 -> 0 | I19: 0
A20: ='SC6'!A25 -> 0 | I20: 0
A21: ='SC6'!A26 -> Other transfers and grants [insert description] | I21: 0
A22: ='SC6'!A27 -> District Municipality: | C22: =SUM(C23:C24) -> 0 | D22: 0 | E22: =SUM(E23:E24) -> 0 | F22: 0 | G22: 0 | H22: 0 | I22: 0 | K22: =SUM(K23:K24) -> 0
I23: 0
A24: ='SC6'!A28 -> [insert description] | I24: 0
A25: ='SC6'!A30 -> Other grant providers: | C25: =SUM(C26:C27) -> 235677 | D25: 0 | E25: 0 | F25: 0 | G25: 99327 | H25: 0 | I25: 99327 | K25: =SUM(K26:K27) -> 0
A26: ='SC6'!A31 -> Sanitation interest | C26: 123091 | F26: 0 | G26: 99327 | I26: 99327
A27: ='SC6'!A32 -> CMIP Kwaggakolk (VAT) | C27: 112586 | I27: 0
A28: Total operating expenditure of Transfers and Grants: | C28: =C8+C16+C22+C25 -> 21127855 | D28: =D8+D16+D22+D25 -> 14342352 | E28: 14342352 | F28: 719427.47 | G28: 5776914.4 | H28: 6202234.667 | I28: -425320.2667 | J28: -0.0685753264 | K28: =K8+K16+K22+K25 -> 14342352
A30: Capital expenditure of Transfers and Grants
A31: ='SC6'!A41 -> National Government: | C31: =SUM(C32:C37) -> 9649411 | D31: 7928000 | E31: 7928000 | F31: 314744.17 | G31: 3116022.55 | H31: 7928000 | I31: -4811977.45 | J31: =IF(I31=0,"",I31/H31) -> -0.6069598196 | K31: 7928000
A32: ='SC6'!A42 -> Municipal Infrastructure Grant (MIG) | C32: 6942624 | D32: 7928000 | E32: 7928000 | F32: 184368.28 | G32: 1592777.4 | H32: 7928000 | I32: =G32-H32 -> -6335222.6 | J32: -0.7990946771 | K32: 7928000
A33: ='SC6'!A43 -> Regional Bulk Infrastructure | C33: 2706787 | F33: 109635.22 | G33: 1342300.37 | I33: 1342300.37
A34: Municipal Systems Improvement | G34: 3750 | I34: 3750
A35: EPWP Incentive | F35: 20740.67 | G35: 177194.78 | I35: 177194.78
A36: ='SC6'!A50 -> 0 | I36: 0
A37: ='SC6'!A51 -> Other capital transfers [insert description] | I37: 0
A38: ='SC6'!A52 -> Provincial Government: | C38: =SUM(C39:C40) -> 376761 | D38: 0 | E38: 0 | F38: 34740 | G38: 219175.35 | H38: 0 | I38: =G38-H38 -> 219175.35 | K38: =SUM(K39:K40) -> 0
A39: ='SC6'!A53 -> Sport and Recreation | C39: 139792 | F39: 0 | G39: 132120.18 | I39: 132120.18
A40: ='SC6'!A54 -> Expanded Public Works Programme | C40: 236969 | F40: 34740 | G40: 87055.17 | I40: 87055.17
A41: ='SC6'!A59 -> District Municipality: | C41: =SUM(C42:C43) -> 0 | D41: 0 | E41: 0 | F41: 0 | G41: 0 | H41: 0 | I41: 0 | K41: =SUM(K42:K43) -> 0
I42: 0
A43: ='SC6'!A61 -> 0 | I43: 0
A44: ='SC6'!A62 -> Other grant providers: | C44: =SUM(C45:C46) -> 0 | D44: 0 | E44: 0 | F44: 0 | G44: 0 | H44: 0 | I44: 0 | K44: =SUM(K45:K46) -> 0
I45: 0
A46: ='SC6'!A68 -> 0 | I46: 0
A47: Total capital expenditure of Transfers and Grants | C47: =C31+C38+C41+C44 -> 10026172 | D47: =D31+D38+D41+D44 -> 7928000 | E47: 7928000 | F47: 349484.17 | G47: 3335197.9 | H47: 7928000 | I47: -4592802.1 | J47: =IF(I47=0,"",I47/H47) -> -0.5793140893 | K47: 7928000
A49: TOTAL EXPENDITURE OF TRANSFERS AND GRANTS | C49: =C28+C47 -> 31154027 | D49: 22270352 | E49: 22270352 | F49: 1068911.64 | G49: 9112112.3 | H49: 14130234.67 | I49: -5018122.367 | J49: =IF(I49=0,"",I49/H49) -> -0.3551336892 | K49: 22270352
A50: =head27a -> References

Sheet SC7(2)
A1: =muni& " - "&S71T& " - "&Head57 -> NC074 Kareeberg - Supporting Table SC7(2) Monthly Budget Statement - Expenditure against approved rollovers - Mid-Year Assessment
A2: =desc -> Description | B2: =head27 -> Ref | C2: =Head2 -> Budget Year 2015/16
C3: ="Approved Rollover " &Head1 -> Approved Rollover 2014/15 | D3: =Head38 -> Monthly actual | E3: =Head39 -> YearTD actual | F3: =Head41 -> YTD variance | G3: =Head41 -> YTD variance
A4: R thousands | G4: %
A5: EXPENDITURE
A7: Operating expenditure of Approved Roll-overs
A8: ='SC6'!A8 -> National Government: | C8: =SUM(C9:C15) -> 0 | D8: =SUM(D9:D15) -> 0 | E8: =SUM(E9:E15) -> 0 | F8: =SUM(F9:F15) -> 0 | G8: =IF(F8=0,"",F8/C8) -> 
A9: ='SC6'!A9 -> Local Government Equitable Share | F9: =E9-C9 -> 0 | G9: =IF(F9=0,"",F9/C9) -> 
A10: ='SC6'!A10 -> Finance Management | F10: =C10-E10 -> 0
A11: ='SC6'!A11 -> Municipal Systems Improvement | F11: 0
A12: ='SC6'!A12 -> EPWP Incentive | F12: 0
A13: ='SC6'!A13 -> Municipal Infrastructure Grant (MIG) | F13: 0
A14: ='SC6'!A14 -> Department of Water Affairs and Forestry | F14: 0
A15: ='SC6'!A19 -> Other transfers and grants [insert description] | F15: 0
A16: ='SC6'!A20 -> Provincial Government: | C16: =SUM(C17:C21) -> 0 | D16: =SUM(D17:D21) -> 0 | E16: =SUM(E17:E21) -> 0 | F16: =SUM(F17:F21) -> 0
A17: ='SC6'!A21 -> Sport and Recreation | F17: =C17-E17 -> 0
A18: ='SC6'!A23 -> 0 | F18: =C18-E18 -> 0
A19: ='SC6'!A24 -> 0 | F19: =C19-E19 -> 0
A20: ='SC6'!A25 -> 0 | F20: =C20-E20 -> 0
A21: ='SC6'!A26 -> Other transfers and grants [insert description] | F21: =C21-E21 -> 0
A22: ='SC6'!A27 -> District Municipality: | C22: =SUM(C23:C24) -> 0 | D22: =SUM(D23:D24) -> 0 | E22: =SUM(E23:E24) -> 0 | F22: =SUM(F23:F24) -> 0
F23: =C23-E23 -> 0
A24: ='SC6'!A28 -> [insert description] | F24: =C24-E24 -> 0
A25: ='SC6'!A30 -> Other grant providers: | C25: =SUM(C26:C27) -> 0 | D25: =SUM(D26:D27) -> 0 | E25: =SUM(E26:E27) -> 0 | F25: =SUM(F26:F27) -> 0
F26: =C26-E26 -> 0
A27: ='SC6'!A31 -> Sanitation interest | F27: =C27-E27 -> 0
A28: Total operating expenditure of Approved Roll-overs | C28: =C8+C16+C22+C25 -> 0 | D28: =D8+D16+D22+D25 -> 0 | E28: =E8+E16+E22+E25 -> 0 | F28: =F8+F16+F22+F25 -> 0
A30: Capital expenditure of Approved Roll-overs
A31: ='SC6'!A41 -> National Government: | C31: =SUM(C32:C37) -> 0 | D31: =SUM(D32:D37) -> 0 | E31: =SUM(E32:E37) -> 0 | F31: =SUM(F32:F37) -> 0
A32: ='SC6'!A42 -> Municipal Infrastructure Grant (MIG) | F32: =C32-E32 -> 0
A33: ='SC6'!A47 -> 0 | F33: 0
A34: ='SC6'!A48 -> 0 | F34: 0
A35: ='SC6'!A49 -> 0 | F35: 0
A36: ='SC6'!A50 -> 0 | F36: 0
A37: ='SC6'!A51 -> Other capital transfers [insert description] | F37: 0
A38: ='SC6'!A52 -> Provincial Government: | C38: =SUM(C39:C40) -> 0 | D38: =SUM(D39:D40) -> 0 | E38: =SUM(E39:E40) -> 0 | F38: =SUM(F39:F40) -> 0
F39: =C39-E39 -> 0
A40: ='SC6'!A58 -> 0 | F40: =C40-E40 -> 0
A41: ='SC6'!A59 -> District Municipality: | C41: =SUM(C42:C43) -> 0 | D41: =SUM(D42:D43) -> 0 | E41: =SUM(E42:E43) -> 0 | F41: =SUM(F42:F43) -> 0
F42: =C42-E42 -> 0
A43: ='SC6'!A61 -> 0 | F43: =C43-E43 -> 0
A44: ='SC6'!A62 -> Other grant providers: | C44: =SUM(C45:C46) -> 0 | D44: =SUM(D45:D46) -> 0 | E44: =SUM(E45:E46) -> 0 | F44: =SUM(F45:F46) -> 0
F45: =C45-E45 -> 0
A46: ='SC6'!A68 -> 0 | F46: =C46-E46 -> 0
A47: Total capital expenditure of Approved Roll-overs | C47: =C31+C38+C41+C44 -> 0 | D47: =D31+D38+D41+D44 -> 0 | E47: =E31+E38+E41+E44 -> 0 | F47: =F31+F38+F41+F44 -> 0
A49: TOTAL EXPENDITURE OF APPROVED ROLL-OVERS | C49: =C28+C47 -> 0 | D49: =D28+D47 -> 0 | E49: =E28+E47 -> 0 | F49: =F28+F47 -> 0
A50: =head27a -> References

Sheet SC8
A1: =muni& " - "&S71N& " - "&Head57 -> NC074 Kareeberg - Supporting Table SC8 Monthly Budget Statement - councillor and staff benefits - Mid-Year Assessment
A2: Summary of Employee and Councillor remuneration | B2: =head27 -> Ref | C2: =Head1 -> 2014/15 | D2: =Head2 -> Budget Year 2015/16
C3: =Head5 -> Audited Outcome | D3: =Head6 -> Original Budget | E3: =Head7 -> Adjusted Budget | F3: =Head38 -> Monthly actual | G3: =Head39 -> YearTD actual | H3: =Head40 -> YearTD budget | I3: =Head41 -> YTD variance | J3: =Head41 -> YTD variance | K3: =Head8 -> Full Year Forecast
A4: R thousands | J4: %
B5: 1 | C5: A | D5: B | E5: C | K5: D
A6: Councillors (Political Office Bearers plus Other)
A7: Basic Salaries and Wages | C7: 1412802 | D7: 1426261 | E7: 1426261 | F7: 117733.54 | G7: 706401.24 | H7: 688507.5 | I7: =G7-H7 -> 17893.74 | J7: =IF(I7=0,"",I7/H7) -> 0.02598917223 | K7: 1426261
A8: Pension and UIF Contributions | D8: 0 | H8: 0 | I8: 0
A9: Medical Aid Contributions | D9: 0 | H9: 0 | I9: 0
A10: Motor Vehicle Allowance | C10: 470934 | D10: 475421 | E10: 475421 | F10: 39244.52 | G10: 235467.12 | H10: 217622.5 | I10: =G10-H10 -> 17844.62 | J10: =IF(I10=0,"",I10/H10) -> 0.08199804708 | K10: 475421
A11: Cellphone Allowance | C11: 136374 | D11: 160684 | E11: 160684 | F11: 13049.87 | G11: 61276.33 | H11: 64313 | I11: =G11-H11 -> -3036.67 | J11: =IF(I11=0,"",I11/H11) -> -0.04721704788 | K11: 160684
A12: Housing Allowances | I12: =G12-H12 -> 0 | J12: =IF(I12=0,"",I12/H12) -> 
A13: Other benefits and allowances | I13: 0
A14: Sub Total - Councillors | C14: =SUM(C7:C13) -> 2020110 | D14: 2062366 | E14: 2062366 | F14: 170027.93 | G14: 1003144.69 | H14: 970443 | I14: 32701.69 | J14: 0.0336976927 | K14: 2062366
A15: % increase | B15: 4 | D15: =IF(D14=0,"",(D14/C14)-1) -> 0.0209176728 | E15: =IF(E14=0,"",(E14/C14)-1) -> 0.0209176728 | K15: =IF(K14=0,"",(K14/C14)-1) -> 0.0209176728
A17: Senior Managers of the Municipality | B17: 3
A18: Basic Salaries and Wages | C18: 2432573 | D18: 2911688 | E18: 2911688 | F18: 318345 | G18: 1399779 | H18: 1579254 | I18: =G18-H18 -> -179475 | J18: =IF(I18=0,"",I18/H18) -> -0.1136454301 | K18: 2911688
A19: Pension and UIF Contributions | C19: 361863 | D19: 417508 | E19: 417508 | F19: 27688.98 | G19: 161672.84 | H19: 208752 | I19: -47079.16 | J19: -0.2255267494 | K19: 417508
A20: Medical Aid Contributions | C20: 117569 | D20: 139075 | E20: 139075 | F20: 10236.68 | G20: 61420.08 | H20: 69534 | I20: -8113.92 | J20: -0.1166899646 | K20: 139075
A21: Overtime | C21: 0 | D21: 0 | E21: 0 | H21: 0 | I21: 0 | K21: 0
A22: Performance Bonus | C22: 146210 | D22: 202543 | E22: 202543 | H22: 202543 | I22: =G22-H22 -> -202543 | J22: =IF(I22=0,"",I22/H22) -> -1 | K22: 202543
A23: Motor Vehicle Allowance | C23: 440100 | D23: 465627 | E23: 465627 | F23: 39243 | G23: 230322 | H23: 232812 | I23: =G23-H23 -> -2490 | J23: =IF(I23=0,"",I23/H23) -> -0.01069532498 | K23: 465627
A24: Cellphone Allowance | C24: 0 | D24: 0 | E24: 0 | H24: 0 | I24: =G24-H24 -> 0 | J24: =IF(I24=0,"",I24/H24) ->  | K24: 0
A25: Housing Allowances | C25: 0 | D25: 0 | E25: 0 | H25: 0 | I25: =G25-H25 -> 0 | J25: =IF(I25=0,"",I25/H25) ->  | K25: 0
A26: Other benefits and allowances | C26: 325 | D26: 29134.00326 | E26: 29134.00326 | F26: 21.75 | G26: 145 | H26: 14562 | I26: -14417 | J26: -0.9900425766 | K26: 29134.00326
A27: Payments in lieu of leave | H27: 0 | I27: 0
A28: Long service awards | F28: 65532.72 | H28: 0 | I28: 0
A29: Post-retirement benefit obligations | B29: 2 | H29: 0 | I29: 0
A30: Sub Total - Senior Managers of Municipality | C30: =SUM(C18:C29) -> 3498640 | D30: 4165575.003 | E30: 4165575.003 | F30: =SUM(F18:F29) -> 461068.13 | G30: =SUM(G18:G29) -> 1853338.92 | H30: =SUM(H18:H29) -> 2307457 | I30: -454118.08 | J30: =IF(I30=0,"",I30/H30) -> -0.1968045688 | K30: 4165575.003
A31: % increase | B31: 4 | D31: =IF(D30=0,"",(D30/C30)-1) -> 0.1906269303 | E31: =IF(E30=0,"",(E30/C30)-1) -> 0.1906269303 | K31: =IF(K30=0,"",(K30/C30)-1) -> 0.1906269303
A33: Other Municipal Staff
A34: Basic Salaries and Wages | C34: 10072847 | D34: 9113662 | E34: 9113662 | F34: 959510.26 | G34: 4938211.22 | H34: 3996905 | I34: =G34-H34 -> 941306.22 | J34: =IF(I34=0,"",I34/H34) -> 0.2355087799 | K34: 9113662
A35: Pension and UIF Contributions | C35: 1248225 | D35: 1504862 | E35: 1504862 | F35: 134920.22 | G35: 725249.81 | H35: 752431 | I35: -27181.19 | J35: -0.03612449514 | K35: 1504862
A36: Medical Aid Contributions | C36: 322902 | D36: 485591 | E36: 485591 | F36: 23059.24 | G36: 142116.84 | H36: 242795.5 | I36: -100678.66 | J36: -0.4146644398 | K36: 485591
A37: Overtime | C37: 495696 | D37: 300000 | E37: 300000 | F37: 84421.92 | G37: 319708.64 | H37: 150000 | I37: 169708.64 | J37: 1.131390933 | K37: 300000
A38: Performance Bonus | C38: 0 | D38: 0 | E38: 0 | H38: 0 | I38: 0 | K38: 0
A39: Motor Vehicle Allowance | C39: 73240 | D39: 77488 | E39: 77488 | F39: 6531 | G39: 38330.66 | H39: 38744 | I39: =G39-H39 -> -413.34 | J39: =IF(I39=0,"",I39/H39) -> -0.0106684906 | K39: 77488
A40: Cellphone Allowance | C40: 0 | D40: 0 | E40: 0 | H40: 0 | I40: =G40-H40 -> 0 | J40: =IF(I40=0,"",I40/H40) ->  | K40: 0
A41: Housing Allowances | C41: 10681 | D41: 8640 | E41: 8640 | F41: 11975 | G41: 43281.66 | H41: 4320 | I41: =G41-H41 -> 38961.66 | J41: =IF(I41=0,"",I41/H41) -> 9.018902778 | K41: 8640
A42: Other benefits and allowances | C42: 92839 | D42: 506102.3567 | E42: 506102.3567 | F42: 9309.2 | G42: 55030.67 | H42: 253051.1784 | I42: -198020.5084 | J42: -0.7825314612 | K42: 506102.3567
A43: Payments in lieu of leave | C43: 0 | D43: 0 | E43: 0 | H43: 0 | I43: 0 | K43: 0
A44: Long service awards | C44: 32386 | D44: 0 | E44: 0 | F44: 0 | G44: 27330.24 | H44: 0 | I44: 27330.24 | K44: 0
A45: Post-retirement benefit obligations | B45: 2 | C45: 405510 | D45: 719216 | E45: 719216 | G45: 0 | H45: 0 | I45: 0 | K45: 719216
A46: Sub Total - Other Municipal Staff | C46: =SUM(C34:C45) -> 12754326 | D46: 12715561.36 | E46: 12715561.36 | F46: =SUM(F34:F45) -> 1229726.84 | G46: =SUM(G34:G45) -> 6289259.74 | H46: =SUM(H34:H45) -> 5438246.678 | I46: 851013.0616 | J46: =IF(I46=0,"",I46/H46) -> 0.1564866605 | K46: 12715561.36
A47: % increase | B47: 4 | D47: =IF(D46=0,"",(D46/C46)-1) -> -0.00303933295 | E47: =IF(E46=0,"",(E46/C46)-1) -> -0.00303933295 | K47: =IF(K46=0,"",(K46/C46)-1) -> -0.00303933295
A49: Total Parent Municipality | C49: =C14+C30+C46 -> 18273076 | D49: =D14+D30+D46 -> 18943502.36 | E49: 18943502.36 | F49: 1860822.9 | G49: 9145743.35 | H49: 8716146.678 | I49: =G49-H49 -> 429596.6716 | J49: =IF(I49=0,"",I49/H49) -> 0.04928745322 | K49: 18943502.36
D50: =IF(D49=0,"",(D49/C49)-1) -> 0.0366892996 | E50: =IF(E49=0,"",(E49/C49)-1) -> 0.0366892996 | K50: =IF(K49=0,"",(K49/C49)-1) -> 0.0366892996
A51: Unpaid salary, allowances & benefits in arrears:
A53: Board Members of Entities
A54: Basic Salaries and Wages | I54: =G54-H54 -> 0 | J54: =IF(I54=0,"",I54/H54) -> 
A55: Pension and UIF Contributions | I55: 0
A56: Medical Aid Contributions | I56: 0
A57: Overtime | I57: =G57-H57 -> 0 | J57: =IF(I57=0,"",I57/H57) -> 
A58: Performance Bonus | I58: =G58-H58 -> 0 | J58: =IF(I58=0,"",I58/H58) -> 
A59: Motor Vehicle Allowance | I59: =G59-H59 -> 0 | J59: =IF(I59=0,"",I59/H59) -> 
A60: Cellphone Allowance | I60: =G60-H60 -> 0 | J60: =IF(I60=0,"",I60/H60) -> 
A61: Housing Allowances | I61: =G61-H61 -> 0 | J61: =IF(I61=0,"",I61/H61) -> 
A62: Other benefits and allowances | I62: 0
A63: Board Fees | I63: =G63-H63 -> 0 | J63: =IF(I63=0,"",I63/H63) -> 
A64: Payments in lieu of leave | I64: 0
A65: Long service awards | I65: 0
A66: Post-retirement benefit obligations | I66: 0
A67: Sub Total - Board Members of Entities | B67: 2 | C67: =SUM(C54:C66) -> 0 | D67: 0 | E67: 0 | F67: =SUM(F54:F66) -> 0 | G67: =SUM(G54:G66) -> 0 | H67: =SUM(H54:H66) -> 0 | I67: 0 | J67: =IF(I67=0,"",I67/H67) ->  | K67: 0
A68: % increase | B68: 4 | D68: =IF(D67=0,"",(D67/C67)-1) ->  | E68: =IF(E67=0,"",(E67/C67)-1) ->  | K68: =IF(K67=0,"",(K67/C67)-1) -> 
A70: Senior Managers of Entities
A71: Basic Salaries and Wages | I71: =G71-H71 -> 0 | J71: =IF(I71=0,"",I71/H71) -> 
A72: Pension and UIF Contributions | I72: 0
A73: Medical Aid Contributions | I73: 0
A74: Overtime | I74: 0
A75: Performance Bonus | I75: =G75-H75 -> 0 | J75: =IF(I75=0,"",I75/H75) -> 
A76: Motor Vehicle Allowance | I76: =G76-H76 -> 0 | J76: =IF(I76=0,"",I76/H76) -> 
A77: Cellphone Allowance | I77: =G77-H77 -> 0 | J77: =IF(I77=0,"",I77/H77) -> 
A78: Housing Allowances | I78: =G78-H78 -> 0 | J78: =IF(I78=0,"",I78/H78) -> 
A79: Other benefits and allowances | I79: 0
A80: Payments in lieu of leave | I80: 0
A81: Long service awards | I81: 0
A82: Post-retirement benefit obligations | B82: 2 | I82: 0
A83: Sub Total - Senior Managers of Entities | C83: =SUM(C71:C82) -> 0 | D83: 0 | E83: 0 | F83: =SUM(F71:F82) -> 0 | G83: =SUM(G71:G82) -> 0 | H83: =SUM(H71:H82) -> 0 | I83: 0 | J83: =IF(I83=0,"",I83/H83) ->  | K83: 0
A84: % increase | B84: 4 | D84: =IF(D83=0,"",(D83/C83)-1) ->  | E84: =IF(E83=0,"",(E83/C83)-1) ->  | K84: =IF(K83=0,"",(K83/C83)-1) -> 
A86: Other Staff of Entities
A87: Basic Salaries and Wages | I87: =G87-H87 -> 0 | J87: =IF(I87=0,"",I87/H87) -> 
A88: Pension and UIF Contributions | I88: 0
A89: Medical Aid Contributions | I89: =G89-H89 -> 0 | J89: =IF(I89=0,"",I89/H89) -> 
A90: Overtime | I90: =G90-H90 -> 0 | J90: =IF(I90=0,"",I90/H90) -> 
A91: Performance Bonus | I91: =G91-H91 -> 0 | J91: =IF(I91=0,"",I91/H91) -> 
A92: Motor Vehicle Allowance | I92: =G92-H92 -> 0 | J92: =IF(I92=0,"",I92/H92) -> 
A93: Cellphone Allowance | I93: 0
A94: Housing Allowances | I94: 0
A95: Other benefits and allowances | I95: 0
A96: Payments in lieu of leave | I96: 0
A97: Long service awards | I97: 0
A98: Post-retirement benefit obligations | I98: 0
A99: Sub Total - Other Staff of Entities | C99: =SUM(C87:C98) -> 0 | D99: 0 | E99: 0 | F99: 0 | G99: 0 | H99: 0 | I99: 0 | J99: =IF(I99=0,"",I99/H99) ->  | K99: =SUM(K87:K98) -> 0
A100: % increase | B100: 4 | D100: =IF(D99=0,"",(D99/C99)-1) ->  | E100: =IF(E99=0,"",(E99/C99)-1) ->  | K100: =IF(K99=0,"",(K99/C99)-1) -> 
A102: Total Municipal Entities | C102: =C67+C83+C99 -> 0 | D102: 0 | E102: 0 | F102: 0 | G102: 0 | H102: 0 | I102: =G102-H102 -> 0 | J102: =IF(I102=0,"",I102/H102) ->  | K102: =K67+K83+K99 -> 0
A104: TOTAL SALARY, ALLOWANCES & BENEFITS | C104: =C49+C102 -> 18273076 | D104: 18943502.36 | E104: 18943502.36 | F104: 1860822.9 | G104: 9145743.35 | H104: 8716146.678 | I104: =G104-H104 -> 429596.6716 | J104: =IF(I104=0,"",I104/H104) -> 0.04928745322 | K104: =K49+K102 -> 18943502.36
A105: % increase | B105: 4 | D105: =IF(D104=0,"",(D104/C104)-1) -> 0.0366892996 | E105: =IF(E104=0,"",(E104/C104)-1) -> 0.0366892996 | K105: =IF(K104=0,"",(K104/C104)-1) -> 0.0366892996
A106: TOTAL MANAGERS AND STAFF | C106: =C30+C46+C83+C99 -> 16252966 | D106: 16881136.36 | E106: 16881136.36 | F106: 1690794.97 | G106: 8142598.66 | H106: 7745703.678 | I106: 396894.9816 | J106: =IF(I106=0,"",I106/H106) -> 0.05124066168 | K106: =K30+K46+K83+K99 -> 16881136.36
A107: =head27a -> References
A108: 1. Include 'Loans and advances' where applicable if any reportable amounts until phased compliance with s164 of MFMA achieved
A109: 2. If benefits in kind are provided (e.g. provision of living quarters) the full market value must be shown as the cost to the municipality
A110: 3. s57 of the Systems Act
A111: 4. B/A, C/A, D/A
A112: Column Definitions:
A113: A. Audited actual 2005/06 (audited financial statements). If audited amounts unavailable, unaudited amounts must be provided with a note stating these are unaudited
A114: B. The original budget approved by council for the 2006/07 budget year.
A115: C. The budget for 2006/07 budget year as adjusted by council resolution in terms of section 28 of the MFMA.
A116: D. An estimate of final actual amounts (pre audit - 2006/07 budget year) at the time of preparing the budget for the 2007/08 budget year. This may differ from C.

Sheet SC9
A1: =muni& " - "&S71O& " - "&Head57 -> NC074 Kareeberg - Supporting Table SC9 Monthly Budget Statement - actuals and revised targets for cash receipts - Mid-Year Assessment
A2: =desc -> Description | B2: =head27 -> Ref | C2: =Head2 -> Budget Year 2015/16 | O2: ='Template names'!B5 -> 2015/16 Medium Term Revenue & Expenditure Framework
C3: July | D3: August | E3: Sept | F3: October | G3: Nov | H3: Dec | I3: January | J3: Feb | K3: March | L3: April | M3: May | N3: June | O3: =Head9 -> Budget Year 2015/16 | P3: =Head10 -> Budget Year +1 2016/17 | Q3: =Head11 -> Budget Year +2 2017/18
A4: R thousands | B4: 1 | C4: Outcome | D4: Outcome | E4: Outcome | F4: Outcome | G4: Outcome | H4: Outcome | I4: Budget | J4: Budget | K4: Budget | L4: Budget | M4: Budget | N4: Budget
A5: Cash Receipts By Source
A6: Property rates | C6: 257703.19 | D6: 627419.17 | E6: 1426045.9 | F6: 366182.97 | G6: 323026.17 | H6: 179559.4 | I6: 140982 | J6: 130157 | K6: 87506 | L6: 74179 | M6: 76858 | N6: =O6-SUM(C6:M6) -> -511770.8 | O6: 3177848 | P6: 3532666 | Q6: 3708440
A7: Property rates - penalties & collection charges | C7: 3258.9 | D7: 9583.55 | E7: 12377.83 | F7: 8058.82 | G7: 7013.34 | H7: 0 | I7: 0 | J7: 0 | K7: 0 | L7: 0 | M7: 0 | N7: -40292.44 | O7: 0 | P7: 0 | Q7: 0
A8: Service charges - electricity revenue | C8: 360340.33 | D8: 308173.24 | E8: 360668.37 | F8: 919350.64 | G8: 383048.32 | H8: 318422.1 | I8: 472393 | J8: 657426 | K8: 723554 | L8: 545650 | M8: 536058 | N8: 2575615 | O8: 8160699 | P8: 8991057 | Q8: 9795030
A9: Service charges - water revenue | C9: 100191.62 | D9: 75594.84 | E9: 113573.76 | G9: 127724.73 | H9: 102804.87 | I9: 700543 | J9: 233045 | K9: 268737 | L9: 338270 | M9: 397763 | N9: 1837743.18 | O9: 4295991 | P9: 4292058 | Q9: 4873971
A10: Service charges - sanitation revenue | C10: 163561.82 | D10: 123407.81 | E10: 185408.03 | G10: 208509.33 | H10: 167827.91 | I10: 194735 | J10: 175403 | K10: 156945 | L10: 491714 | M10: 301970 | N10: 391307.1 | O10: 2560789 | P10: 2714408 | Q10: 2985870
A11: Service charges - refuse | C11: 263159.23 | D11: 198554.3 | E11: 298308.2 | G11: 335476.54 | H11: 270023.06 | I11: 324624 | J11: 272906 | K11: 271484 | L11: 511067 | M11: 381045 | N11: 441897.67 | O11: 3568545 | P11: 3825707 | Q11: 4081368
A12: Service charges - other | H12: 0 | I12: 0 | J12: 0 | K12: 0 | L12: 0 | M12: 0 | N12: 0 | O12: 0 | P12: 0 | Q12: 0
A13: Rental of facilities and equipment | C13: 17921.27 | D13: 103226.39 | E13: 36492.7 | F13: 23904.32 | G13: 18629.37 | H13: 25761.68 | I13: 29878 | J13: 5806 | K13: 3336 | L13: 22868 | M13: 13220 | N13: -53417.73 | O13: 247626 | P13: 356100 | Q13: 373905
A14: Interest earned - external investments | C14: 11248.33 | D14: 74189.86 | E14: 69281.42 | F14: 66380.41 | G14: 64425 | H14: 294117.91 | I14: 137147 | J14: 82306 | K14: 76343 | L14: 131832 | M14: 85761 | N14: 74268.07 | O14: 1167300 | P14: 1361850 | Q14: 1429943
A15: Interest earned - outstanding debtors | C15: 196.54 | D15: 238 | E15: 187.76 | F15: 185.77 | G15: 183.76 | H15: 181.75 | I15: 272 | J15: 270 | K15: 269 | L15: 266 | M15: 264 | N15: 785.42 | O15: 3300 | P15: 3465 | Q15: 3638
A16: Dividends received | C16: 0 | H16: 0 | I16: 0 | J16: 0 | K16: 0 | L16: 0 | M16: 0 | N16: 0 | O16: 0 | P16: 0 | Q16: 0
A17: Fines | C17: 15.2 | D17: 1725 | E17: 1309.8 | F17: 941 | G17: 28 | H17: 674.8 | I17: 16 | J17: 2143 | K17: 3018 | L17: 346 | M17: 1098 | N17: 915.2 | O17: 12230 | P17: 12842 | Q17: 13484
A18: Licences and permits | C18: 651 | D18: 873 | E18: 525 | F18: 222 | G18: 318 | H18: 318 | I18: 489 | J18: 886 | K18: 615 | L18: 552 | M18: 417 | N18: 1554 | O18: 7420 | P18: 7791 | Q18: 8181
A19: Agency services | C19: 28064.01 | D19: 6895.14 | E19: 12134.02 | F19: 9463.48 | G19: 11039.05 | H19: 10482.72 | I19: 7723 | J19: 51409 | K19: 5538 | L19: 2349 | M19: 4728 | N19: -46492.42 | O19: 103333 | P19: 101850 | Q19: 102760
A20: Transfer receipts - operating | C20: 10239000 | D20: 1054500 | F20: 0 | G20: 6185156.75 | H20: 377872.7 | I20: 0 | J20: 0 | K20: 5032000 | L20: 0 | M20: 0 | N20: 171470.55 | O20: 23060000 | P20: 22956000 | Q20: 23611000
A21: Other revenue | C21: 106339.97 | D21: 128988.8 | E21: 38758.34 | F21: 97610.08 | G21: 84796.66 | H21: 69289.65 | I21: 83857 | J21: 63230 | K21: 161240 | L21: 8515 | M21: 186956 | N21: 7396217.5 | O21: 8425799 | P21: 9970013 | Q21: 11272288
A22: Cash Receipts by Source | C22: =SUM(C6:C21) -> 11551651.41 | D22: 2713369.1 | E22: 2555071.13 | F22: 1492299.49 | G22: 7749375.02 | H22: 1817336.55 | I22: 2092659 | J22: 1674987 | K22: 6790585 | L22: 2127608 | M22: 1986138 | N22: 12239800.3 | O22: 54790880 | P22: 58125807 | Q22: 62259878
N23: =O23-SUM(C23:M23) -> 0
A24: Other Cash Flows by Source | N24: 0
A25: Transfer receipts - capital | C25: 2000000 | D25: 0 | F25: 2964000 | G25: 0 | H25: 0 | I25: 0 | J25: 0 | K25: 0 | L25: 0 | M25: 0 | N25: 2964000 | O25: 7928000 | P25: 8054000 | Q25: 8244000
A26: Contributions & Contributed assets | D26: 0 | G26: 0 | H26: 0 | I26: 0 | J26: 0 | K26: 0 | L26: 0 | M26: 0 | N26: 0 | O26: 0 | P26: 0 | Q26: 0
A27: Proceeds on disposal of PPE | D27: 0 | G27: 0 | H27: 0 | I27: 0 | J27: 0 | K27: 0 | L27: 0 | M27: 0 | N27: 0 | O27: 0 | P27: 0 | Q27: 0
A28: Short term loans | D28: 0 | G28: 0 | H28: 0 | I28: 0 | J28: 0 | K28: 0 | L28: 0 | M28: 0 | N28: 0 | O28: 0 | P28: 0 | Q28: 0
A29: Borrowing long term/refinancing | C29: 0 | D29: 0 | G29: 0 | H29: 0 | I29: 0 | J29: 0 | K29: 0 | L29: 0 | M29: 0 | N29: 0 | O29: 0 | P29: 0 | Q29: 0
A30: Increase in consumer deposits | C30: 3300 | D30: 1100 | E30: 1100 | F30: 3300 | G30: 1100 | H30: 2200 | I30: 471 | J30: 941 | K30: 1176 | L30: 471 | M30: 941 | N30: -6100 | O30: 10000 | P30: 10000 | Q30: 10000
A31: Receipt of non-current debtors | C31: 834.14 | D31: 1799.49 | E31: 600.29 | F31: 602.28 | G31: 604.29 | H31: 606.3 | I31: 756 | J31: 757 | K31: 759 | L31: 762 | M31: 765 | N31: -355.79 | O31: 8490 | P31: 7532 | Q31: 7900
A32: Receipt of non-current receivables | C32: 2152408.54 | D32: 2700516.73 | E32: 946836.47 | F32: 2620200.33 | G32: 3960793.31 | H32: 3781576.45 | I32: 0 | J32: 0 | K32: 0 | L32: 0 | M32: 0 | N32: -16162331.83 | O32: 0 | P32: 0 | Q32: 0
A33: Change in non-current investments | C33: 8936899.65 | D33: -891364.36 | E33: -171357.48 | F33: 923726.4 | G33: 3641228.85 | H33: -3237904.25 | I33: 0 | J33: 0 | K33: 0 | L33: 0 | M33: 0 | N33: -9201228.81 | O33: 0 | P33: 0 | Q33: 0
A34: Total Cash Receipts by Source | C34: =SUM(C22:C33) -> 24645093.74 | D34: 4525420.96 | E34: 3332250.41 | F34: 8004128.5 | G34: 15353101.47 | H34: 2363815.05 | I34: 2093886 | J34: 1676685 | K34: 6792520 | L34: 2128841 | M34: 1987844 | N34: -10166216.13 | O34: 62737370 | P34: 66197339 | Q34: 70521778
N35: =O35-SUM(C35:M35) -> 0
A36: Cash Payments by Type | N36: 0
A37: Employee related costs | C37: 1207266.47 | D37: 1169912.44 | E37: 1247283.37 | F37: 1527355.98 | G37: 1302178.43 | H37: 1690794.97 | I37: 1394732 | J37: 1406936 | K37: 1485629 | L37: 1085435 | M37: 1341702 | N37: 2021910.34 | O37: 16881136 | P37: 18042310 | Q37: 18750625
A38: Remuneration of councillors | C38: 156978.06 | D38: 166633.43 | E38: 170027.92 | F38: 166614.09 | G38: 166549.92 | H38: 170027.93 | I38: 168570 | J38: 164818 | K38: 233389 | L38: 170678 | M38: 173793 | N38: 154286.65 | O38: 2062366 | P38: 2192532 | Q38: 2331151
A39: Interest paid | D39: 0 | F39: 0 | H39: 0 | I39: 0 | J39: 0 | K39: 0 | L39: 0 | M39: 0 | N39: 831014 | O39: 831014 | P39: 958587 | Q39: 1098990
A40: Bulk purchases - Electricity | C40: 677762.61 | D40: 1105578.7 | E40: 827246.72 | F40: 665250.24 | G40: 702834.68 | H40: 717323.64 | I40: 540034 | J40: 760355 | K40: 627239 | L40: 610178 | M40: 652529 | N40: 1811669.41 | O40: 9698001 | P40: 10170414 | Q40: 11219505
A41: Bulk purchases - Water & Sewer | D41: 0 | F41: 0 | H41: 0 | I41: 0 | J41: 0 | K41: 0 | L41: 0 | M41: 0 | N41: 0 | O41: 0 | P41: 0 | Q41: 0
A42: Other materials | C42: 15841.96 | D42: 128372.4 | E42: 79529.52 | F42: 131031.15 | G42: 306345.89 | H42: 99960.52 | I42: 71808 | J42: 54914 | K42: 49707 | L42: 35130 | M42: 27638 | N42: -531178.44 | O42: 469100 | P42: 492706 | Q42: 713719
A43: Contracted services | C43: 316912.04 | D43: 40804.45 | E43: 53091.61 | F43: 120271.03 | G43: 49184.85 | H43: 38061.85 | I43: 78972 | J43: 60392 | K43: 54666 | L43: 38635 | M43: 30395 | N43: -365485.83 | O43: 515900 | P43: 546505 | Q43: 582645
A44: Grants and subsidies paid - other municipalities | D44: 0 | F44: 0 | G44: 0 | H44: 0 | I44: 0 | J44: 0 | K44: 0 | L44: 0 | M44: 0 | N44: 0 | O44: 0 | P44: 0 | Q44: 0
A45: Grants and subsidies paid - other | C45: 1834872.48 | D45: 52104.85 | E45: 75193.57 | F45: 1746645.8 | G45: 64938.22 | H45: 355336.42 | I45: 0 | J45: 0 | K45: 3101117.333 | L45: 0 | M45: 0 | N45: 2073143.327 | O45: 9303352 | P45: 10420695 | Q45: 11178467
A46: General expenses | C46: 1029467.59 | D46: 249576.37 | E46: 398646.91 | F46: 586892.85 | G46: 941437.6 | H46: 1014710.9 | I46: 144281 | J46: 122319 | K46: 187037 | L46: 88439 | M46: 128580 | N46: 7743701.78 | O46: 12635090 | P46: 12240690 | Q46: 13040730
A47: Cash Payments by Type | B47: =SUM(B37:B46) -> 0 | C47: =SUM(C37:C46) -> 5239101.21 | D47: =SUM(D37:D46) -> 2912982.64 | E47: 2851019.62 | F47: 4944061.14 | G47: 3533469.59 | H47: 4086216.23 | I47: 2398397 | J47: 2569734 | K47: 5738784.333 | L47: 2028495 | M47: 2354637 | N47: 13739061.24 | O47: 52395959 | P47: 55064439 | Q47: 58915832
N48: =O48-SUM(C48:M48) -> 0
A49: Other Cash Flows/Payments by Type
A50: Capital assets | C50: 828202.24 | D50: 589693.91 | E50: 313879.96 | F50: 509649.55 | G50: 732399.6 | H50: 349484.17 | N50: =O50-SUM(C50:M50) -> 4604690.57 | O50: 7928000 | P50: 8054000 | Q50: 8244000
A51: Repayment of borrowing | D51: 0 | F51: 0 | G51: 0 | H51: 0 | N51: =O51-SUM(C51:M51) -> 0
A52: Other Cash Flows/Payments | C52: 9126012.82 | D52: 1717228.96 | E52: 749714.86 | F52: 1994652.2 | G52: 7336468.37 | H52: 992382.52 | N52: =O52-SUM(C52:M52) -> -21916459.73
A53: Total Cash Payments by Type | B53: =SUM(B47:B52) -> 0 | C53: 15193316.27 | D53: 5219905.51 | E53: 3914614.44 | F53: 7448362.89 | G53: 11602337.56 | H53: 5428082.92 | I53: 2398397 | J53: 2569734 | K53: 5738784.333 | L53: 2028495 | M53: 2354637 | N53: -3572707.923 | O53: 60323959 | P53: 63118439 | Q53: 67159832
N54: =O54-SUM(C54:M54) -> 0
A55: NET INCREASE/(DECREASE) IN CASH HELD | B55: =B34-B53 -> 0 | C55: 9451777.47 | D55: -694484.55 | E55: -582364.03 | F55: 555765.61 | G55: 3750763.91 | H55: -3064267.87 | I55: -304511 | J55: -893049 | K55: 1053735.667 | L55: 100346 | M55: -366793 | N55: -6593508.207 | O55: 2413411 | P55: 3078900 | Q55: 3361946
A56: Cash/cash equivalents at the month/year beginning: | C56: 22376445 | D56: =C57 -> 31828222.47 | E56: =D57 -> 31133737.92 | F56: 30551373.89 | G56: 31107139.5 | H56: 34857903.41 | I56: 31793635.54 | J56: 31489124.54 | K56: 30596075.54 | L56: 31649811.21 | M56: 31750157.21 | N56: 31383364.21 | O56: =C56 -> 22376445 | P56: =O57 -> 24789856 | Q56: =P57 -> 27868756
A57: Cash/cash equivalents at the month/year end: | C57: =C55+C56 -> 31828222.47 | D57: =D55+D56 -> 31133737.92 | E57: =E55+E56 -> 30551373.89 | F57: 31107139.5 | G57: 34857903.41 | H57: 31793635.54 | I57: 31489124.54 | J57: 30596075.54 | K57: 31649811.21 | L57: 31750157.21 | M57: 31383364.21 | N57: 24789856 | O57: =O55+O56 -> 24789856 | P57: =P55+P56 -> 27868756 | Q57: =Q55+Q56 -> 31230702
A58: =head27a -> References
A59: 1. Replace 'budget' heading with adjusted budget, or 'outcome' only for month/s complete
A60: 2. Total of monthly amounts must always agree to the approved or adjusted budget
A61: 3. Amend 'cash-at-beginning' when prior year actual known (as part of the adjustments budget)
E66: =E47+E65 -> 2851019.62 | F66: 4944061.14 | G66: 3533469.59 | H66: 4086216.23 | I66: 2398397 | J66: 2569734 | K66: 5738784.333 | L66: 2028495 | N66: =N47+N65 -> 13739061.24 | O66: 52395959 | P66: 55064439
E67: =E55-E65 -> -582364.03 | F67: 555765.61 | G67: 3750763.91 | H67: -3064267.87 | I67: -304511 | J67: -893049 | K67: 1053735.667 | L67: 100346 | M67: =M55-M65 -> -366793 | N67: =N55-N65 -> -6593508.207 | O67: 2413411 | P67: 3078900

Sheet SC10
A1: =muni& " - "&S71P& " - "&Head57 -> NC074 Kareeberg - NOT REQUIRED - municipality does not have entities or this is the parent municipality's budget - Mid-Year Assessment
A2: =desc -> Description | B2: =head27 -> Ref | C2: =Head1 -> 2014/15 | D2: =Head2 -> Budget Year 2015/16
C3: =Head5 -> Audited Outcome | D3: =Head6 -> Original Budget | E3: =Head7 -> Adjusted Budget | F3: =Head38 -> Monthly actual | G3: =Head39 -> YearTD actual | H3: =Head40 -> YearTD budget | I3: =Head41 -> YTD variance | J3: =Head41 -> YTD variance | K3: =Head8 -> Full Year Forecast
A4: R thousands | B4: 1 | J4: %
A5: ='C4-FinPerf RE'!A5 -> Revenue By Source
A6: ='C4-FinPerf RE'!A6 -> Property rates | I6: =G6-H6 -> 0 | J6: =IF(I6=0,"",I6/H6) -> 
A7: ='C4-FinPerf RE'!A7 -> Property rates - penalties & collection charges | I7: 0 | J7: =IF(I7=0,"",I7/H7) -> 
A8: ='C4-FinPerf RE'!A8 -> Service charges - electricity revenue | I8: 0
A9: ='C4-FinPerf RE'!A9 -> Service charges - water revenue | I9: 0
A10: ='C4-FinPerf RE'!A10 -> Service charges - sanitation revenue | I10: 0
A11: ='C4-FinPerf RE'!A11 -> Service charges - refuse revenue | I11: 0
A12: ='C4-FinPerf RE'!A12 -> Service charges - other | I12: 0
A13: ='C4-FinPerf RE'!A13 -> Rental of facilities and equipment | I13: 0
A14: ='C4-FinPerf RE'!A14 -> Interest earned - external investments | I14: 0
A15: ='C4-FinPerf RE'!A15 -> Interest earned - outstanding debtors | I15: 0
A16: ='C4-FinPerf RE'!A16 -> Dividends received | I16: 0
A17: ='C4-FinPerf RE'!A17 -> Fines | I17: 0
A18: ='C4-FinPerf RE'!A18 -> Licences and permits | I18: 0
A19: ='C4-FinPerf RE'!A19 -> Agency services | I19: 0
A20: ='C4-FinPerf RE'!A20 -> Transfers recognised - operational | I20: 0
A21: ='C4-FinPerf RE'!A21 -> Other revenue | I21: 0
A22: ='C4-FinPerf RE'!A22 -> Gains on disposal of PPE | I22: 0
A23: Total Revenue (excluding capital transfers and contributions) | C23: =SUM(C6:C22) -> 0 | D23: 0 | E23: 0 | F23: 0 | G23: 0 | H23: 0 | I23: =G23-H23 -> 0 | K23: =SUM(K6:K22) -> 0
A25: Expenditure By Type
A26: ='C4-FinPerf RE'!A26 -> Employee related costs | I26: =G26-H26 -> 0 | J26: =IF(I26=0,"",I26/H26) -> 
A27: ='C4-FinPerf RE'!A27 -> Remuneration of councillors | I27: 0
A28: ='C4-FinPerf RE'!A28 -> Debt impairment | I28: 0
A29: ='C4-FinPerf RE'!A29 -> Depreciation & asset impairment | I29: 0
A30: ='C4-FinPerf RE'!A30 -> Finance charges | I30: 0
A31: ='C4-FinPerf RE'!A31 -> Bulk purchases | I31: 0
A32: ='C4-FinPerf RE'!A32 -> Other materials | I32: 0
A33: ='C4-FinPerf RE'!A33 -> Contracted services | I33: 0
A34: ='C4-FinPerf RE'!A34 -> Transfers and grants | I34: 0
A35: ='C4-FinPerf RE'!A35 -> Other expenditure | I35: 0
A36: ='C4-FinPerf RE'!A36 -> Loss on disposal of PPE | I36: 0
A37: Total Expenditure | C37: =SUM(C26:C36) -> 0 | D37: 0 | E37: 0 | F37: 0 | G37: 0 | H37: 0 | I37: 0 | K37: =SUM(K26:K36) -> 0
I38: 0
A39: ='C4-FinPerf RE'!A39 -> Surplus/(Deficit) | C39: =C23-C37 -> 0 | D39: 0 | E39: 0 | F39: 0 | G39: 0 | H39: 0 | I39: 0 | K39: =K23-K37 -> 0
A40: ='C4-FinPerf RE'!A40 -> Transfers recognised - capital | I40: 0
A41: ='C4-FinPerf RE'!A41 -> Contributions recognised - capital | I41: 0
A42: ='C4-FinPerf RE'!A42 -> Contributed assets | I42: 0
A43: ='C4-FinPerf RE'!A43 -> Surplus/(Deficit) after capital transfers & contributions | C43: =C39+SUM(C40:C42) -> 0 | D43: =D39+SUM(D40:D42) -> 0 | E43: 0 | F43: 0 | G43: 0 | H43: 0 | I43: 0 | K43: 0
A44: ='C4-FinPerf RE'!A44 -> Taxation | I44: 0
A45: ='C4-FinPerf RE'!A45 -> Surplus/(Deficit) after taxation | C45: =C43-C44 -> 0 | D45: 0 | E45: 0 | F45: 0 | G45: 0 | H45: 0 | I45: 0 | K45: =K43-K44 -> 0
A46: =head27a -> References
A47: 1. Votes (consolidated) are revenue sources and expenditure type

Sheet SC11
A1: =muni& " - "&S71Q& " - "&Head57 -> NC074 Kareeberg - NOT REQUIRED - municipality does not have entities or this is the parent municipality's budget - Mid-Year Assessment
A2: =desc -> Description | B2: =head27 -> Ref | C2: =Head1 -> 2014/15 | D2: =Head2 -> Budget Year 2015/16
C3: =Head5 -> Audited Outcome | D3: =Head6 -> Original Budget | E3: =Head7 -> Adjusted Budget | F3: =Head38 -> Monthly actual | G3: =Head39 -> YearTD actual | H3: =Head40 -> YearTD budget | I3: =Head41 -> YTD variance | J3: =Head41 -> YTD variance | K3: =Head8 -> Full Year Forecast
A4: R thousands | J4: %
A5: Revenue By Municipal Entity
A6: Insert name of municipal entity | I6: =G6-H6 -> 0 | J6: =IF(I6=0,"",I6/H6) -> 
I7: 0 | J7: =IF(I7=0,"",I7/H7) -> 
I8: 0
I9: 0
I10: 0
I11: 0
I12: 0
I13: 0
I14: 0
I15: 0
A16: Total Operating Revenue | B16: 1 | C16: =SUM(C6:C15) -> 0 | D16: 0 | E16: 0 | F16: 0 | G16: 0 | H16: 0 | I16: 0 | K16: =SUM(K6:K15) -> 0
A18: Expenditure By Municipal Entity
A19: =A6 -> Insert name of municipal entity | I19: 0 | J19: =IF(I19=0,"",I19/H19) -> 
A20: =IF(A7="","",A7) ->  | I20: 0
A21: =IF(A8="","",A8) ->  | I21: 0
I22: 0
I23: 0
I24: 0
I25: 0
I26: 0
I27: 0
I28: 0
A29: Total Operating Expenditure | B29: 2 | C29: =SUM(C19:C28) -> 0 | D29: 0 | E29: 0 | F29: 0 | G29: 0 | H29: 0 | I29: 0 | K29: =SUM(K19:K28) -> 0
A31: =Head42 -> Surplus/ (Deficit) for the yr/period | C31: =C16-C29 -> 0 | D31: =D16-D29 -> 0 | E31: 0 | F31: 0 | G31: 0 | H31: 0 | I31: =I16+I29 -> 0 | K31: 0
A32: Capital Expenditure By Municipal Entity
A33: =$A$6 -> Insert name of municipal entity | I33: 0
A34: =IF(A7="","",A7) ->  | I34: 0
A35: =IF(A8="","",A8) ->  | I35: 0
I36: 0
I37: 0
I38: 0
I39: 0
I40: 0
I41: 0
A43: Total Capital Expenditure | B43: 3 | C43: =SUM(C32:C42) -> 0 | D43: =SUM(D32:D42) -> 0 | E43: 0 | F43: 0 | G43: 0 | H43: =SUM(H32:H42) -> 0 | I43: =G43-H43 -> 0 | K43: 0
A44: =head27a -> References
A45: 1. Must reconcile to the sum of all municipal entity monthly revenue reports
A46: 2. Must reconcile to the sum of all municipal entity monthly expenditure reports
A47: 3. YTD = Year to date; FAV - favourable variance or unfavourable variance
A48: 4. Material variances to be explained
A49: 5. Insert additional 'Adjustment' Budget column for each Adjustment made by an entity

Sheet SC12
A1: =muni& " - "&S71R& " - "&Head57 -> NC074 Kareeberg - Supporting Table SC12 Monthly Budget Statement - capital expenditure trend - Mid-Year Assessment
A2: Month | B2: =Head1 -> 2014/15 | C2: =Head2 -> Budget Year 2015/16
B3: =Head5 -> Audited Outcome | C3: =Head6 -> Original Budget | D3: =Head7 -> Adjusted Budget | E3: =Head38 -> Monthly actual | F3: =Head39 -> YearTD actual | G3: =Head40 -> YearTD budget | H3: =Head41 -> YTD variance | I3: =Head41 -> YTD variance | J3: % spend of Original Budget
A4: R thousands | I4: %
A5: Monthly expenditure performance trend
A6: July | B6: 1154.93 | C6: 3000000 | D6: 3000000 | E6: 828202.24 | F6: =IF(E6>0,E6,"") -> 828202.24 | G6: =IF(D6>0,D6,C6) -> 3000000 | H6: =IF(F6="",0,G6-F6) -> 2171797.76 | I6: =IF(F6="","",IF(H6=0,"",H6/G6)) -> 0.7239325867 | J6: =IF(F6="","",F6/$C$18) -> 0.1044654692
A7: August | B7: 1189.79 | E7: 627548.8 | F7: =IF(E7>0,E7+F6,"") -> 1455751.04 | G7: =IF(D7>0,D7+D6,C7+C6) -> 3000000 | H7: 1544248.96 | I7: 0.5147496533 | J7: 0.1836214733
A8: September | B8: 3300694.88 | E8: 313879.96 | F8: =IF(E8>0,E8+F7,"") -> 1769631 | G8: =IF(D8>0,D8+G7,C8+G7) -> 3000000 | H8: 1230369 | I8: 0.410123 | J8: 0.2232127901
A9: October | B9: 0.0001 | E9: =504436.19-10 -> 504426.19 | F9: 2274057.19 | G9: =IF(D9>0,D9+G8,C9+G8) -> 3000000 | H9: 725942.81 | I9: 0.2419809367 | J9: 0.286838697
A10: November | B10: 0.0001 | D10: 0 | E10: 732399.6 | F10: 3006456.79 | G10: 3000000 | H10: -6456.79 | I10: -0.002152263333 | J10: 0.3792200795
A11: December | B11: 692790.73 | C11: 4928000 | E11: 349484.17 | F11: 3355940.96 | G11: 7928000 | H11: 4572059.04 | I11: 0.5766976589 | J11: 0.4233023411
A12: January | B12: 8584.42 | G12: 7928000 | H12: 0
A13: February | B13: 21595.7 | G13: 7928000 | H13: 0
A14: March | B14: 261415.21 | D14: 0 | G14: 7928000 | H14: 0
A15: April | B15: 1083.32 | G15: 7928000 | H15: 0
A16: May | B16: 677.46 | G16: 7928000 | H16: 0
A17: June | B17: 5752551.35 | G17: 7928000 | H17: =IF(F17="",0,G17-F17) -> 0 | I17: =IF(F17="","",IF(H17=0,"",H17/G17)) ->  | J17: =IF(F17="","",F17/$C$18) -> 
A18: Total Capital expenditure | B18: =SUM(B6:B17) -> 10041737.79 | C18: =SUM(C6:C17) -> 7928000 | D18: =SUM(D6:D17) -> 3000000 | E18: =SUM(E6:E17) -> 3355940.96

Sheet SC13a
A1: =muni& " - "&S71Sa& " - "&Head57 -> NC074 Kareeberg - Supporting Table SC13a Monthly Budget Statement - capital expenditure on new assets by asset class - Mid-Year Assessment
A2: =desc -> Description | B2: =head27 -> Ref | C2: =Head1 -> 2014/15 | D2: =Head2 -> Budget Year 2015/16
C3: =Head5 -> Audited Outcome | D3: =Head6 -> Original Budget | E3: =Head7 -> Adjusted Budget | F3: =Head38 -> Monthly actual | G3: =Head39 -> YearTD actual | H3: =Head40 -> YearTD budget | I3: =Head41 -> YTD variance | J3: =Head41 -> YTD variance | K3: =Head8 -> Full Year Forecast
A4: R thousands | B4: 1 | J4: %
A5: Capital expenditure on new assets by Asset Class/Sub-class
A7: Infrastructure | C7: =C8+C11+C15+C19+C22 -> 2722413 | D7: 0 | E7: 0 | F7: 109635.22 | G7: 1342300.37 | H7: 0 | I7: =H7-G7 -> -1342300.37 | J7: =IF(I7=0,"",I7/H7) ->  | K7: =K8+K11+K15+K19+K22 -> 0
A8: Infrastructure - Road transport | C8: =SUM(C9:C10) -> 0 | D8: 0 | E8: 0 | F8: 0 | G8: 0 | H8: 0 | I8: 0 | K8: =SUM(K9:K10) -> 0
A9: Roads, Pavements & Bridges | I9: 0
A10: Storm water | I10: 0
A11: Infrastructure - Electricity | C11: =SUM(C12:C14) -> 0 | D11: 0 | E11: 0 | F11: 0 | G11: 0 | H11: 0 | I11: 0 | K11: =SUM(K12:K14) -> 0
A12: Generation | I12: 0
A13: Transmission & Reticulation | I13: 0
A14: Street Lighting | I14: 0
A15: Infrastructure - Water | C15: =SUM(C16:C18) -> 2706788 | D15: 0 | E15: 0 | F15: 109635.22 | G15: 1342300.37 | H15: 0 | I15: -1342300.37 | K15: =SUM(K16:K18) -> 0
A16: Dams & Reservoirs | C16: 2706788 | F16: 109635.22 | G16: 1342300.37 | I16: -1342300.37
A17: Water purification | I17: 0
A18: Reticulation | I18: 0
A19: Infrastructure - Sanitation | C19: =SUM(C20:C21) -> 15625 | D19: 0 | E19: 0 | F19: 0 | G19: 0 | H19: 0 | I19: 0 | K19: =SUM(K20:K21) -> 0
A20: Reticulation | C20: 15625 | I20: 0
A21: Sewerage purification | I21: 0
A22: Infrastructure - Other | C22: =SUM(C23:C26) -> 0 | D22: 0 | E22: 0 | F22: 0 | G22: 0 | H22: 0 | I22: 0 | K22: =SUM(K23:K26) -> 0
A23: Waste Management | I23: 0
A24: Transportation | I24: 0
A25: Gas | I25: 0
A26: Other | I26: 0
A28: Community | C28: =SUM(C29:C42) -> 0 | D28: 0 | E28: 0 | F28: 0 | G28: 0 | H28: 0 | I28: 0 | K28: =SUM(K29:K42) -> 0
A29: Parks & gardens | I29: 0
A30: Sportsfields & stadia | I30: 0
A31: Swimming pools | I31: 0
A32: Community halls | I32: 0
A33: Libraries | I33: 0
A34: Recreational facilities | I34: 0
A35: Fire, safety & emergency | I35: 0
A36: Security and policing | I36: 0
A37: Buses | I37: 0
A38: Clinics | I38: 0
A39: Museums & Art Galleries | I39: 0
A40: Cemeteries | I40: 0
A41: Social rental housing | I41: =H41-G41 -> 0 | J41: =IF(I41=0,"",I41/H41) -> 
A42: Other | I42: 0
A43: Heritage assets | C43: =SUM(C44:C45) -> 0 | D43: 0 | E43: 0 | F43: 0 | G43: 0 | H43: 0 | I43: 0 | K43: =SUM(K44:K45) -> 0
A44: Buildings | I44: 0
A45: Other | I45: 0
I46: 0
A47: Investment properties | C47: =SUM(C48:C49) -> 0 | D47: 0 | E47: 0 | F47: 0 | G47: 0 | H47: 0 | I47: 0 | K47: =SUM(K48:K49) -> 0
A48: Housing development | I48: 0
A49: Other | I49: 0
A50: Other assets | C50: =SUM(C51:C62) -> 36906 | D50: 0 | E50: 0 | F50: 787.54 | G50: 18780.6 | H50: 0 | I50: -18780.6 | K50: 0
A51: General vehicles | I51: 0
A52: Specialised vehicles | C52: =C78 -> 0 | D52: 0 | E52: 0 | F52: 0 | G52: 0 | H52: 0 | I52: 0 | K52: =K78 -> 0
A53: Plant & equipment | C53: 11123 | F53: 787.54 | G53: 3006.21 | I53: -3006.21
A54: Computers - hardware/equipment | C54: 2770 | G54: 3750 | I54: -3750
A55: Furniture and other office equipment | C55: 23013 | G55: 12024.39 | I55: -12024.39
A56: Abattoirs | I56: 0
A57: Markets | I57: 0
A58: Civic Land and Buildings | I58: 0
A59: Other Buildings | I59: 0
A60: Other Land | I60: 0
A61: Surplus Assets - (Investment or Inventory) | I61: 0
A62: Other | I62: 0
A64: Agricultural assets | C64: =SUM(C65:C66) -> 0 | D64: 0 | E64: 0 | F64: 0 | G64: 0 | H64: 0 | I64: =H64-G64 -> 0 | K64: =SUM(K65) -> 0
A65: List sub-class | I65: =H65-G65 -> 0
I66: =H66-G66 -> 0
J67: =IF(I67=0,"",I67/H67) -> 
A68: Biological assets | C68: =SUM(C69:C70) -> 0 | D68: 0 | E68: 0 | F68: 0 | G68: 0 | H68: 0 | I68: =H68-G68 -> 0 | J68: =IF(I68=0,"",I68/H68) ->  | K68: =SUM(K69) -> 0
A69: List sub-class | I69: =H69-G69 -> 0 | J69: =IF(I69=0,"",I69/H69) -> 
I70: =H70-G70 -> 0 | J70: =IF(I70=0,"",I70/H70) -> 
A72: Intangibles | C72: =SUM(C73:C74) -> 0 | D72: 0 | E72: 0 | F72: 0 | G72: 0 | H72: 0 | I72: =H72-G72 -> 0 | J72: =IF(I72=0,"",I72/H72) ->  | K72: =SUM(K73:K74) -> 0
A73: Computers - software & programming | I73: =H73-G73 -> 0 | J73: =IF(I73=0,"",I73/H73) -> 
A74: Other | I74: =H74-G74 -> 0 | J74: =IF(I74=0,"",I74/H74) -> 
A76: Total Capital Expenditure on new assets | B76: 1 | C76: =C7+C28+C43+C47+C50+C64+C68+C72 -> 2759319 | D76: 0 | E76: 0 | F76: 110422.76 | G76: 1361080.97 | H76: 0 | I76: -1361080.97 | K76: =K7+K28+K43+K47+K50+K64+K68+K72 -> 0
A78: Specialised vehicles | C78: =SUM(C79:C82) -> 0 | D78: 0 | E78: 0 | F78: 0 | G78: 0 | H78: 0 | I78: =H78-G78 -> 0 | J78: =IF(I78=0,"",I78/H78) ->  | K78: 0
A79: Refuse | I79: =H79-G79 -> 0 | J79: =IF(I79=0,"",I79/H79) -> 
A80: Fire | I80: =H80-G80 -> 0 | J80: =IF(I80=0,"",I80/H80) -> 
A81: Conservancy | I81: =H81-G81 -> 0 | J81: =IF(I81=0,"",I81/H81) -> 
A82: Ambulances | I82: =H82-G82 -> 0 | J82: =IF(I82=0,"",I82/H82) -> 
A83: =head27a -> References
A84: 1. Total Capital Expenditure on new assets (SC13a) plus Total Capital Expenditure on renewal of existing assets (SC13b) must reconcile to total capital expenditure in Table C5
A86: check balance | C86: =C76+SC13b!C76-'C5-Capex'!C40 -> 0 | D86: =D76+SC13b!D76-'C5-Capex'!D40 -> 0 | E86: =E76+SC13b!E76-'C5-Capex'!E40 -> 0 | F86: =F76+SC13b!F76-'C5-Capex'!F40 -> 0 | G86: =G76+SC13b!G76-'C5-Capex'!G40 -> 0 | H86: =H76+SC13b!H76-'C5-Capex'!H40 -> 0 | K86: =K76+SC13b!K76-'C5-Capex'!K40 -> 0

Sheet SC13b
A1: =muni& " - "&S71Sb& " - "&Head57 -> NC074 Kareeberg - Supporting Table SC13b Monthly Budget Statement - capital expenditure on renewal of existing assets by asset class - Mid-Year Assessment
A2: =desc -> Description | B2: =head27 -> Ref | C2: =Head1 -> 2014/15 | D2: =Head2 -> Budget Year 2015/16
C3: =Head5 -> Audited Outcome | D3: =Head6 -> Original Budget | E3: =Head7 -> Adjusted Budget | F3: =Head38 -> Monthly actual | G3: =Head39 -> YearTD actual | H3: =Head40 -> YearTD budget | I3: =Head41 -> YTD variance | J3: =Head41 -> YTD variance | K3: =Head8 -> Full Year Forecast
A4: R thousands | B4: 1 | J4: %
A5: Capital expenditure on renewal of existing assets by Asset Class/Sub-class
A7: Infrastructure | C7: =C8+C11+C15+C19+C22 -> 5047336 | D7: 6700000 | E7: 6700000 | F7: 121082.5 | G7: 1362731.8 | H7: 6700000 | I7: =H7-G7 -> 5337268.2 | J7: =IF(I7=0,"",I7/H7) -> 0.796607194 | K7: =K8+K11+K15+K19+K22 -> 6700000
A8: Infrastructure - Road transport | C8: =SUM(C9:C10) -> 5047336 | D8: 2000000 | E8: 2000000 | F8: 121082.5 | G8: 1362731.8 | H8: 2000000 | I8: 637268.2 | J8: 0.3186341 | K8: =SUM(K9:K10) -> 2000000
A9: Roads, Pavements & Bridges | C9: 5047336 | D9: 2000000 | E9: 2000000 | F9: 121082.5 | G9: 1362731.8 | H9: 2000000 | I9: 637268.2 | J9: 0.3186341 | K9: 2000000
A10: Storm water | I10: 0
A11: Infrastructure - Electricity | C11: =SUM(C12:C14) -> 0 | D11: 0 | E11: 0 | F11: 0 | G11: 0 | H11: 0 | I11: 0 | K11: =SUM(K12:K14) -> 0
A12: Generation | I12: 0
A13: Transmission & Reticulation | I13: 0
A14: Street Lighting | I14: 0
A15: Infrastructure - Water | C15: =SUM(C16:C18) -> 0 | D15: 0 | E15: 0 | F15: 0 | G15: 0 | H15: 0 | I15: 0 | K15: =SUM(K16:K18) -> 0
A16: Dams & Reservoirs | I16: 0
A17: Water purification | I17: 0
A18: Reticulation | I18: 0
A19: Infrastructure - Sanitation | C19: =SUM(C20:C21) -> 0 | D19: 3700000 | E19: 3700000 | F19: 0 | G19: 0 | H19: 3700000 | I19: 3700000 | J19: 1 | K19: =SUM(K20:K21) -> 3700000
A20: Reticulation | I20: 0
A21: Sewerage purification | D21: 3700000 | E21: 3700000 | H21: 3700000 | I21: 3700000 | J21: 1 | K21: 3700000
A22: Infrastructure - Other | C22: =SUM(C23:C26) -> 0 | D22: 1000000 | E22: 1000000 | F22: 0 | G22: 0 | H22: 1000000 | I22: 1000000 | J22: 1 | K22: =SUM(K23:K26) -> 1000000
A23: Waste Management | D23: 1000000 | E23: 1000000 | H23: 1000000 | I23: 1000000 | J23: 1 | K23: 1000000
A24: Transportation | I24: 0
A25: Gas | I25: 0
A26: Other | I26: 0
A28: Community | C28: =SUM(C29:C42) -> 2281683 | D28: 1228000 | E28: 1228000 | F28: 98025.78 | G28: 332100.77 | H28: 1228000 | I28: 895899.23 | J28: 0.7295596336 | K28: =SUM(K29:K42) -> 1228000
A29: Parks & gardens | C29: 1358752 | D29: 1228000 | E29: 1228000 | F29: 10569.2 | G29: 126476.9 | H29: 1228000 | I29: 1101523.1 | J29: 0.8970057818 | K29: 1228000
A30: Sportsfields & stadia | D30: 0 | I30: 0
A31: Swimming pools | D31: 0 | I31: 0
A32: Community halls | C32: 119640 | D32: 0 | I32: 0
A33: Libraries | D33: 0 | I33: 0
A34: Recreational facilities | D34: 0 | I34: 0
A35: Fire, safety & emergency | D35: 0 | I35: 0
A36: Security and policing | D36: 0 | I36: 0
A37: Buses | D37: 0 | I37: 0
A38: Clinics | D38: 0 | I38: 0
A39: Museums & Art Galleries | D39: 0 | I39: 0
A40: Cemeteries | C40: 756691 | D40: 0 | F40: 87456.58 | G40: 190623.87 | I40: -190623.87
A41: Social rental housing | C41: 46600 | D41: 0 | I41: 0
A42: Other | G42: 15000 | I42: -15000
A43: Heritage assets | C43: =SUM(C44:C45) -> 0 | D43: 0 | E43: 0 | F43: 0 | G43: 0 | H43: 0 | I43: 0 | K43: =SUM(K44:K45) -> 0
A44: Buildings | I44: 0
A45: Other | I45: 0
I46: 0
A47: Investment properties | C47: =SUM(C48:C49) -> 0 | D47: 0 | E47: 0 | F47: 0 | G47: 0 | H47: 0 | I47: 0 | K47: =SUM(K48:K49) -> 0
A48: Housing development | I48: 0
A49: Other | I49: 0
A50: Other assets | C50: =SUM(C51:C62) -> 0 | D50: 0 | E50: 0 | F50: 20740.67 | G50: 300814.96 | H50: 0 | I50: -300814.96 | K50: 0
A51: General vehicles | I51: 0
A52: Specialised vehicles | C52: =C78 -> 0 | D52: 0 | E52: 0 | F52: 0 | G52: 0 | H52: 0 | I52: 0 | K52: =K78 -> 0
A53: Plant & equipment | I53: 0
A54: Computers - hardware/equipment | I54: 0
A55: Furniture and other office equipment | I55: 0
A56: Abattoirs | I56: 0
A57: Markets | I57: 0
A58: Civic Land and Buildings | F58: 20740.67 | G58: 300814.96 | I58: -300814.96
A59: Other Buildings | I59: 0
A60: Other Land | I60: 0
A61: Surplus Assets - (Investment or Inventory) | I61: 0
A62: Other | I62: 0
A64: Agricultural assets | C64: =SUM(C65:C66) -> 0 | D64: 0 | E64: 0 | F64: 0 | G64: 0 | H64: 0 | I64: =H64-G64 -> 0 | K64: =SUM(K65) -> 0
A65: List sub-class | I65: =H65-G65 -> 0
I66: =H66-G66 -> 0
J67: =IF(I67=0,"",I67/H67) -> 
A68: Biological assets | C68: =SUM(C69:C70) -> 0 | D68: 0 | E68: 0 | F68: 0 | G68: 0 | H68: 0 | I68: =H68-G68 -> 0 | J68: =IF(I68=0,"",I68/H68) ->  | K68: =SUM(K69) -> 0
A69: List sub-class | I69: =H69-G69 -> 0 | J69: =IF(I69=0,"",I69/H69) -> 
I70: =H70-G70 -> 0 | J70: =IF(I70=0,"",I70/H70) -> 
A72: Intangibles | C72: =SUM(C73:C74) -> 0 | D72: 0 | E72: 0 | F72: 0 | G72: 0 | H72: 0 | I72: =H72-G72 -> 0 | J72: =IF(I72=0,"",I72/H72) ->  | K72: =SUM(K73:K74) -> 0
A73: Computers - software & programming | I73: =H73-G73 -> 0 | J73: =IF(I73=0,"",I73/H73) -> 
A74: Other | I74: =H74-G74 -> 0 | J74: =IF(I74=0,"",I74/H74) -> 
A76: Total Capital Expenditure on renewal of existing assets | B76: 1 | C76: =C7+C28+C43+C47+C50+C64+C68+C72 -> 7329019 | D76: 7928000 | E76: 7928000 | F76: 239848.95 | G76: 1995647.53 | H76: 7928000 | I76: =H76-G76 -> 5932352.47 | J76: =IF(I76=0,"",I76/H76) -> 0.7482785658 | K76: =K7+K28+K43+K47+K50+K64+K68+K72 -> 7928000
A78: Specialised vehicles | C78: =SUM(C79:C82) -> 0 | D78: 0 | E78: 0 | F78: 0 | G78: 0 | H78: 0 | I78: =H78-G78 -> 0 | J78: =IF(I78=0,"",I78/H78) ->  | K78: 0
A79: Refuse | I79: =H79-G79 -> 0 | J79: =IF(I79=0,"",I79/H79) -> 
A80: Fire | I80: =H80-G80 -> 0 | J80: =IF(I80=0,"",I80/H80) -> 
A81: Conservancy | I81: =H81-G81 -> 0 | J81: =IF(I81=0,"",I81/H81) -> 
A82: Ambulances | I82: =H82-G82 -> 0 | J82: =IF(I82=0,"",I82/H82) -> 
A83: =head27a -> References
A84: 1. Total Capital Expenditure on new assets (SC13a) plus Total Capital Expenditure on renewal of existing assets (SC13b) must reconcile to total capital expenditure in Table C5
A86: check balance | C86: =C76+SC13a!C76-'C5-Capex'!C40 -> 0 | D86: =D76+SC13a!D76-'C5-Capex'!D40 -> 0 | E86: =E76+SC13a!E76-'C5-Capex'!E40 -> 0 | F86: =F76+SC13a!F76-'C5-Capex'!F40 -> 0 | G86: =G76+SC13a!G76-'C5-Capex'!G40 -> 0 | H86: =H76+SC13a!H76-'C5-Capex'!H40 -> 0 | K86: =K76+SC13a!K76-'C5-Capex'!K40 -> 0

Sheet SC13c
A1: =muni& " - "&S71Sc& " - "&Head57 -> NC074 Kareeberg - Supporting Table SC13c Monthly Budget Statement - expenditure on repairs and maintenance by asset class - Mid-Year Assessment
A2: =desc -> Description | B2: =head27 -> Ref | C2: =Head1 -> 2014/15 | D2: =Head2 -> Budget Year 2015/16
C3: =Head5 -> Audited Outcome | D3: =Head6 -> Original Budget | E3: =Head7 -> Adjusted Budget | F3: =Head38 -> Monthly actual | G3: =Head39 -> YearTD actual | H3: =Head40 -> YearTD budget | I3: =Head41 -> YTD variance | J3: =Head41 -> YTD variance | K3: =Head8 -> Full Year Forecast
A4: R thousands | B4: 1 | J4: %
A5: Repairs and maintenance expenditure by Asset Class/Sub-class
A7: Infrastructure | C7: =C8+C11+C15+C19+C22 -> 1265652 | D7: 372000 | E7: 372000 | F7: 82785.54 | G7: 669214.64 | H7: 288226 | I7: =H7-G7 -> -380988.64 | J7: =IF(I7=0,"",I7/H7) -> -1.321839945 | K7: =K8+K11+K15+K19+K22 -> 372000
A8: Infrastructure - Road transport | C8: =SUM(C9:C10) -> 47562 | D8: 62000 | E8: 62000 | F8: 3947.89 | G8: 12161.63 | H8: 40000 | I8: 27838.37 | J8: 0.69595925 | K8: =SUM(K9:K10) -> 62000
A9: Roads, Pavements & Bridges | C9: 47562 | D9: 62000 | E9: 62000 | F9: 3947.89 | G9: 12161.63 | H9: 40000 | I9: 27838.37 | J9: 0.69595925 | K9: 62000
A10: Storm water | I10: 0
A11: Infrastructure - Electricity | C11: =SUM(C12:C14) -> 347697 | D11: 106000 | E11: 106000 | F11: 26751 | G11: 176559.73 | H11: 84000 | I11: -92559.73 | J11: -1.101901548 | K11: =SUM(K12:K14) -> 106000
A12: Generation | D12: 4000 | E12: 4000 | F12: 2000 | G12: 12000 | H12: 2000 | I12: -10000 | J12: -5 | K12: 4000
A13: Transmission & Reticulation | C13: 347697 | D13: 102000 | E13: 102000 | F13: 24751 | G13: 164559.73 | H13: 82000 | I13: -82559.73 | J13: -1.006825976 | K13: 102000
A14: Street Lighting | I14: 0
A15: Infrastructure - Water | C15: =SUM(C16:C18) -> 814199 | D15: 90000 | E15: 90000 | F15: 5275.65 | G15: 324419.78 | H15: 76000 | I15: -248419.78 | J15: -3.268681316 | K15: =SUM(K16:K18) -> 90000
A16: Dams & Reservoirs | C16: 814199 | D16: 90000 | E16: 90000 | F16: 5275.65 | G16: 324419.78 | H16: 76000 | I16: -248419.78 | J16: -3.268681316 | K16: 90000
A17: Water purification | I17: 0
A18: Reticulation | I18: 0
A19: Infrastructure - Sanitation | C19: =SUM(C20:C21) -> 45956 | D19: 105000 | E19: 105000 | F19: 46811 | G19: 54636.5 | H19: 83500 | I19: 28863.5 | J19: 0.3456706587 | K19: =SUM(K20:K21) -> 105000
A20: Reticulation | C20: 45956 | D20: 105000 | E20: 105000 | F20: 46811 | G20: 54636.5 | H20: 83500 | I20: 28863.5 | J20: 0.3456706587 | K20: 105000
A21: Sewerage purification | I21: 0
A22: Infrastructure - Other | C22: =SUM(C23:C26) -> 10238 | D22: 9000 | E22: 9000 | F22: 0 | G22: 101437 | H22: 4726 | I22: -96711 | J22: -20.46360559 | K22: =SUM(K23:K26) -> 9000
A23: Waste Management | C23: 7194 | D23: 0 | E23: 0 | F23: 0 | G23: 99327 | H23: 0 | I23: -99327 | K23: 0
A24: Transportation | C24: 3044 | D24: 9000 | E24: 9000 | F24: 0 | G24: 2110 | H24: 4726 | I24: 2616 | J24: 0.5535336437 | K24: 9000
A25: Gas | I25: 0
A26: Other | I26: 0
A28: Community | C28: =SUM(C29:C42) -> 61465 | D28: 75600 | E28: 75600 | F28: 6968.28 | G28: 19648.87 | H28: 32948 | I28: 13299.13 | J28: 0.4036399781 | K28: =SUM(K29:K42) -> 75600
A29: Parks & gardens | C29: 2200 | D29: 18600 | E29: 18600 | F29: 233.8 | G29: 2810.2 | H29: 8800 | I29: 5989.8 | J29: 0.6806590909 | K29: 18600
A30: Sportsfields & stadia | C30: 13810 | D30: 0 | E30: 0 | F30: 0 | G30: 0 | H30: 0 | I30: 0 | K30: 0
A31: Swimming pools | C31: 15511 | D31: 14000 | E31: 14000 | F31: 0 | G31: 0 | H31: 5000 | I31: 5000 | J31: 1 | K31: 14000
A32: Community halls | E32: 0 | F32: 0 | G32: 0 | H32: 0 | I32: 0 | K32: 0
A33: Libraries | C33: 22944 | D33: 13000 | E33: 13000 | F33: 982.08 | G33: 2114.07 | H33: 4500 | I33: 2385.93 | J33: 0.5302066667 | K33: 13000
A34: Recreational facilities | C34: 197 | D34: 11000 | E34: 11000 | F34: 5614.2 | G34: 10342.02 | H34: 5500 | I34: -4842.02 | J34: -0.8803672727 | K34: 11000
A35: Fire, safety & emergency | C35: 168 | D35: 3000 | E35: 3000 | F35: 0 | G35: 125 | H35: 1500 | I35: 1375 | J35: 0.9166666667 | K35: 3000
A36: Security and policing | C36: 0 | D36: 3500 | E36: 3500 | F36: 0 | G36: 555.98 | H36: 1750 | I36: 1194.02 | J36: 0.6822971429 | K36: 3500
A37: Buses | E37: 0 | F37: 0 | G37: 0 | H37: 0 | I37: 0 | K37: 0
A38: Clinics | C38: 536 | D38: 3000 | E38: 3000 | F38: 0 | G38: 1136.25 | H38: 1500 | I38: 363.75 | J38: 0.2425 | K38: 3000
A39: Museums & Art Galleries | C39: 1053 | D39: 4000 | E39: 4000 | F39: 0 | G39: 0 | H39: 2000 | I39: 2000 | J39: 1 | K39: 4000
A40: Cemeteries | C40: 5046 | D40: 5500 | E40: 5500 | F40: 138.2 | G40: 2565.35 | H40: 2398 | I40: -167.35 | J40: -0.06978732277 | K40: 5500
A41: Social rental housing | I41: 0
A42: Other | I42: 0
A43: Heritage assets | C43: =SUM(C44:C45) -> 0 | D43: 0 | E43: 0 | F43: 0 | G43: 0 | H43: 0 | I43: 0 | K43: =SUM(K44:K45) -> 0
A44: Buildings | I44: 0
A45: Other | I45: 0
I46: 0
A47: Investment properties | C47: =SUM(C48:C49) -> 0 | D47: 0 | E47: 0 | F47: 0 | G47: 0 | H47: 0 | I47: 0 | K47: =SUM(K48:K49) -> 0
A48: Housing development | I48: 0
A49: Other | I49: 0
A50: Other assets | C50: =SUM(C51:C62) -> 1109375 | D50: 537400 | E50: 537400 | F50: 48268.55 | G50: 703090.67 | H50: 85736 | I50: -617354.67 | J50: -7.200646986 | K50: 537400
A51: General vehicles | C51: 105076 | D51: 97500 | E51: 97500 | F51: 6396.86 | G51: 22947.34 | H51: 48504 | I51: 25556.66 | J51: 0.5268979878 | K51: 97500
A52: Specialised vehicles | C52: =C78 -> 286541 | D52: 195000 | E52: 195000 | F52: 521.93 | G52: 48018.29 | H52: -86118 | I52: -134136.29 | J52: 1.557587148 | K52: =K78 -> 195000
A53: Plant & equipment | C53: 35159 | D53: 8700 | E53: 8700 | F53: 4434.84 | G53: 13192.97 | H53: 4350 | I53: -8842.97 | J53: -2.032866667 | K53: 8700
A54: Computers - hardware/equipment | C54: 205482 | D54: 130000 | E54: 130000 | F54: 15070.51 | G54: 85735.97 | H54: 65833 | I54: -19902.97 | J54: -0.3023251257 | K54: 130000
A55: Furniture and other office equipment | C55: 744 | D55: 47700 | E55: 47700 | F55: 0 | G55: 10062.14 | H55: 23917 | I55: 13854.86 | J55: 0.5792892085 | K55: 47700
A56: Abattoirs | D56: 0 | E56: 0 | F56: 0 | G56: 0 | H56: 0 | I56: 0 | K56: 0
A57: Markets | D57: 0 | E57: 0 | F57: 0 | G57: 0 | H57: 0 | I57: 0 | K57: 0
A58: Civic Land and Buildings | C58: 61899 | D58: 58500 | E58: 58500 | F58: 447.26 | G58: 4761.56 | H58: 29250 | I58: 24488.44 | J58: 0.8372116239 | K58: 58500
A59: Other Buildings | D59: 0 | H59: 0 | I59: 0
A60: Other Land | D60: 0 | H60: 0 | I60: 0
A61: Surplus Assets - (Investment or Inventory) | D61: 0 | H61: 0 | I61: 0
A62: Other | C62: 414474 | D62: 0 | F62: 21397.15 | G62: 518372.4 | H62: 0 | I62: -518372.4
A64: Agricultural assets | C64: =SUM(C65:C66) -> 0 | D64: 0 | E64: 0 | F64: 0 | G64: 0 | H64: 0 | I64: =H64-G64 -> 0 | K64: =SUM(K65) -> 0
A65: List sub-class | I65: =H65-G65 -> 0
I66: =H66-G66 -> 0
J67: =IF(I67=0,"",I67/H67) -> 
A68: Biological assets | C68: =SUM(C69:C70) -> 0 | D68: 0 | E68: 0 | F68: 0 | G68: 0 | H68: 0 | I68: =H68-G68 -> 0 | J68: =IF(I68=0,"",I68/H68) ->  | K68: =SUM(K69) -> 0
A69: List sub-class | I69: =H69-G69 -> 0 | J69: =IF(I69=0,"",I69/H69) -> 
I70: =H70-G70 -> 0 | J70: =IF(I70=0,"",I70/H70) -> 
A72: Intangibles | C72: =SUM(C73:C74) -> 0 | D72: 0 | E72: 0 | F72: 0 | G72: 0 | H72: 0 | I72: =H72-G72 -> 0 | J72: =IF(I72=0,"",I72/H72) ->  | K72: =SUM(K73:K74) -> 0
A73: Computers - software & programming | I73: =H73-G73 -> 0 | J73: =IF(I73=0,"",I73/H73) -> 
A74: Other | I74: =H74-G74 -> 0 | J74: =IF(I74=0,"",I74/H74) -> 
A76: Total Repairs and Maintenance Expenditure | C76: =C7+C28+C43+C47+C50+C64+C68+C72 -> 2436492 | D76: 985000 | E76: 985000 | F76: 138022.37 | G76: 1391954.18 | H76: 406910 | I76: =H76-G76 -> -985044.18 | J76: =IF(I76=0,"",I76/H76) -> -2.420791281 | K76: =K7+K28+K43+K47+K50+K64+K68+K72 -> 985000
A78: Specialised vehicles | C78: =SUM(C79:C82) -> 286541 | D78: 195000 | E78: 195000 | F78: 521.93 | G78: 48018.29 | H78: -86118 | I78: =H78-G78 -> -134136.29 | J78: =IF(I78=0,"",I78/H78) -> 1.557587148 | K78: 195000
A79: Refuse | C79: 286541 | D79: 195000 | E79: 195000 | F79: 521.93 | G79: 48018.29 | H79: -86118 | I79: =H79-G79 -> -134136.29 | J79: =IF(I79=0,"",I79/H79) -> 1.557587148 | K79: 195000
A80: Fire | I80: =H80-G80 -> 0 | J80: =IF(I80=0,"",I80/H80) -> 
A81: Conservancy | I81: =H81-G81 -> 0 | J81: =IF(I81=0,"",I81/H81) -> 
A82: Ambulances | I82: =H82-G82 -> 0 | J82: =IF(I82=0,"",I82/H82) -> 

Sheet SC13d
A1: =muni& " - "&S71Sd& " - "&Head57 -> NC074 Kareeberg - Supporting Table SC13d Monthly Budget Statement - depreciation by asset class - Mid-Year Assessment
A2: =desc -> Description | B2: =head27 -> Ref | C2: =Head1 -> 2014/15 | D2: =Head2 -> Budget Year 2015/16
C3: =Head5 -> Audited Outcome | D3: =Head6 -> Original Budget | E3: =Head7 -> Adjusted Budget | F3: =Head38 -> Monthly actual | G3: =Head39 -> YearTD actual | H3: =Head40 -> YearTD budget | I3: =Head41 -> YTD variance | J3: =Head41 -> YTD variance | K3: =Head8 -> Full Year Forecast
A4: R thousands | B4: 1 | J4: %
A5: Depreciation by Asset Class/Sub-class
A7: Infrastructure | C7: =C8+C11+C15+C19+C22 -> 1888807 | D7: 2917514 | E7: 2917514 | F7: 0 | G7: 0 | H7: 0 | I7: =H7-G7 -> 0 | J7: =IF(I7=0,"",I7/H7) ->  | K7: =K8+K11+K15+K19+K22 -> 2917514
A8: Infrastructure - Road transport | C8: =SUM(C9:C10) -> 1227716 | D8: 1835500 | E8: 1835500 | F8: 0 | G8: 0 | H8: 0 | I8: 0 | K8: =SUM(K9:K10) -> 1835500
A9: Roads, Pavements & Bridges | C9: 1221804 | D9: 1828373 | E9: 1828373 | I9: 0 | K9: =E9 -> 1828373
A10: Storm water | C10: 5912 | D10: 7127 | E10: 7127 | I10: 0 | K10: =E10 -> 7127
A11: Infrastructure - Electricity | C11: =SUM(C12:C14) -> 99241 | D11: 119646 | E11: 119646 | F11: 0 | G11: 0 | H11: 0 | I11: 0 | K11: =SUM(K12:K14) -> 119646
A12: Generation | C12: 0 | D12: 0 | E12: 0 | I12: 0 | K12: =E12 -> 0
A13: Transmission & Reticulation | C13: 99241 | D13: 119646 | E13: 119646 | I13: 0 | K13: 119646
A14: Street Lighting | C14: 0 | D14: 0 | E14: 0 | I14: 0 | K14: 0
A15: Infrastructure - Water | C15: =SUM(C16:C18) -> 254754 | D15: 307132 | E15: 307132 | F15: 0 | G15: 0 | H15: 0 | I15: 0 | K15: =SUM(K16:K18) -> 307132
A16: Dams & Reservoirs | C16: 0 | D16: 0 | E16: 0 | I16: 0 | K16: =E16 -> 0
A17: Water purification | C17: 0 | D17: 0 | E17: 0 | I17: 0 | K17: 0
A18: Reticulation | C18: 254754 | D18: 307132 | E18: 307132 | I18: 0 | K18: 307132
A19: Infrastructure - Sanitation | C19: =SUM(C20:C21) -> 243449 | D19: 528503 | E19: 528503 | F19: 0 | G19: 0 | H19: 0 | I19: 0 | K19: =SUM(K20:K21) -> 528503
A20: Reticulation | C20: 0 | D20: 235000 | E20: 235000 | I20: 0 | K20: =E20 -> 235000
A21: Sewerage purification | C21: 243449 | D21: 293503 | E21: 293503 | I21: 0 | K21: 293503
A22: Infrastructure - Other | C22: =SUM(C23:C26) -> 63647 | D22: 126733 | E22: 126733 | F22: 0 | G22: 0 | H22: 0 | I22: 0 | K22: =SUM(K23:K26) -> 126733
A23: Waste Management | C23: 63647 | D23: 126733 | E23: 126733 | I23: 0 | K23: =E23 -> 126733
A24: Transportation | C24: 0 | D24: 0 | E24: 0 | I24: 0 | K24: 0
A25: Gas | C25: 0 | D25: 0 | E25: 0 | I25: 0 | K25: 0
A26: Other | C26: 0 | D26: 0 | E26: 0 | I26: 0 | K26: 0
A28: Community | C28: =SUM(C29:C42) -> 499897 | D28: 614073 | E28: 614073 | F28: 0 | G28: 0 | H28: 0 | I28: 0 | K28: =SUM(K29:K42) -> 614073
A29: Parks & gardens | C29: 1139 | D29: 12772 | E29: 12772 | I29: 0 | K29: =E29 -> 12772
A30: Sportsfields & stadia | C30: 0 | D30: 0 | E30: 0 | I30: 0 | K30: 0
A31: Swimming pools | C31: 0 | D31: 0 | E31: 0 | I31: 0 | K31: 0
A32: Community halls | C32: 0 | D32: 0 | E32: 0 | I32: 0 | K32: 0
A33: Libraries | C33: 23133 | D33: 27888 | E33: 27888 | I33: 0 | K33: 27888
A34: Recreational facilities | C34: 450146 | D34: 542697 | E34: 542697 | I34: 0 | K34: 542697
A35: Fire, safety & emergency | C35: 0 | D35: 0 | E35: 0 | I35: 0 | K35: 0
A36: Security and policing | C36: 0 | D36: 0 | E36: 0 | I36: 0 | K36: 0
A37: Buses | C37: 0 | D37: 0 | E37: 0 | I37: 0 | K37: 0
A38: Clinics | C38: 12504 | D38: 15074 | E38: 15074 | I38: 0 | K38: 15074
A39: Museums & Art Galleries | C39: 12476 | D39: 15041 | E39: 15041 | I39: 0 | K39: 15041
A40: Cemeteries | C40: 499 | D40: 601 | E40: 601 | I40: 0 | K40: 601
A41: Social rental housing | I41: 0 | K41: 0
A42: Other | I42: 0 | K42: 0
A43: Heritage assets | C43: =SUM(C44:C45) -> 0 | D43: 0 | E43: 0 | F43: 0 | G43: 0 | H43: 0 | I43: 0 | K43: =SUM(K44:K45) -> 0
A44: Buildings | I44: 0
A45: Other | I45: 0
I46: 0
A47: Investment properties | C47: =SUM(C48:C49) -> 10255 | D47: 12363 | E47: 12363 | F47: 0 | G47: 0 | H47: 0 | I47: 0 | K47: =SUM(K48:K49) -> 12363
A48: Housing development | C48: 10255 | D48: 12363 | E48: 12363 | I48: 0 | K48: =E48 -> 12363
A49: Other | I49: 0
A50: Other assets | C50: =SUM(C51:C62) -> 598373 | D50: 721399 | E50: 721399 | F50: 0 | G50: 0 | H50: 0 | I50: 0 | K50: 721399
A51: General vehicles | C51: 211805 | D51: 255353 | E51: 255353 | I51: 0 | K51: =E51 -> 255353
A52: Specialised vehicles | C52: =C78 -> 35779 | D52: 43134 | E52: 43134 | F52: 0 | G52: 0 | H52: 0 | I52: 0 | K52: =K78 -> 43134
A53: Plant & equipment | C53: 94599 | D53: 114049 | E53: 114049 | I53: 0 | K53: =E53 -> 114049
A54: Computers - hardware/equipment | C54: 68960 | D54: 83138 | E54: 83138 | I54: 0 | K54: 83138
A55: Furniture and other office equipment | C55: 94696 | D55: 114166 | E55: 114166 | I55: 0 | K55: 114166
A56: Abattoirs | C56: 0 | D56: 0 | E56: 0 | I56: 0 | K56: 0
A57: Markets | C57: 0 | D57: 0 | E57: 0 | I57: 0 | K57: 0
A58: Civic Land and Buildings | C58: 92534 | D58: 111559 | E58: 111559 | I58: 0 | K58: 111559
A59: Other Buildings | I59: 0
A60: Other Land | I60: 0
A61: Surplus Assets - (Investment or Inventory) | I61: 0
A62: Other | I62: 0
A64: Agricultural assets | C64: =SUM(C65:C66) -> 0 | D64: 0 | E64: 0 | F64: 0 | G64: 0 | H64: 0 | I64: =H64-G64 -> 0 | K64: =SUM(K65) -> 0
A65: List sub-class | I65: =H65-G65 -> 0
I66: =H66-G66 -> 0
J67: =IF(I67=0,"",I67/H67) -> 
A68: Biological assets | C68: =SUM(C69:C70) -> 0 | D68: 0 | E68: 0 | F68: 0 | G68: 0 | H68: 0 | I68: =H68-G68 -> 0 | J68: =IF(I68=0,"",I68/H68) ->  | K68: =SUM(K69) -> 0
A69: List sub-class | I69: =H69-G69 -> 0 | J69: =IF(I69=0,"",I69/H69) -> 
I70: =H70-G70 -> 0 | J70: =IF(I70=0,"",I70/H70) -> 
A72: Intangibles | C72: =SUM(C73:C74) -> 47737 | D72: 57562 | E72: 57562 | F72: 0 | G72: 0 | H72: 0 | I72: =H72-G72 -> 0 | J72: =IF(I72=0,"",I72/H72) ->  | K72: =SUM(K73:K74) -> 57562
A73: Computers - software & programming | C73: 47737 | D73: 57562 | E73: 57562 | I73: =H73-G73 -> 0 | J73: =IF(I73=0,"",I73/H73) ->  | K73: =E73 -> 57562
A74: Other | I74: =H74-G74 -> 0 | J74: =IF(I74=0,"",I74/H74) -> 
A76: Total Depreciation | C76: =C7+C28+C43+C47+C50+C64+C68+C72 -> 3045069 | D76: 4322911 | E76: 4322911 | F76: 0 | G76: 0 | H76: 0 | I76: =H76-G76 -> 0 | J76: =IF(I76=0,"",I76/H76) ->  | K76: =K7+K28+K43+K47+K50+K64+K68+K72 -> 4322911
A78: Specialised vehicles | C78: =SUM(C79:C82) -> 35779 | D78: 43134 | E78: 43134 | F78: 0 | G78: 0 | H78: 0 | I78: =H78-G78 -> 0 | J78: =IF(I78=0,"",I78/H78) ->  | K78: 43134
A79: Refuse | C79: 33752 | D79: 40690 | E79: 40690 | I79: =H79-G79 -> 0 | J79: =IF(I79=0,"",I79/H79) ->  | K79: =E79 -> 40690
A80: Fire | C80: 2027 | D80: 2444 | E80: 2444 | I80: =H80-G80 -> 0 | J80: =IF(I80=0,"",I80/H80) ->  | K80: 2444
A81: Conservancy | I81: =H81-G81 -> 0 | J81: =IF(I81=0,"",I81/H81) -> 
A82: Ambulances | I82: =H82-G82 -> 0 | J82: =IF(I82=0,"",I82/H82) -> 

Sheet SC71charts
A1: ='Template names'!B101 -> Chart C1 2015/16 Capital Expenditure Monthly Trend: actual v target
A2: Month | B2: ='SC12'!B2 -> 2014/15 | C2: ='SC12'!C3 -> Original Budget | D2: ='SC12'!D3 -> Adjusted Budget | E2: ='SC12'!E3 -> Monthly actual
A3: =LEFT('SC12'!A6,3) -> Jul | B3: ='SC12'!B6 -> 1154.93 | C3: ='SC12'!C6 -> 3000000 | D3: ='SC12'!D6 -> 3000000 | E3: ='SC12'!E6 -> 828202.24
A4: =LEFT('SC12'!A7,3) -> Aug | B4: ='SC12'!B7 -> 1189.79 | C4: ='SC12'!C7 -> 0 | D4: ='SC12'!D7 -> 0 | E4: ='SC12'!E7 -> 627548.8
A5: =LEFT('SC12'!A8,3) -> Sep | B5: ='SC12'!B8 -> 3300694.88 | C5: ='SC12'!C8 -> 0 | D5: ='SC12'!D8 -> 0 | E5: ='SC12'!E8 -> 313879.96
A6: =LEFT('SC12'!A9,3) -> Oct | B6: ='SC12'!B9 -> 0.0001 | C6: ='SC12'!C9 -> 0 | D6: ='SC12'!D9 -> 0 | E6: ='SC12'!E9 -> 504426.19
A7: =LEFT('SC12'!A10,3) -> Nov | B7: ='SC12'!B10 -> 0.0001 | C7: ='SC12'!C10 -> 0 | D7: ='SC12'!D10 -> 0 | E7: ='SC12'!E10 -> 732399.6
A8: =LEFT('SC12'!A11,3) -> Dec | B8: ='SC12'!B11 -> 692790.73 | C8: ='SC12'!C11 -> 4928000 | D8: ='SC12'!D11 -> 0 | E8: ='SC12'!E11 -> 349484.17
A9: =LEFT('SC12'!A12,3) -> Jan | B9: ='SC12'!B12 -> 8584.42 | C9: ='SC12'!C12 -> 0 | D9: ='SC12'!D12 -> 0 | E9: ='SC12'!E12 -> 0
A10: =LEFT('SC12'!A13,3) -> Feb | B10: ='SC12'!B13 -> 21595.7 | C10: ='SC12'!C13 -> 0 | D10: ='SC12'!D13 -> 0 | E10: ='SC12'!E13 -> 0
A11: =LEFT('SC12'!A14,3) -> Mar | B11: ='SC12'!B14 -> 261415.21 | C11: ='SC12'!C14 -> 0 | D11: ='SC12'!D14 -> 0 | E11: ='SC12'!E14 -> 0
A12: =LEFT('SC12'!A15,3) -> Apr | B12: ='SC12'!B15 -> 1083.32 | C12: ='SC12'!C15 -> 0 | D12: ='SC12'!D15 -> 0 | E12: ='SC12'!E15 -> 0
A13: =LEFT('SC12'!A16,3) -> May | B13: ='SC12'!B16 -> 677.46 | C13: ='SC12'!C16 -> 0 | D13: ='SC12'!D16 -> 0 | E13: ='SC12'!E16 -> 0
A14: =LEFT('SC12'!A17,3) -> Jun | B14: ='SC12'!B17 -> 5752551.35 | C14: ='SC12'!C17 -> 0 | D14: ='SC12'!D17 -> 0 | E14: ='SC12'!E17 -> 0
A26: ='Template names'!B102 -> Chart C2 2015/16 Capital Expenditure: YTD actual v YTD target
A27: Month | B27: ='SC12'!F3 -> YearTD actual | C27: ='SC12'!G3 -> YearTD budget
A28: =LEFT('SC12'!A6,3) -> Jul | B28: ='SC12'!F6 -> 828202.24 | C28: ='SC12'!G6 -> 3000000
A29: =LEFT('SC12'!A7,3) -> Aug | B29: ='SC12'!F7 -> 1455751.04 | C29: ='SC12'!G7 -> 3000000
A30: =LEFT('SC12'!A8,3) -> Sep | B30: ='SC12'!F8 -> 1769631 | C30: ='SC12'!G8 -> 3000000
A31: =LEFT('SC12'!A9,3) -> Oct | B31: ='SC12'!F9 -> 2274057.19 | C31: ='SC12'!G9 -> 3000000
A32: =LEFT('SC12'!A10,3) -> Nov | B32: ='SC12'!F10 -> 3006456.79 | C32: ='SC12'!G10 -> 3000000
A33: =LEFT('SC12'!A11,3) -> Dec | B33: ='SC12'!F11 -> 3355940.96 | C33: ='SC12'!G11 -> 7928000
A34: =LEFT('SC12'!A12,3) -> Jan | B34: ='SC12'!F12 ->  | C34: ='SC12'!G12 -> 7928000
A35: =LEFT('SC12'!A13,3) -> Feb | B35: ='SC12'!F13 ->  | C35: ='SC12'!G13 -> 7928000
A36: =LEFT('SC12'!A14,3) -> Mar | B36: ='SC12'!F14 ->  | C36: ='SC12'!G14 -> 7928000
A37: =LEFT('SC12'!A15,3) -> Apr | B37: ='SC12'!F15 ->  | C37: ='SC12'!G15 -> 7928000
A38: =LEFT('SC12'!A16,3) -> May | B38: ='SC12'!F16 ->  | C38: ='SC12'!G16 -> 7928000
A39: =LEFT('SC12'!A17,3) -> Jun | B39: ='SC12'!F17 ->  | C39: ='SC12'!G17 -> 7928000
A51: ='Template names'!B103 -> Chart C3 Aged Consumer Debtors Analysis
B52: ='SC3'!C3 -> 0-30 Days | C52: ='SC3'!D3 -> 31-60 Days | D52: ='SC3'!E3 -> 61-90 Days | E52: ='SC3'!F3 -> 91-120 Days | F52: ='SC3'!G3 -> 121-150 Dys | G52: ='SC3'!H3 -> 151-180 Dys | H52: ='SC3'!I3 -> 181 Dys-1 Yr | I52: ='SC3'!J3 -> Over 1Yr
A53: =Head2 -> Budget Year 2015/16 | B53: ='SC3'!C14 -> 2313384.84 | C53: ='SC3'!D14 -> 92781.81 | D53: ='SC3'!E14 -> 130084.72 | E53: ='SC3'!F14 -> 122210.72 | F53: ='SC3'!G14 -> 109424.92 | G53: ='SC3'!H14 -> 4326441.65 | H53: ='SC3'!I14 -> 0 | I53: ='SC3'!J14 -> 0
A54: =Head1 -> 2014/15 | B54: ='SC3'!C15 -> 340867.87 | C54: ='SC3'!D15 -> 381533.1 | D54: ='SC3'!E15 -> 266960.04 | E54: ='SC3'!F15 -> 173737.65 | F54: ='SC3'!G15 -> 3057213.81 | G54: ='SC3'!H15 -> 1350105.4 | H54: ='SC3'!I15 -> 0 | I54: ='SC3'!J15 -> 0
A76: ='Template names'!B104 -> Chart C4 Consumer Debtors (total by Debtor Customer Category)
B77: =Head1 -> 2014/15 | C77: =Head2 -> Budget Year 2015/16
A78: ='SC3'!A17 -> Organs of State | B78: =C78*0.97 -> 321998.9011 | C78: ='SC3'!K17 -> 331957.63
A79: ='SC3'!A18 -> Commercial | B79: =C79*0.97 -> 756569.8039 | C79: ='SC3'!K18 -> 779968.87
A80: ='SC3'!A19 -> Households | B80: =C80*0.97 -> 5802930.095 | C80: ='SC3'!K19 -> 5982402.16
A81: ='SC3'!A20 -> Other | B81: =C81*0.97 -> 0 | C81: ='SC3'!K20 -> 0
A101: ='Template names'!B105 -> Chart C5 Aged Creditors Analysis
B102: ='SC4'!A6 -> Bulk Electricity | C102: ='SC4'!A7 -> Bulk Water | D102: ='SC4'!A8 -> PAYE deductions | E102: ='SC4'!A9 -> VAT (output less input) | F102: ='SC4'!A10 -> Pensions / Retirement deductions | G102: ='SC4'!A11 -> Loan repayments | H102: ='SC4'!A12 -> Trade Creditors | I102: ='SC4'!A13 -> Auditor General | J102: ='SC4'!A14 -> Other
A103: =A54 -> 2014/15 | B103: ='SC4'!L6 -> 0 | C103: ='SC4'!L7 -> 0 | D103: ='SC4'!L8 -> 0 | E103: ='SC4'!L9 -> 0 | F103: ='SC4'!L10 -> 0 | G103: ='SC4'!L11 -> 0 | H103: ='SC4'!L12 -> 0 | I103: ='SC4'!L13 -> 0 | J103: ='SC4'!L14 -> 0
A104: =A53 -> Budget Year 2015/16 | B104: ='SC4'!K6 -> 0 | C104: ='SC4'!K7 -> 0 | D104: ='SC4'!K8 -> 0 | E104: ='SC4'!K9 -> 0 | F104: ='SC4'!K10 -> 0 | G104: ='SC4'!K11 -> 0 | H104: ='SC4'!K12 -> 0 | I104: ='SC4'!K13 -> 0 | J104: ='SC4'!K14 -> 0
